Workbook

Sheet NameOfSheet
G2: This form was updated on 4-23-2013
D6: Peace Corps Small Grant Application
D7: This application has been developed as a tool to help Volunteers and their communities plan successful small grant projects. The information that you record here will also be transmitted to Peace Corps Headquarters for internal reporting and reporting to donors. Please work with your community to fill out this application and return it to the appropriate staff member at post for review. You can use either the links on the table of contents or the menu at the left to navigate between sections. Before completing any section, make sure to read the entire application. Please check each box as you complete the section.
D9: Table of Contents
D10: Application Instructions
D11: 1. Project Classification
D12: 2. Project Description
D13: 3. Goals and Objectives
D14: 4. Timeline
D15: 5. Monitoring and Evaluation
D16: 6. Do No Harm
D17: 7. Detailed Budget
D18: 8. Grant Type Selection Menu
D19: 9. Signature Forms

Sheet Instructions
C2: Instructions on this Application
G4: CELL COLORS:
E5: BLUE CELLS | G5: To be filled out by the community partner with the help of the PCV
E6: PINK CELLS | G6: To be filled out by post staff
E7: BROWN CELLS | G7: Will automatically populate based on information entered in elsewhere in the application
D10: COMMENTS ON CELLS: Please take note of the red triangle at the top right corner of certain cells (including this one). These have been included on many cells to help guide users through each step of the process.
D14: HOW TO START A NEW PARAGRAPH IN A CELL: If you want to start a new line within the same cell, you must hit "Alt + Enter"; simply hitting "Enter" will jump to the next cell.
D20: PROTECTED CELLS: Each one of these sheets is protected and will allow data only to be entered in areas that are shaded in pink or blue. This is done to ensure that all data entered is of the correct type to be used in reporting within Peace Corps.
D25: PRINTING THIS APPLICATION: The pages in this workbook are set up to be printer-friendly. The default settings will print only the sheet you are on. If you would like to print the whole workbook at the same time, go to "File > Print" and under "Print what" select "Entire workbook."

Sheet 1. Classification & Budget
C2: Peace Corps Small Grant Application
C3: 1. Project Classification and Budget
D5: Country: | H5: Peru
D6: Project Funding Source: | H6: Peace Corps Partnership Program (PCPP) | P6: Fiscal Year:
P7: Project Number: | Q7: =IF(ISBLANK(H6),"",INDEX(Lookup!L1:M6,MATCH(H6,Lookup!L1:L6,0),2)) -> PP | R7: =IF(ISBLANK(Q6),"",RIGHT(Q6,2)) ->  | S7: =IF(ISBLANK(H5),"",INDEX(Lookup!D1:E71,MATCH(H5,Lookup!D1:D75,0),2)) -> 527
D9: Project Title: | H9: Healthy Homes with Improved Cook Stoves
D11: Project City/Town/Village: | H11: Pampa Elera Alta
D12: Region: | H12: Piura
D14: Community Group Name: | H14: Healthy Homes Committee
D15: Group Contact Person: | H15: Project President: Rosa Carmen Mondragon
D16: Community Group Contact Information (phone, address, etc.): | H16: 51989438055
R17: Total Days | U17: Months | V17: Weeks | W17: Days
D18: Project Start Date: | H18: 2013-06-01 | K18: Project End Date: | N18: 2014-02-03 | Q18: =DAYS360(H18,N18)+1 -> 243 | S18: =Q18/30 -> 8.1 | U18: =IF(S18>=1,ROUNDDOWN(S18,0),"0") -> 8 | V18: =IF(U18="0",IF(Q18/7>=1,ROUNDDOWN(Q18/7,0),"0"),IF(ROUNDDOWN(Q18-(U18*30),0)>=7,ROUNDDOWN((Q18-(U18*30))/7,0),"0")) -> 0 | W18: =IF(0<Q18<7,Q18,IF(Q18<30,Q18-(V18*7),Q18-(U18*30)-(V18*7))) -> 3
H19: =IF(N18="","",IF(Q18<0,"ERROR: You've entered an end date that comes before the project's start date. Please make sure you have the correct dates!","")) -> 
D20: Number of PCVs: | H20: 1
D21: Volunteer Information:
F22: Last Name | I22: First Name | L22: Peace Corps Sector | P22: COS Date | R22: Names of Other PCVs Involved in Project Planning or Implementation:
D23: Primary PCV | F23: Taylor | I23: Emelie | P23: 2014-11-23
D24: PCV 2
D25: PCV 3
D27: Responsible Program Manager/APCD: | I27: Emilia Villanueva
C29: Project Classification (Mark only one classification with "XX" as the primary classification of this project. Mark additional applicable descriptors with an "X.")
F31: Agriculture | I31: Municipal Development | N31: HIV/AIDS | R31: Food Security
F33: Education | I33: Community and Economic Development | N33: ICT | R33: Gender and Development
F35: Environment | I35: Youth Development | N35: NGO Development
E37: xx | F37: Health | H37: x | I37: Water and Sanitation | N37: Volunteerism
I40: Males | O40: Females
I41: 25 years old and above | K41: 15 to 24 years old | M41: Under 15 years old | O41: 25 years old and above | Q41: 15 to 24 years old | S41: Under 15 years old | U41: Total
D42: # of Participants (direct): Community members directly involved in the design and implementation of the project, including those who attend trainings or workshops | I42: 1 | K42: 0 | M42: 0 | O42: 57 | Q42: 11 | S42: 0 | U42: =SUM(I42:T42) -> 69
D43: # of Beneficiaries (indirect): Community members who receive an indirect benefit from the project, not including those counted above | M43: 63 | S43: 57 | U43: =SUM(I43:T43) -> 120
C45: Project Cost Breakdown (in U.S. Dollars) (this will auto-fill based on information you enter in the detailed budget screen)
H47: Grant Contribution | J47: Community Contribution | N47: Third-Party Contribution (if applicable)
H49: Cash | J49: Cash | L49: In-kind | N49: Cash | P49: In-kind
D50: Labor | H50: ='6. Detailed Budget'!I26 -> 842.5925926 | J50: ='6. Detailed Budget'!K26 -> 0 | L50: ='6. Detailed Budget'!M26 -> 152.1111111 | N50: ='6. Detailed Budget'!O26 -> 0 | P50: ='6. Detailed Budget'!Q26 -> 0 | S50: All Volunteers should reference the Peace Corps Small Grants Volunteer Handbook which specifically outlines allowable and unallowable costs.
D51: Equipment | H51: ='6. Detailed Budget'!I27 -> 0 | J51: ='6. Detailed Budget'!K27 -> 0 | L51: ='6. Detailed Budget'!M27 -> 0 | N51: ='6. Detailed Budget'!O27 -> 0 | P51: ='6. Detailed Budget'!Q27 -> 0
D52: Materials/Supplies | H52: ='6. Detailed Budget'!I28 -> 2630 | J52: ='6. Detailed Budget'!K28 -> 0 | L52: ='6. Detailed Budget'!M28 -> 927.7037037 | N52: ='6. Detailed Budget'!O28 -> 0 | P52: ='6. Detailed Budget'!Q28 -> 0
D53: Land/Venue Rental | H53: ='6. Detailed Budget'!I29 -> 0 | J53: ='6. Detailed Budget'!K29 -> 0 | L53: ='6. Detailed Budget'!M29 -> 185.1851852 | N53: ='6. Detailed Budget'!O29 -> 0 | P53: ='6. Detailed Budget'!Q29 -> 0
D54: Travel, Per Diem, Food | H54: ='6. Detailed Budget'!I30 -> 0 | J54: ='6. Detailed Budget'!K30 -> 0 | L54: ='6. Detailed Budget'!M30 -> 0 | N54: ='6. Detailed Budget'!O30 -> 0 | P54: ='6. Detailed Budget'!Q30 -> 0
D55: Materials Transport | H55: ='6. Detailed Budget'!I31 -> 82.2962963 | J55: ='6. Detailed Budget'!K31 -> 0 | L55: ='6. Detailed Budget'!M31 -> 0 | N55: ='6. Detailed Budget'!O31 -> 0 | P55: ='6. Detailed Budget'!Q31 -> 0
D56: Other | H56: ='6. Detailed Budget'!I32 -> 0 | J56: ='6. Detailed Budget'!K32 -> 0 | L56: ='6. Detailed Budget'!M32 -> 0 | N56: ='6. Detailed Budget'!O32 -> 0 | P56: ='6. Detailed Budget'!Q32 -> 0
D58: Total | H58: =SUM(H50:I56) -> 3554.888889 | J58: =SUM(J50:K56) -> 0 | L58: =SUM(L50:M56) -> 1265 | N58: =SUM(N50:O56) -> 0 | P58: =SUM(P50:Q56) -> 0
C60: Budget Narrative Please provide a general list of what items or services will be funded.
H62: Grant Contribution | M62: Community Contribution | R62: Third-Party Contribution (if applicable)
D63: Labor | H63: Skilled labor: masons | M63: Unskilled labor: mason assistants; Health promoters assisting with trainings and house visits; Staff from Health Post assisting with trainings
D64: Equipment
D65: Materials and Supplies | H65: Supplies to build the cook stoves, uniforms, teaching supplies for trainings and for health promoters | M65: Adobes and other small materials such as tin sheets, glass bottles, sugar, salt, water, and mud; food for demonstrations
D66: Land/Venue Rental | M66: Location for trainings
D67: Travel/Per Diem
D68: Materials Transport | H68: Transportation to and from capital city
D69: Other: (be specific)

Sheet 2. Questionnaire
C2: Peace Corps Small Grant Application
C3: 2. Project Description
D5: Directions | E5: Your descriptions should be between 150 and 250 words. Please be succinct in describing your project and clearly outline the project's sustainability,long-term need, and the level of community support for the project. Keep in mind that your application may be shared or distributed to donors and the agency.
D8: Summary | E8: 1) Please provide a brief summary of the project (up to 250 words). Include project objectives, the community's contribution and the potential impact the project may have. (For PCPP, this will be posted on the Peace Corps website. For safety and security reasons, please do not include the specific village name or any personal identifying information.) | J8: Healthy Homes with Improved Cook stoves is a community-based behavior change initiative designed to create and maintain healthy practices in rural moms with young children and local community institutions. This project utilizes four important components: community health promoters, interactive educational sessions, physical changes within the homes, and regular monitoring. Mothers with children under five years of age that cook with wood-burning stoves were invited to participate in the project, and participants were selected based on their interest and willingness to make healthy lifestyle changes. Mothers will also be in charge of making physical changes within the household to improve the health of their families, including installing handwashing stations near the kitchen and latrine, having covered buckets of boiled water for drinking at all times, covering the top holes of their latrines, exclusively breastfeeding for the first six months of an infant's life, and having a designated play area in their home. As a means of monitoring changes made during the project, the promoters and volunteer will conduct two house visits per month with the mothers. At the end of the project, mothers that have attended all of the training sessions and made all required changes within the household and with their children will receive an improved cook stove as a reward for her progress and efforts. Cook stoves will be built by a local mason along with the assistance of a member from each participating household in the Healthy Homes project. The maintenence of the behavior change of the mothers and upkeep of their improved cook stoves will also be monitored for three months after their contruction by the health promoters and volunteer to ensure that each home and child is living a healthier life. Furthermore, 39 mothers that recieved improved cookstoves in 2009 will recieve materials to improve the state of their stoves as well as the health of their families and children under 5 years of age.
D9: Background | E9: 2) Describe the background of the community, and what priority this project addresses. (Is this a priority project identified by the community? Why is this project needed?) | J9: Pampa Elera Alta has a population of approximately 850 inhabitants and is located within an agricultural hotspot of northern Piura. The majority of residents lead simple lives, living in adobe houses, working in their family's growing fields, bathing and washing in the local river, and eating whatever they themselves plant and raise. While there is a semi-functional health post that serves this community, the lack of personnel means that rural health promotion within this area is practically nonexistent. Families, especially those with young children, suffer from many common and easily prevented illnesses such as diarrhea, malnutrition, and respiratory infections. In 2012, 84% of all respitory infections occured in children under five, 89% of all stomach and intestinal infections occured in patients under 5, and 30% of children under 5 years of age were chronically and/or globally malnurished (Health Post of Pampa Elera Baja, 2012). Moreover, the semi-functional health post that serves them is located in an annex 45 minutes away by foot. When an illness is contracted, help is not as easily accessible as one might assume. The Healthy Homes with Improved Cook stoves initiative aims to reduce the prevalence of these illnesses through the promotion of rural health via educational sessions and monitoring house visits. Key health topics that will be addressed during the project are hygiene practices, including the importance of hand washing and proper latrine use, healthy nutrition practices, including the importance of vitamins A, C, protein and iron in a child's diet, and the importance of breastfeeding and early stimulation practices. As a reward for making changes in these areas homes, project mothers will receive an improved cook stove and trainings on how to use and properly maintain their new addition. Families will then continue to be monitoried, and later evaluated on the changes made within the home and the maintenance and use of their cook stoves.
D10: Community Involvement | E10: 3) How is the community the driving force behind the project? Provide examples that demonstrate the community’s involvement in the design and planning of this project. | J10: After seeing the implementation and success of other improved cook stove projects in neighboring areas, the community members have been adamant about starting an improved cookstove project within their own homes. Community members elected a cookstove project during a general meeting, and have been very active in the planning process so far. The project committee has participated in completing the application for funding, and are excited to see the project come together step-by-step. They also participated in choosing the health and sanitaion topics to be covered during the educational sessions. The committee treasurer, Charito Nunez Guerrero, has been extremely active and enthusiastic about the success and sustainablity of this project. In selecting participants, Charito ensured that we selected mothers who were interested and active. For our first training, one-third of our participants did not show up. Charito took it upon herself to talk with every mother about their absence and the importance of participation and learning from each training. Charito has truly been a driving force behind this project. Moreover, community health promoters will be the main session educators and monitoring tools for the participating mothers. To receive an improved cookstove at the end of the project, mothers must first show their desire for change within the household by attending all sessions and completing all assignments within the home. After the completion of these tasks, families will continue to contribute to the project through construction of the improved cookstoves alongside the community-selected contractors.
D11: Outcome | E11: 4) Briefly describe the desired outcome of the project. | J11: As of now, children under five living in Pampa Elera Alta are plagued with an array of never ending illnesses that can be prevented by the behavior change of their families and environments they live in. The Healthy Homes Committee hopes that, at the end of this project, with the implementation of educational sessions, house visists to monitor behavior change and the eventual implemetation of improved cook stoves, the percentage of illnesses (especially acute respiratory infections, acute diarrhea, and malnutrition) will decrease in children under five years of age and the appropriate intellectual and physical development of such children will be achieved by Feburary 2015.
D12: Implementation | E12: 5) Describe the implementation plan that will be used to achieve the goals and objectives of this project. Do you foresee any challenges to project implementation? | J12: The beginning of this project includes forming a project committee and electing health promoters to assist with the training sessions and house visits. Both the committee and promoters will contribute to the grant application process as well as to the monitoring and evaluation of the project. Once elected, the health promoters will begin their separate training in the areas of health and sanitation with the volunteer, with house visits and in-home assignments also included. After the health promoters finish their trainings, the other mothers will start their own educational sessions, with presentations on the health topics given by both the volunteer and the health promoters. One session will be given each month, and mothers must attend all sessions to be considered a project participant. Along with the educational sessions, the health promoters will conduct house visits once a month to check on the progress of the health and sanitation of the families within the home. Once the sessions are completed, the families will begin constructing their improved cook stoves with the aid of local engineers. Monitoring of the use and maintenance of the cookstoves will be carried out by the volunteer and health promoters, and continue after construction. The greatest challenge foreseen in project implementation is the attitude of the participating families. While any family can make healthy behavior changes within the home, the families themselves need to believe it as well for any real change to happen. While this may be a potential problem, a solution I envision is leading as an example. If I, as well as my committee and health promoters, lead as examples of enthusiasm and belief in this project, the participants will hopefully see its value and thus, change their behavior for the benefit of their families.
D13: Capacity Building | E13: 6) How will the project contribute to building skills and capacity within the community? | J13: The Healthy Homes with Improved Cookstoves project will build skills and capacity within the participating communities in numerous ways. First, the elected project committee will gain valuable information and experience when it comes to project planning and implementation. This gives them the skills to start their own successful projects to improve the health of their communities in the future. Second, the health promoters will receive important trainings on rural health promotion that will make them an invaluable resource in the communities. Their trainings on diarreah, respitory infections, parasites, early childhood stimulation, malnutrition, and family cohersion will provide knowlege and leadership skills to go out and make changes within their community on the individual level, as well as assist the health post with trainings in the future. Third, the local engineers that assist with the construction of the improved cook stoves will have the skills to become experts in cook stove construction, meaning they can build more stoves in the future for interested families. Fourth, the institutions involved such as the women's club, evangelical church, and kindergarden will gain the knowledge and skills to independently progress as organizations as well as better the health and lives of the people that they serve. Lastly and perhaps most importantly, the participating mothers will be gain healthy lifestyle skills that can change both their own health and the health of their family members, especially their young children. The information that the mothers receive in the educational sessions, as well as the completion of the in-home assignments, give the mothers the power to create healthy homes for themselves and their families. As a result of this health homes project with improves cook stoves, five community organizations have increased their capacities such as project planning as well as the confidence to carry out future activities without intervention. Also, sixty-nine individuals have also applied new practices due to this project and 30 new practices have been adopted by such participants.
D14: Sustainability | E14: 7) How will the community be able to sustain the activities and/or benefits of this project? What is the community's plan to sustain the benefits of the project after the initial material support has ended? | J14: Since the local health post does not have adequate personnel to give one-on-one attention to the activities and monitoring of this project, the responsibility of sustaining the Healthy Homes with Improved Cookstoves project lies in the hands of the community members. The project committee will receive important skills throughout this project process, leaving this experience with the confidence and the capacity to plan, implement, and monitor their own projects in the future. Another component of the sustainability of this project are the trained community health promoters. They will be a vital asset to the community through their hands-on training and experience conducting house visits and using monitoring practices. They can later use these same skills to work alongside health post staff to extend their reach to individual community members in a much more productive manner. The other project participants also play an important role in the sustainability of this project. For one, they will be examples for the benefit of using healthy behaviors within the home as the health of their families improves after making these changes. They can also use their trainings on health and sanitation and share their knowledge with other community members to spread the word about the implementation of healthy habits within the home. Furthermore, the health post of Pampa Elera Baja, myself, and the health promoters of Pampa Elera Alta are beginning a project plan to integrate the work of both institutions in a more sustainable manner.

Sheet 3. Goals & Objectives
C2: Peace Corps Small Grant Application | M2: Guidance on writing Goals and Objectives
C3: 3. Goals and Objectives | M3: Goals articulate intermediate or longer-term outcomes that need to occur to achieve the project’s purpose. As a result of their small scale, most small grant projects only have one or two goals. When drafting goals: -- restate the vision of the community and approach in terms of what is to be accomplished; -- define the long-term results or changes that the project will bring about; -- be realistic and include an overall time frame (goals are not usually time-bound, while objectives are). Objectives are similar to goals but are much more specific and focus on the short-term results you need to meet the longer-term goal(s) of the project. For each project goal, you should have at least two or more objectives. Project objectives: -- are short-term results you need to meet the longer-term goal(s) of the project; -- are SMART: Specific, Measurable, Attainable, Relevant, and Time-bound; -- Answer these questions: Who is the target group or individuals expected to change? What action or change is expected? When will the desired action or change be accomplished? How much change is expected?
C5: Directions | E5: What are the project's goals and objectives, and how will you know if your project is reaching them to produce the desired benefits or change? -- Use the tables below to state the project's goals and objectives and show how you will measure and evaluate the success of your project. Establishing this during the planning phase of your project is essential for the community to measure its success against the intended results. -- At least one of your objectives should support your country program goals and strategies. -- Your Goals & Objectives should contain your project targets, and may be useful for the program-specific Indicators section later in this application. -- You will report on these measures in the completion report.
C7: Goals & Objectives | E7: Goal 1: | G7: Children under five years of age living in Pampa Elera Alta have optimal health and are at mental and physical development levels appropriate for their age.
F8: Objective 1.1 | G8: At the end of Feburary 2014, 30 children under five years of age improve their level of development according to the criteria defined in the Peruvian Development Test.
F9: Objective 1.2 | G9: At the end of Febuary 2014, 30 mothers observe a decrease in the frequency of acute respitory infections as well as acute diarrhea of their children under five.
F10: Objective 1.3 | G10: At the end of Febuary 2014, 30 mothers feed their children under five adequate food and nutrition according to the recommendations for their age.
F11: Objective 1.4 | M11: Examples of Goals & Objectives
E12: Goal 2: | M12: Example 1
F13: Objective 2.1 | M13: Goal: Community Members will adopt behaviors and practices to reduce risky sexual behavior in youth and increase healthy choices.
F14: Objective 2.2 | M14: Objective 1: Youth- By (DATE), X# youth will be provided with the knowledge and skills needed to prevent teen pregnancy, sexually transmitted infections, harmful use of alcohol and other substances.
F15: Objective 2.3 | M15: Objective 2: Behavior Change- By (DATE), X# of youth will adopt healthy sexual and reproductive behaviors and make better life choices.
F16: Objective 2.4 | M16: Example 2
E17: Goal 3: | M17: Goal: Community members will use improved cookstoves, water, and sanitation to reduce infectious diseases and improve environmental health.
F18: Objective 3.1 | M18: Objective 1: Community Water and Sanitation Systems- By (DATE), X# communities will develop and implement strong action plans for improved water and sanitation.
F19: Objective 3.2 | M19: Objective 2: Cookstoves: By the end of (DATE), X# households or institutions will adopt efficient low fuel emission cook stoves to safeguard the health of their children and family.
F20: Objective 3.3
F21: Objective 3.4

Sheet 4. Timeline
C2: Peace Corps Small Grant Application
C3: 4. Timeline
C5: Directions | E5: Please include a detailed project timeline for your implementation plan. Adjust the timeline below to fit your needs by choosing the appropriate time frame from the dropdown in cell H9. For example, if you are doing a week-long camp, you would change the time from weeks to days by choosing "days" from the dropdown. Describe each activity necessary for project planning and implementation in the "Activity" column, and the person responsible in the column to the right. Indicate when each activity will take place by placing an "X" in the appropriate day, week or month.
E6: Approximate Implementation Period (auto-fills based off of start/end date on Project Classification page):
E7: Months: | F7: ='1. Classification & Budget'!U18 -> 8 | H7: Weeks: | I7: ='1. Classification & Budget'!V18 -> 0 | K7: Days: | L7: ='1. Classification & Budget'!W18 -> 3 | M7: Day 1 | N7: Day 2 | O7: Day 3 | P7: Day 4 | Q7: Day 5 | R7: Day 6 | S7: Day 7 | T7: Day 8 | U7: Day 9 | V7: Day 10 | W7: Day 11 | X7: Day 12 | Y7: Day 13 | Z7: Day 14 | AA7: Day 15 | AB7: Day 16 | AC7: Day 17 | AD7: Day 18 | AE7: Day 19 | AF7: Day 20 | AG7: Day 21 | AH7: Day 22 | AI7: Day 23 | AJ7: Day 24 | AK7: Day 25 | AL7: Day 26 | AM7: Day 27 | AN7: Day 28 | AO7: Day 29 | AP7: Day 30 | AQ7: Day 31 | AR7: Day 32 | AS7: Day 33 | AT7: Day 34 | AU7: Day 35 | AV7: Day 36 | AW7: Day 37 | AX7: Day 38 | AY7: Day 39
E8: Do you want to measure your timeline in days, weeks or months? Your answer to this question will populate the timeline headings below. | M8: Week 1 | N8: Week 2 | O8: Week 3 | P8: Week 4 | Q8: Week 5 | R8: Week 6 | S8: Week 7 | T8: Week 8 | U8: Week 9 | V8: Week 10 | W8: Week 11 | X8: Week 12 | Y8: Week 13 | Z8: Week 14 | AA8: Week 15 | AB8: Week 16 | AC8: Week 17 | AD8: Week 18 | AE8: Week 19 | AF8: Week 20 | AG8: Week 21 | AH8: Week 22 | AI8: Week 23 | AJ8: Week 24 | AK8: Week 25 | AL8: Week 26 | AM8: Week 27 | AN8: Week 28 | AO8: Week 29 | AP8: Week 30 | AQ8: Week 31 | AR8: Week 32 | AS8: Week 33 | AT8: Week 34 | AU8: Week 35 | AV8: Week 36 | AW8: Week 37 | AX8: Week 38 | AY8: Week 39
I9: Months | M9: Month 1 | N9: Month 2 | O9: Month 3 | P9: Month 4 | Q9: Month 5 | R9: Month 6 | S9: Month 7 | T9: Month 8 | U9: Month 9 | V9: Month 10 | W9: Month 11 | X9: Month 12 | Y9: Month 13 | Z9: Month 14 | AA9: Month 15 | AB9: Month 16 | AC9: Month 17 | AD9: Month 18 | AE9: Month 19 | AF9: Month 20 | AG9: Month 21 | AH9: Month 22 | AI9: Month 23 | AJ9: Month 24 | AK9: Month 25 | AL9: Month 26 | AM9: Month 27 | AN9: Month 28 | AO9: Month 29 | AP9: Month 30 | AQ9: Month 31 | AR9: Month 32 | AS9: Month 33 | AT9: Month 34 | AU9: Month 35 | AV9: Month 36 | AW9: Month 37 | AX9: Month 38 | AY9: Month 39
M10: Day, Weeks or Months (headings change automatically according to designation above) | W10: Additional: | AZ10: To see more columns, select columns U to AZ, (by clicking on the "U" and dragging over to "AZ") right click on the selected columns, and then select "Unhide."
E11: Activity | I11: Person(s) Responsible | M11: =IF(ISBLANK($I$9),"",IF($I$9="Days",M7,IF($I$9="Weeks",M8,IF($I$9="Months",M9)))) -> Month 1 | N11: =IF(ISBLANK($I$9),"",IF($I$9="Days",N7,IF($I$9="Weeks",N8,IF($I$9="Months",N9)))) -> Month 2 | O11: Month 3 | P11: Month 4 | Q11: Month 5 | R11: Month 6 | S11: Month 7 | T11: Month 8 | U11: Month 9 | V11: Month 10 | W11: Month 11 | X11: Month 12 | Y11: Month 13 | Z11: Month 14 | AA11: Month 15 | AB11: Month 16 | AC11: Month 17 | AD11: Month 18 | AE11: Month 19 | AF11: Month 20 | AG11: Month 21 | AH11: Month 22 | AI11: Month 23 | AJ11: Month 24 | AK11: Month 25 | AL11: Month 26 | AM11: Month 27 | AN11: Month 28 | AO11: Month 29 | AP11: Month 30 | AQ11: Month 31 | AR11: Month 32 | AS11: Month 33 | AT11: Month 34 | AU11: Month 35 | AV11: Month 36 | AW11: Month 37 | AX11: Month 38 | AY11: Month 39
C12: Example | E12: Pick up materials from the regional capital | I12: Organization president
E13: Form committee and elect health promoters | I13: PCV, community members | M13: X
E14: Project planning | I14: PCV, committee members | M14: X
E15: Solicit funds | I15: PCV and committee president | N15: X | O15: X
E16: Train Health Promoters | I16: PCV | N16: X
E17: Train project participants (mothers) | I17: PCV, committee president,health promoters health post | O17: X | P17: X | Q17: X | R17: X | S17: X | T17: X
E18: House Visits | I18: PCV and health promoters | N18: X | O18: X | P18: X | Q18: X | R18: X | S18: X | T18: X | U18: X | V18: X
E19: Buy and transport materials for improved cook stoves | I19: Municipality of Piura | R19: X | S19: X
E20: Preparation for construction of stoves | I20: Project participants | T20: X
E21: Contruction of Cook stoves | I21: Project participants, mason | U21: X
E22: Monitoring | I22: Health Promoters, PCV, health post | N22: X | O22: X | P22: X | Q22: X | R22: X | S22: X | T22: X | U22: X | V22: X
E23: Evalutation | I23: PCV, health promoters, and all committee members | M23: X | V23: X

Sheet 5. Evaluation Planning
C2: Peace Corps Small Grant Application
C3: 5. Monitoring and Evaluation | R3: Small Grant Indicator Directions
C5: Directions | E5: First, provide information for the global Peace Corps small grants indicators. Then, use the table below to list indicators for each of your objectives. For VAST, SPA, ECPA and FTF, there are also a pre-determined set of indicators which are outlined later in this application. Please be sure to incorporate at least one of the pre-determined program indicators into this section of your project plan. | R5: Volunteers must measure all small grants projects against two indicators: capacity building and new technology and practices.
R6: 1. For the capacity building indicator, first determine your unit of measurement. Are you working with individuals, service providers or an organization/association? For this indicator, choose the one that best fits your project and determine a target for that indicator.
E8: Capacity Development
G10: Men, 25 and older | H10: Women, 25 and older | I10: Men, 15-24 | J10: Women, 15-24 | K10: Boys, 14 and under | L10: Girls, 14 and under | S10: Units of Measurement: Choose which indicator best fits your project. Are you working with individuals, service providers or organizations/associations?
E11: # of individuals who will have increased capacity due to this small grant | G11: 1 | H11: 57 | J11: 11 | K11: 63 | L11: 57 | S11: a. Individual members of the community: The main focus of the Peace Corps, whether directly through the work of Volunteers and their work partners or through those trained by Volunteers, is to build capacities at the individual level so community members are empowered to improve their quality of life, be they individual students, farmers, clients served by a nongovernmental organization (NGO), or others.
E12: # service providers who will have increased capacity due to this small grant
E13: # of community organizations and/or associations that will have increased capacity due to this small grant | G13: 5 | H13: Organizations
S14: b. Service providers, trainers, or multipliers: Strengthening capacities of service providers, trainers, or other multipliers, be they teachers, leaders of an NGO, peer educators, or managers of a farmers’ cooperative, helps ensure local leadership for continuing activities into the future.
E15: New Technology & Practices
G17: Men, 25 and older | H17: Women, 25 and older | I17: Men, 15-24 | J17: Women, 15-24 | K17: Boys, 14 and under | L17: Girls, 14 and under | S17: c. Organizations/Associations: Strengthening organizational capacities, such as management skills within an NGO, helps support other activities in an ongoing, functioning, and supportive environment.
E18: # of individuals who have applied new technologies and/or practices as a result of this grant | G18: 1 | H18: 57 | J18: 11
E19: # of new technologies and/or practices that will have been adopted as a result of this small grant | G19: 2; improved cook stoves, installation of hand washing stations | H19: Technologies | I19: 13 | J19: Practices | R19: 2. For the new technology and practices indicator the community and Volunteer must determine if project participants adopted or changed their behavior according to the project.
S20: Units of Measurement: Two units of measurements for determining the new technology and practices indicator.
E23: Objective | G23: Indicator(s) How will you measure that the objective is achieved? Outline your specific targets (i.e., output and outcome indicators) | I23: Who Who will collect the information to measure success against the indicator? | K23: When When and how often will the information be collected? What data-collection tools will be used? | M23: NOTE: Please limit the text to 20 words or less in the blue "Indicators", "Who", and "When" boxes. | S23: a. Individuals: those people who have been directly impacted by the project and are utilizing new technologies and/or practices as a result of the project.
C24: EXAMPLE | E24: Cookstoves: By the end of XXXX, X# households or institutions will adopt efficient low-fuel emission cook stoves to safeguard the health of their children and families. | G24: 1. # individuals trained on the health benefits of using improved cookstoves; 2. # of individuals trained on the construction and maintenance of improved cookstoves; 3. # of cookstoves (new or rehabilitated) purchased or constructed for households or institutions (e.g. health clinics, schools) with assistance of Volunteers or partners | I24: Volunteer and counterpart/community group | K24: Weekly assessments of progress will be documented by observation and noting progress in a schedule/calendar. | M24: Community members will use improved cookstoves, water, and sanitation to reduce infectious diseases and improve environmental health | N24: GOAL | S24: b. Technologies and practices: determine the number of new technologies and/or practices that have been adopted as a result of this small grant.
D25: 1 | E25: =IF(ISBLANK('3. Goals & Objectives'!G8),"",'3. Goals & Objectives'!G8) -> At the end of Feburary 2014, 30 children under five years of age improve their level of development according to the criteria defined in the Peruvian Development Test. | G25: 1. # of trained mothers in practices of early childhood stimulation; 2. # of mothers who demonstrate the correct use of CRED card; 3. # of mothers who can demonstrate 2 or more activities of early childhood stimulation appropriate for the age of their children; 4. # of mothers who have adopted 2 or more activities of early childhood stimulation appropriate for the age of their children; 5. # of mothers who report at least 3 observable improvements in their children after the adoption of early childhood stimulation practices. | I25: volunteer and personell of health post of pampa elera baja | K25: Monthly check-ups at the health post, monthly house visits to monitor advances in development | M25: =IF(ISBLANK('3. Goals & Objectives'!G7),"",'3. Goals & Objectives'!G7) -> Children under five years of age living in Pampa Elera Alta have optimal health and are at mental and physical development levels appropriate for their age. | N25: GOAL 1 | S25: For example, if the project focuses on gardening, how many participants are expected to adopt new fertilization or planting techniques? If this were a latrine building project, how many community members might incorporate hand washing after using the new latrine?
D26: 1.2 | E26: =IF(ISBLANK('3. Goals & Objectives'!G9),"",'3. Goals & Objectives'!G9) -> At the end of Febuary 2014, 30 mothers observe a decrease in the frequency of acute respitory infections as well as acute diarrhea of their children under five. | G26: 1. # of mothers who adopt at least 3 of the healthy practices to reduce diarrheal illnesses in their children; 2. # of mothers who can identify at least 3 signs and 3 methods of adequate prevention and treatment for cases of respiratory infections, diarrheal illnesses, and malnutrition; 3. # mothers who use and maintain their improved cook stoves correctly and adequately; 4. # of mothers who can properly prepare oral rehydration salts within the home to prevent dehydration; 5. # of mothers who demonstrate the proper technique of hand washing | I26: volunteer, personell of health post of pampa elera baja, and health promoters | K26: Monthly assessments of illnesses by health post and twice-monthly house visits to monitor health of children
D27: 1.3 | E27: =IF(ISBLANK('3. Goals & Objectives'!G10),"",'3. Goals & Objectives'!G10) -> At the end of Febuary 2014, 30 mothers feed their children under five adequate food and nutrition according to the recommendations for their age. | G27: 1. # of mothers who can identify at least 3 practices of complimentary feeding using local products that contain nutrients and vitamins essential for the development of children under age 3; 2. # of mothers who can demonstrate how to prepare nutritional foods using local products; 3. # of mothers who feed their children adequate and balanced meals as recommended for their ages by the Ministry of Health using local products; 4. # of children ages 6-26 months who were once at risk for underheight who now have the appropriate height for their ages. | I27: volunteer, health promoters, and health post of pampa elera baja | K27: Monthly assessments of mothers with infants under 1 year during check ups at health post and twice-monthly house visits to monitor nutrition
D28: 1.4 | E28: =IF(ISBLANK('3. Goals & Objectives'!G11),"",'3. Goals & Objectives'!G11) -> 
D29: 2.1 | E29: =IF(ISBLANK('3. Goals & Objectives'!G13),"",'3. Goals & Objectives'!G13) ->  | M29: =IF(ISBLANK('3. Goals & Objectives'!G12),"",'3. Goals & Objectives'!G12) ->  | N29: GOAL 2
D30: 2.2 | E30: =IF(ISBLANK('3. Goals & Objectives'!G14),"",'3. Goals & Objectives'!G14) -> 
D31: 2.3 | E31: =IF(ISBLANK('3. Goals & Objectives'!G15),"",'3. Goals & Objectives'!G15) -> 
D32: 2.4 | E32: =IF(ISBLANK('3. Goals & Objectives'!G16),"",'3. Goals & Objectives'!G16) -> 
D33: 3.1 | E33: =IF(ISBLANK('3. Goals & Objectives'!G18),"",'3. Goals & Objectives'!G18) ->  | M33: =IF(ISBLANK('3. Goals & Objectives'!G17),"",'3. Goals & Objectives'!G17) ->  | N33: GOAL 3
D34: 3.2 | E34: =IF(ISBLANK('3. Goals & Objectives'!G19),"",'3. Goals & Objectives'!G19) -> 
D35: 3.3 | E35: =IF(ISBLANK('3. Goals & Objectives'!G20),"",'3. Goals & Objectives'!G20) -> 
D36: 3.4 | E36: =IF(ISBLANK('3. Goals & Objectives'!G21),"",'3. Goals & Objectives'!G21) -> 

Sheet DO NO HARM
D2: Peace Corps Small Grant Application
C3: 6. Do No Harm
C5: Directions | D5: In the design of any project, Volunteers and their community organizations should explore potential intended and unintended consequences of the proposed interventions. This should consider the environmental, social, economic, and political aspects of project implementation. In designing projects, Volunteers should investigate potential outcomes of the program in order to minimize negative outcomes. This is a participatory process and includes all stakeholders. The exercise itself may be helpful in project design as it may identify areas of intervention needed to provide an enabling environment for the success of a Peace Corps project.
C8: General | D8: 1) Please report on the results of your "do no harm" discussions. Did you find that there were consequences you hadn't thought about? | G8: The project committee and participating mothers were aware of potential negative consequences that could result from the implementation of the Healthy Homes through Improved Cookstoves project. The main concern of the mothers was possible social tension that might result due to the availability of this project solely to mothers with children under five years of age. Some mothers have already experienced negative social interactions with neighbors and other family members regarding the requirements for participating in the project.
C9: Environmental | D9: 2) If the proposed project is not solely a training project (i.e., if it involves construction, agricultural or reforestation activities, installation of large equipment, etc.), please discuss possible negative environmental impacts with your community. What are potential negative environmental impacts of the project activities? | G9: The sole focus of this project is health promotion and thus, I have decided to focus soley on the most important health issues in Pampa Elera Alta; which are acute respitory infections, acute diarreah and malnutrition. While enviornmental factors such as burning of trash do occur in Pampa Elera Alta, they are not prevelant enough nor do they align with the objectives of this project enough to be considered for behavior change.
C10: Mitigation | D10: 3) For each of the potential negative impacts described in questions 1 and 2, please describe the measures the community will adopt in order to monitor and mitigate against potentially harmful effects. | G10: The negative social outcomes that many mothers fear might result from this project are hard to plan against for the future. The best solution the community could come up with was to focus on making the necessary physical and behavior changes within the home to have the healthiest family possible, regardless of the potential conflicts with friends and family. Also, the mothers have also expressed an interest in sharing the information learned in the educational sessions with their neighbors and family that cannot participate in the project due to a lack of young children in the household so that they can also make the same changes within their homes to improve the health of their families.

Sheet 6. Detailed Budget
C2: Peace Corps Small Grant Application | U2: Project Costs | AA2: Costs that Require Waiver
C3: 7. Detailed Budget (local currency) | U3: All costs funded with Peace Corps small grant funds must be reasonable, necessary, and justified in light of the project activities and objectives. Volunteers should refer to the Peace Corps Small Grant Volunteer Handbook section on "Grant Requirements," which outlines unallowable project costs, costs that require a waiver, and projects that require special consideration. | AA3: Country Directors have authority to waive certain costs that would normally be considered unallowable. These costs are to be included in grants ONLY if deemed appropriate by post staff, and should be waived after thorough review. Please see the Small Grant Volunteer Handbook for further direction and for a template.
D5: Directions | E5: 1 | F5: Fill in the Project Information section at the top of this sheet. Please make sure to enter in the exchange rate. If you are not sure of the exact exchange rate, please enter your best estimate of the anticipated exchange rate for the dates of your project. If you would like to enter amounts directly in U.S. dollars, leave the exchange rate at $1.
U7: Unallowable Costs | AA7: • Giveaways, prizes, and celebrations Generally, grant funds cannot be used to purchase giveaways, prizes, celebrations, or other similar items or activities. However, if the use of grant funds to purchase these items will support the realization of project goals and objectives and the small grants committee supports this use of funds, volunteers may request a waiver of this limitation from the country director.
E8: 2 | F8: As you complete this Detailed Budget, the summary budget below and the budget on the Project Classification page will automatically fill in.
U9: • Land and other capital assets Grant funds cannot be used to purchase land. If grant funds are approved to construct or equip a building, prior to approving the project, the small grants committee must ensure the community has clear title to the land on which the building will be located, has a signed, long-term lease, or an officially approved agreement providing long-term access to the land. If the land is under a long-term lease, the community organization must demonstrate that it will be able to cover any monthly rent required by the landowner.
E10: 3 | F10: Enter a line for each expected cost the community will incur in carrying out the project. You should enter amounts in local currency. If you are filling out the form electronically, fill out all of the blue cells on each line. For the budget category, please select from one of the seven options in the dropdown list. The total cost will fill in automatically by formula. For each item, the total cost should be split between grant amount, community contribution, and third-party contribution based on the proposed funding source for the cost.
AA11: • Motor vehicles and other conveyances Grant funds cannot be used to purchase motor vehicles and other transportation conveyances that are intended primarily for personal use. In limited circumstances, funds may cover the costs of these items if the project clearly demonstrates that the goods are integral to the objectives of a project, intended for shared use, and benefit more than a single individual or business.
E12: 4 | F12: If you need additional rows, there are over 100 additional lines that are "hidden" at the bottom of the worksheet. Unhide the rows by following the instructions at the bottom of the sheet.
U14: • Loan funds Grant funds cannot be used as loan collateral or to supplement a community organization’s revolving credit or loan fund. However, if the community generates income as a result of grant project activities, it may elect to use this income to establish a credit or loan fund in order to continue or expand project activities.
AA16: • Volunteer costs Generally, grant funds may not cover costs to support or benefit Peace Corps Volunteers. Grant funds may not pay for per diem for Volunteers. The country director may issue a waiver for funds to cover modest travel, lodging, and food costs related to a project if the Volunteer is traveling with host country counterparts and such costs are necessary for the success of the project.
D17: Project Information | F17: Project Title: | G17: =IF(ISBLANK('1. Classification & Budget'!H9),"",'1. Classification & Budget'!H9) -> Healthy Homes with Improved Cook Stoves | J17: Project Number: | L17: ='1. Classification & Budget'!Q7&" - "&'1. Classification & Budget'!R7&" - "&'1. Classification & Budget'!S7&" - "&'1. Classification & Budget'!T7 -> PP - - 527 - | U17: • “Sub-grant” projects Recipients of Peace Corps small grant funds may not award project funds to other persons or groups in their community in the form of a secondary small grant/cash prizes/loan. If grant project participants would like to use skills and/or knowledge gained as a result of project activities to design a follow-up project, they should apply for the funding for the second project through the normal Peace Corps small grants approval procedures.
F18: Community Group: | G18: =IF(ISBLANK('1. Classification & Budget'!H14),"",'1. Classification & Budget'!H14) -> Healthy Homes Committee | J18: Project Start Date: | L18: =IF(ISBLANK('1. Classification & Budget'!H18),"",'1. Classification & Budget'!H18) -> 2013-06-01
F19: APCD/Program Manager: | G19: =IF(ISBLANK('1. Classification & Budget'!I27),"",'1. Classification & Budget'!I27) -> Emilia Villanueva | J19: Project Completion Date: | L19: =IF(ISBLANK('1. Classification & Budget'!N18),"",'1. Classification & Budget'!N18) -> 2014-02-03 | AA19: • International travel Allowing international travel to be included in a project must be considered very carefully. In most cases, the Peace Corps will not approve international travel waivers due to potential logistic and liability issues. Peace Corps staff considers the following issues when deciding whether to approve a waiver for this cost: - Where is the training component? Take into consideration the distance necessary to travel. If the training is simply across a border, and participants may easily drive to the training, a waiver could make sense. However, if airfare or several hours of travel is included, a waiver will not be considered. - Will the attendees learn something new and transfer skills to others when they return? - Does the project meet the small grants requirement to be sustainable and to build local self-reliance? - Is this project making the best use of small grants funds? Could the participants/conference attendees and their organization get the same benefit from attending a conference or training in country? - What are the potential logistical problems, i.e., if a person misses their plane and has to pay extra money to get home, how will this be paid for? - Who is responsible or liable for the person and/or their actions while traveling? – If Peace Corps is funding the travel, is the agency liable for anything that goes wrong when the attendees are in the States or another country?
F20: Requested Project Amount (in local currency): | G20: 8261.15 | J20: % Community Contribution: | L20: =IF(SUM(K33+M33)=0,"",SUM(K33+M33)/SUM(I33+K33+M33+O33+Q33)) -> 0.2624541829 | U20: • Contingency funds/multiple funding sources Grant budgets should not include funds for undefined or unexpected “contingencies” or similar cost categories (e.g., “unexpected costs”). This includes, but is not limited to, applying for funding from multiple grants sources.
F21: Exchange rate: $1US = | G21: 2.7 | J21: Total Project Cost USD: | L21: =SUM(I33+K33+M33+O33+Q33) -> 4819.888889
U22: • Alcoholic beverages Grant funds may not be used to purchase alcoholic beverages.
H23: Grant Amount | J23: Community Contribution | N23: Third-Party Contribution (if applicable)
J24: Cash | L24: In-Kind | N24: Cash | P24: In-Kind
D25: Budget Summary | F25: Category | H25: Local Currency | I25: $US | J25: Local Currency | K25: $US | L25: Local Currency | M25: $US | N25: Local Currency | O25: $US | P25: Local Currency | Q25: $US | U25: • Recurring costs Grant funds cannot be used to cover regularly recurring monthly expenses (e.g., rent, telephone service and utilities, Iinternet service) beyond an initial start-up period of three months. Calculations of in-kind contributions should not include recurring costs beyond three months. If start-up costs will be covered by the grant, there must be a clear sustainability plan demonstrating how the community will pay for the costs beyond the start-up period.
F26: Labor | H26: =SUMIF($I$39:$I$237,"Labor",$M$39:$M$237) -> 2275 | I26: =H26/G$21 -> 842.5925926 | J26: =SUMIF($I$39:$I$237,"Labor",$N$39:$N$237) -> 0 | K26: =J26/G$21 -> 0 | L26: =SUMIF($I$39:$I$237,"Labor",$O$39:$O$237) -> 410.7 | M26: =L26/G$21 -> 152.1111111 | N26: =SUMIF($I$39:$I$237,"Labor",$P$39:$P$237) -> 0 | O26: =N26/G$21 -> 0 | P26: =SUMIF($I$39:$I$237,"Labor",$Q$39:$Q$237) -> 0 | Q26: =P26/G$21 -> 0
F27: Equipment | H27: =SUMIF($I$39:$I$237,"Equipment",$M$39:$M$237) -> 0 | I27: =H27/G$21 -> 0 | J27: =SUMIF($I$39:$I$237,"Equipment",$N$39:$N$237) -> 0 | K27: 0 | L27: =SUMIF($I$39:$I$237,"Equipment",$O$39:$O$237) -> 0 | M27: 0 | N27: =SUMIF($I$39:$I$237,"Equipment",$P$39:$P$237) -> 0 | O27: 0 | P27: =SUMIF($I$39:$I$237,"Equipment",$Q$39:$Q$237) -> 0 | Q27: 0
F28: Materials/Supplies | H28: =SUMIF($I$39:$I$237,"Materials/Supplies",$M$39:$M$237) -> 7101 | I28: 2630 | J28: =SUMIF($I$39:$I$237,"Materials/Supplies",$N$39:$N$237) -> 0 | K28: 0 | L28: =SUMIF($I$39:$I$237,"Materials/Supplies",$O$39:$O$237) -> 2504.8 | M28: 927.7037037 | N28: =SUMIF($I$39:$I$237,"Materials/Supplies",$P$39:$P$237) -> 0 | O28: 0 | P28: =SUMIF($I$39:$I$237,"Materials/Supplies",$Q$39:$Q$237) -> 0 | Q28: 0
F29: Land/Venue Rental | H29: =SUMIF($I$39:$I$237,"Land/Venue Rental",$M$39:$M$237) -> 0 | I29: 0 | J29: =SUMIF($I$39:$I$237,"Land/Venue Rental",$N$39:$N$237) -> 0 | K29: 0 | L29: =SUMIF($I$39:$I$237,"Land/Venue Rental",$O$39:$O$237) -> 500 | M29: 185.1851852 | N29: =SUMIF($I$39:$I$237,"Land/Venue Rental",$P$39:$P$237) -> 0 | O29: 0 | P29: =SUMIF($I$39:$I$237,"Land/Venue Rental",$Q$39:$Q$237) -> 0 | Q29: 0
F30: Travel/Per Diem/Food/Lodging | H30: =SUMIF($I$39:$I$237,"Travel/Per Diem/Food/Lodging",$M$39:$M$237) -> 0 | I30: 0 | J30: =SUMIF($I$39:$I$237,"Travel/Per Diem/Food/Lodging",$N$39:$N$237) -> 0 | K30: 0 | L30: =SUMIF($I$39:$I$237,"Travel/Per Diem/Food/Lodging",$O$39:$O$237) -> 0 | M30: 0 | N30: =SUMIF($I$39:$I$237,"Travel/Per Diem/Food/Lodging",$P$39:$P$237) -> 0 | O30: 0 | P30: =SUMIF($I$39:$I$237,"Travel/Per Diem/Food/Lodging",$Q$39:$Q$237) -> 0 | Q30: 0
F31: Materials Transport | H31: =SUMIF($I$39:$I$237,"Materials transport",$M$39:$M$237) -> 222.2 | I31: 82.2962963 | J31: =SUMIF($I$39:$I$237,"Materials transport",$N$39:$N$237) -> 0 | K31: 0 | L31: =SUMIF($I$39:$I$237,"Materials transport",$O$39:$O$237) -> 0 | M31: 0 | N31: =SUMIF($I$39:$I$237,"Materials transport",$P$39:$P$237) -> 0 | O31: 0 | P31: =SUMIF($I$39:$I$237,"Materials transport",$Q$39:$Q$237) -> 0 | Q31: 0 | U31: Projects that Require Special Consideration
F32: Other | H32: =SUMIF($I$39:$I$237,"Other",$M$39:$M$237) -> 0 | I32: 0 | J32: =SUMIF($I$39:$I$237,"Other",$N$39:$N$237) -> 0 | K32: 0 | L32: =SUMIF($I$39:$I$237,"Other",$O$39:$O$237) -> 0 | M32: 0 | N32: =SUMIF($I$39:$I$237,"Other",$P$39:$P$237) -> 0 | O32: 0 | P32: =SUMIF($I$39:$I$237,"Other",$Q$39:$Q$237) -> 0 | Q32: 0
F33: Total | H33: =SUM(H26:H32) -> 9598.2 | I33: 3554.888889 | J33: 0 | K33: 0 | L33: 3415.5 | M33: 1265 | N33: 0 | O33: 0 | P33: 0 | Q33: 0
U34: • Scholarships: Scholarship programs can be effective tools to encourage education and increase retention in schools. When creating a scholarship program, it is important to plan strategically for the long-term administration and sustainability of the program. This process involves significant planning and the inclusion of host country nationals and local organizations. The following key points must be addressed in order for a scholarship project to be approved for funding:
D37: Detailed Budget | F37: Line # | G37: Item Description | I37: Budget Category | J37: Unit Cost | K37: Quantity | L37: Total Cost | M37: Grant Amount | N37: Community Contribution | P37: Third-Party Contribution (if applicable)
N38: Cash | O38: In-Kind | P38: Cash | Q38: In-Kind | V38: A small grants application must be submitted. Applications must be submitted consistent with small grants program guidelines outlined in this handbook. The application should spell out very specifically The process by which host Country nationals will identify, evaluate, and select recipients and it should show A plan for sustainability.
F39: 1 | G39: posters | I39: Materials/Supplies | J39: 0.11 | K39: 50 | L39: =J39*K39 -> 5.5 | M39: 5.5
F40: 2 | G40: pens | I40: Materials/Supplies | J40: 0.74 | K40: 15 | L40: =J40*K40 -> 11.1 | M40: 11.1
F41: 3 | G41: paper | I41: Materials/Supplies | J41: 5.5 | K41: 1 | L41: =J41*K41 -> 5.5 | M41: 5.5
F42: 4 | G42: masking tape | I42: Materials/Supplies | J42: 1.6 | K42: 2 | L42: 3.2 | M42: 3.2 | V42: The program should become self-sustaining. The program’s survival—financial and administrative—should not be dependent on Volunteers or small grants funding.
F43: 5 | G43: food for demonstrations | I43: Materials/Supplies | J43: 13.3 | K43: 18 | L43: 239.4 | O43: 239.4
F44: 6 | G44: snacks | I44: Materials/Supplies | J44: 0.26 | K44: 210 | L44: =J44*K44 -> 54.6 | M44: 54.6 | V44: Help organize a selection committee. Creating a committee that will plan how the scholarship program will operate is one of the most important steps. The ultimate goal for the Volunteer should be to assist the community in developing a selection committee and process made- up entirely of host country participants. Volunteers should not be part of the selection process.
F45: 7 | G45: copies | I45: Materials/Supplies | J45: 0.04 | K45: 2000 | L45: 80 | M45: 80
F46: 8 | G46: iron chimney tube 12 cm by 2 m | I46: Materials/Supplies | J46: 22.2 | K46: 74 | L46: 1642.8 | M46: 1642.8
F47: 9 | G47: iron sheet 4.4 mm in thickness for stove top | I47: Materials/Supplies | J47: 20.4 | K47: 35 | L47: 714 | M47: 714
F48: 10 | G48: labor to cut iron sheet into stove tops of 1m x .40cm with four holes of 20, 18, 15, and 10cm in diameter | I48: Labor | J48: 45 | K48: 35 | L48: 1575 | M48: 1575
F49: 11 | G49: labor to cut the chimney tops | I49: Materials/Supplies | J49: 35 | K49: 35 | L49: =J49*K49 -> 1225 | M49: 1225 | V49: Selection process. Volunteers must not be in A position where they may be perceived as handing out money or be involved in The Selection or evaluation of students as recipients of money. The project must demonstrate that only host Country nationals should be in charge of The process of nomination, selection, and administration of any funds used for this purpose.
F50: 12 | G50: metal clamp | I50: Materials/Supplies | J50: 2.22 | K50: 35 | L50: =J50*K50 -> 77.7 | M50: 77.7
F51: 13 | G51: wire | I51: Materials/Supplies | J51: 1.85 | K51: 35 | L51: =J51*K51 -> 64.75 | M51: 64.75
F52: 14 | G52: cement | I52: Materials/Supplies | J52: 5.9 | K52: 222 | L52: =J52*K52 -> 1309.8 | M52: 1309.8
F53: 15 | G53: skilled labor: mason | I53: Labor | J53: 20 | K53: 35 | L53: 700 | M53: 700 | V53: Host country nationals. Host country representatives from all levels—from the recipients’ families to the local or national governments—should be involved.
F54: 16 | G54: pre-made adobe | I54: Materials/Supplies | J54: 0.18 | K54: 5250 | L54: 945 | O54: 945
F55: 17 | G55: cover for chimney to prevent rain damage | I55: Materials/Supplies | J55: 8.5 | K55: 74 | L55: 629 | M55: 629 | V55: No scholarship project may last longer than a school year. No scholarship project may last longer than the current school year. If the community would like to have scholarships again the following year, a new small grants application must be submitted.
F56: 18 | G56: appropriate dirt for construction of cook stove | I56: Materials/Supplies | J56: 0.74 | K56: 500 | L56: 370 | O56: 370
F57: 19 | G57: pre made mud for construction of cookstove | I57: Materials/Supplies | J57: 1.1 | K57: 500 | L57: 550 | O57: 550
F58: 20 | G58: glass bottles | I58: Materials/Supplies | J58: 0.37 | K58: 500 | L58: 185 | O58: 185
F59: 21 | G59: salt | I59: Materials/Supplies | J59: 0.18 | K59: 50 | L59: 9 | O59: 9 | V59: Expectations and evaluations. Set realistic expectations and evaluate how well these expectations have been met during the first year. In subsequent years, the scholarship program committee should meet annually to evaluate the previous year and make any changes to the next year’s strategy.
F60: 22 | G60: sugar | I60: Materials/Supplies | J60: 1.03 | K60: 50 | L60: 51.5 | O60: 51
F61: 23 | G61: unskilled labor to assist mason | I61: Labor | J61: 5.55 | K61: 74 | L61: 410.7 | O61: 410.7
F62: 24 | G62: folder | I62: Materials/Supplies | J62: 5 | K62: 8 | L62: 40 | M62: 40
F63: 25 | G63: notebook | I63: Materials/Supplies | J63: 3.5 | K63: 8 | L63: 28 | M63: 28 | V63: Completion reports must be sent in as well as any extra money. Scholarship reporting requirements are the same as small grants requirements (i.e., completion report, receipts with financial accounting summary). At the end of each year/project, as with all small grants projects, any unused funds should be returned to the appropriate small grant funding source.
F64: 26 | G64: nail trimmer | I64: Materials/Supplies | J64: 0.74 | K64: 35 | L64: 25.9 | O64: 25.9
F65: 27 | G65: utencil holder | I65: Materials/Supplies | J65: 3.7 | K65: 35 | L65: 129.5 | O65: 129.5
F66: 28 | G66: hand towel | I66: Materials/Supplies | J66: 1.48 | K66: 35 | L66: 51.8 | M66: 51.8
F67: 29 | G67: transporte | I67: Materials transport | J67: 222.2 | K67: 1 | L67: 222.2 | M67: 222.2
F68: 30 | G68: tin for water to wash hands | I68: Materials/Supplies | J68: 4.44 | K68: 35 | L68: 155.4 | M68: 155.4
F69: 31 | G69: water jug to hold water for hand washing | I69: Materials/Supplies | J69: 2.97 | K69: 35 | L69: 103.95 | M69: 103.95 | U69: • Training and Skills Building Camps: Volunteers may provide training and skills building in a camp-like setting and, under certain conditions, camps may qualify for small grant support. Appropriate roles for Volunteers include developing technical content and curricula, creating a learning environment, providing training to prepare camp counselors to lead camp sessions, supporting community-led fundraising efforts, and assistance with planning and logistics. Camps supported by small grants should not focus solely on sports or recreational activities.
F70: 32 | G70: plastic bucket to catch water for hand washing | I70: Materials/Supplies | J70: 2.22 | K70: 35 | L70: 77.7 | M70: 77.7
F71: 33 | G71: room for trainings | I71: Land/Venue Rental | J71: 20 | K71: 25 | L71: 500 | O71: 500
F72: 34 | G72: uniforms for health promoters | I72: Materials/Supplies | J72: 22.2 | K72: 8 | L72: 177.6 | M72: 177.6
F73: 35 | G73: pens | I73: Materials/Supplies | J73: 1.7 | K73: 8 | L73: 13.6 | M73: 13.6
F74: 36 | G74: Iron galvanized sheet 1/27mm with tempered platina | I74: Materials/Supplies | J74: 18 | K74: 35 | L74: 630 | M74: 630
F75: 37 | L75: 0 | U75: Small grant projects for camp- related activities should include the following:
F76: 38 | L76: 0
F77: 39 | L77: 0 | V77: • Clear project description with goals and objectives; • Community buy-in, including community and counterpart contributions to cover up to 25 percent of the project cost; • Funds requested for infrastructure, equipment, and materials should support the training to be provided, and not be included as the principal justification for grant support; • Grant funds cannot be used to purchase giveaways, commemorative mugs, or prizes; when these items are considered essential to the success of a training project, funds to purchase them should contributed by the community or a third-party organization; • Monitoring and reporting indicators that will measure project outcomes; • Follow-up plans for sharing the learning of campers with peers and the community at large and applying the skills learned during the camp experience in the community throughout the year; • Activities should generally take place within the community and not require travel on the part of the Volunteer or camp participants; • Camps must be safe and should make parents/guardians aware of activities involved; • Staffing of the camp should be well planned, as enough staff must be present to manage all participants; • As with any small grant, a community or organization should assume responsibility for designing the camp, submitting the application, managing the funds, running the camp, and completing reporting requirements, assisted by the Volunteer.
F78: 40 | L78: 0
F79: 41 | L79: 0
F80: 42 | L80: 0
F81: 43 | L81: 0
F82: 44 | L82: 0
F83: 45 | L83: 0
F84: 46 | L84: 0
F85: 47 | L85: 0
F86: 48 | L86: 0
F87: 49 | L87: 0
F88: 50 | L88: 0
F89: 51 | L89: 0
F90: 52 | L90: 0
F91: 53 | L91: 0
F92: 54 | L92: 0
F93: 55 | L93: 0
F94: 56 | L94: 0
F95: 57 | L95: 0
F96: 58 | L96: 0
F97: 59 | L97: 0
F98: 60 | L98: 0
F99: 61 | L99: 0
F100: 62 | L100: 0
F101: 63 | L101: 0
F102: 64 | L102: 0
F103: 65 | L103: 0
F104: 66 | L104: 0
F105: 67 | L105: =J105*K105 -> 0
F106: 68 | L106: 0
F107: 69 | L107: 0
F108: 70 | L108: 0
F109: 71 | L109: 0
F110: 72 | L110: 0
F111: 73 | L111: 0
F112: 74 | L112: 0
F113: 75 | L113: 0
F114: 76 | L114: 0
F115: 77 | L115: 0
F116: 78 | L116: 0
F117: 79 | L117: 0
F118: 80 | L118: 0
F119: 81 | L119: 0
F120: 82 | L120: 0
F121: 83 | L121: 0
F122: 84 | L122: 0
F123: 85 | L123: 0
F124: 86 | L124: 0
F125: 87 | L125: 0
F126: 88 | L126: 0
F127: 89 | L127: 0
F128: 90 | L128: 0
F129: 91 | L129: 0
F130: 92 | L130: 0
F131: 93 | L131: 0
F132: 94 | L132: 0
F133: 95 | L133: 0
F134: 96 | L134: 0
F135: 97 | L135: 0
F136: 98 | L136: 0
F137: 99 | L137: 0
F138: 100 | L138: 0
F139: 101 | L139: 0
F140: 102 | L140: 0
F141: 103 | L141: 0
F142: 104 | L142: 0
F143: 105 | L143: 0
F144: 106 | L144: 0
F145: 107 | L145: 0
F146: 108 | L146: 0
F147: 109 | L147: 0
F148: 110 | L148: 0
F149: 111 | L149: 0
F150: 112 | L150: 0
F151: 113 | L151: 0
F152: 114 | L152: 0
F153: 115 | L153: 0
F154: 116 | L154: 0
F155: 117 | L155: 0
F156: 118 | L156: 0
F157: 119 | L157: 0
F158: 120 | L158: 0
F159: 121 | L159: 0
F160: 122 | L160: 0
F161: 123 | L161: 0
F162: 124 | L162: 0
F163: 125 | L163: 0
F164: 126 | L164: 0
F165: 127 | L165: 0
F166: 128 | L166: 0
F167: 129 | L167: 0
F168: 130 | L168: 0
F169: 131 | L169: =J169*K169 -> 0
F170: 132 | L170: 0
F171: 133 | L171: 0
F172: 134 | L172: 0
F173: 135 | L173: 0
F174: 136 | L174: 0
F175: 137 | L175: 0
F176: 138 | L176: 0
F177: 139 | L177: 0
F178: 140 | L178: 0
F179: 141 | L179: 0
F180: 142 | L180: 0
F181: 143 | L181: 0
F182: 144 | L182: 0
F183: 145 | L183: 0
F184: 146 | L184: 0
F185: 147 | L185: 0
F186: 148 | L186: 0
F187: 149 | L187: 0
F188: 150 | L188: 0
F189: 151 | L189: 0
F190: 152 | L190: 0
F191: 153 | L191: 0
F192: 154 | L192: 0
F193: 155 | L193: 0
F194: 156 | L194: 0
F195: 157 | L195: 0
F196: 158 | L196: 0
F197: 159 | L197: 0
F198: 160 | L198: 0
F199: 161 | L199: 0
F200: 162 | L200: 0
F201: 163 | L201: 0
F202: 164 | L202: 0
F203: 165 | L203: 0
F204: 166 | L204: 0
F205: 167 | L205: 0
F206: 168 | L206: 0
F207: 169 | L207: 0
... 31 more rows

Sheet Grant Selection Menu
D2: Peace Corps Small Grant Application
D3: Grant Type Selection Menu
E5: Directions | F5: Each funding source at Peace Corps has specific application requirements. Select the funding source through which your project will be funded below to provide the information required by that program. Please note that not all funding sources are available at every post. If you are unsure of which programs are available in your country, please consult with post staff.

Sheet 9. PCPP - Referrals
C2: Peace Corps Small Grant Application
C3: PCPP Referral Contacts
D4: Directions | F4: If you are applying to World Connect or another non-governmental organization, please provide only that contact information below.
I6: Enter Street Address if e-mail is not available
D7: Relationship to Volunteer | E7: Title | F7: First Name | G7: Last Name | H7: E-Mail | I7: Street Address | J7: City | K7: State | L7: Zip Code
D8: World Connect
N36: To unhide more rows, select row 36 and 86, right click and choose "unhide."

Sheet SPA Menu
C2: Peace Corps Small Grant Application
C3: Small Project Assistance (SPA) Indicators and Environmental Review Forms
D5: Directions | E5: All SPA projects must complete an environmental review and provide anticipated indicator data. The sections below explain what is required for each section.

Sheet 8. SPA Projects
N1: No Indicator | Y1: No Indicator | Z1: Yes
C2: Peace Corps Small Grant Completion Report | Z2: No
C3: Peace Corps Small Grants Application
D5: SPA Indicators
D7: Directions: | E7: These data will be transmitted to Peace Corps/Washington to be used for internal Peace Corps reporting and for inclusion in the SPA annual report submitted to USAID/Washington. Information may also be shared with the in-country USAID Mission. Choose the Program Element that the project is being funded under from the drop-down list below. Once you choose the Program Element, the indicators for that Program Element will appear. Please fill in information for the indicators relevant to your project.
L8: =IF(AND(OR(E10="Panama",E10="Costa Rica",E10="Guatemala",E10="Nicaragua",E10="El Salvador"),E12="2.2.3, Local Government and Decentralization"),"Is this project being funded by Central America Regional Security Intiative (CARSI) funding?","") ->  | R8: =IF(P9="Yes","If you marked any CARSI risk factors as being relevant to the project, please explain how your project addressed these risk factors","") -> 
D10: Country:
L11: =IF(P9="Yes","Then please make sure to fill out information for the indicators below that say 'CARSI' (as they apply to your project) and also please answer the question about risk factors to the right.","") -> 
D12: Program Element:
D14: Example: | E14: # of individuals who received a benefit from the project | K14: 12 | L14: Men 25 and older | M14: 15 | N14: Women 25 and older | O14: 5 | P14: Men 15-24 | Q14: 10 | R14: Women 15-24 | T14: Boys 14 and under | V14: Girls 14 and under
D15: =IF(ISNUMBER(MATCH(E15,StandardIndicators,0)),IF(ISBLANK(INDIRECT("'SPA Elements and Indicators'!P"&MATCH(E15,StandardIndicators,0))),"",INDIRECT("'SPA Elements and Indicators'!P"&MATCH(E15,StandardIndicators,0))),"") ->  | E15: =IF(ISBLANK($E$12),"",INDIRECT("'SPA Elements and Indicators'!B"&MATCH(LEFT($E$12,5),'SPA Elements and Indicators'!A:A,0))) ->  | L15: =IF(ISNUMBER(MATCH(E15,StandardIndicators,0)),IF(ISBLANK(INDIRECT("'SPA Elements and Indicators'!J"&MATCH(E15,StandardIndicators,0))),"",INDIRECT("'SPA Elements and Indicators'!J"&MATCH(E15,StandardIndicators,0))),IF(ISNUMBER(MATCH(E15,'Custom SPA Indicators Labels'!B$1:B$119,0)),IF(ISBLANK(VLOOKUP(E15,'Custom SPA Indicators Labels'!B$1:H$119,2,FALSE)),"",VLOOKUP(E15,'Custom SPA Indicators Labels'!B$1:H$119,2,FALSE)),"")) ->  | N15: =IF(ISNUMBER(MATCH(E15,StandardIndicators,0)),IF(ISBLANK(INDIRECT("'SPA Elements and Indicators'!K"&MATCH(E15,StandardIndicators,0))),"",INDIRECT("'SPA Elements and Indicators'!K"&MATCH(E15,StandardIndicators,0))),IF(ISNUMBER(MATCH(E15,'Custom SPA Indicators Labels'!B$1:B$119,0)),IF(ISBLANK(VLOOKUP(E15,'Custom SPA Indicators Labels'!B$1:H$119,3,FALSE)),"",VLOOKUP(E15,'Custom SPA Indicators Labels'!B$1:H$119,3,FALSE)),"")) ->  | P15: =IF(ISNUMBER(MATCH(E15,StandardIndicators,0)),IF(ISBLANK(INDIRECT("'SPA Elements and Indicators'!L"&MATCH(E15,StandardIndicators,0))),"",INDIRECT("'SPA Elements and Indicators'!L"&MATCH(E15,StandardIndicators,0))),IF(ISNUMBER(MATCH(E15,'Custom SPA Indicators Labels'!B$1:B$119,0)),IF(ISBLANK(VLOOKUP(E15,'Custom SPA Indicators Labels'!B$1:H$119,4,FALSE)),"",VLOOKUP(E15,'Custom SPA Indicators Labels'!B$1:H$119,4,FALSE)),"")) ->  | R15: =IF(ISNUMBER(MATCH(E15,StandardIndicators,0)),IF(ISBLANK(INDIRECT("'SPA Elements and Indicators'!M"&MATCH(E15,StandardIndicators,0))),"",INDIRECT("'SPA Elements and Indicators'!M"&MATCH(E15,StandardIndicators,0))),IF(ISNUMBER(MATCH(E15,'Custom SPA Indicators Labels'!B$1:B$119,0)),IF(ISBLANK(VLOOKUP(E15,'Custom SPA Indicators Labels'!B$1:H$119,5,FALSE)),"",VLOOKUP(E15,'Custom SPA Indicators Labels'!B$1:H$119,5,FALSE)),"")) ->  | T15: =IF(ISNUMBER(MATCH(E15,StandardIndicators,0)),IF(ISBLANK(INDIRECT("'SPA Elements and Indicators'!N"&MATCH(E15,StandardIndicators,0))),"",INDIRECT("'SPA Elements and Indicators'!N"&MATCH(E15,StandardIndicators,0))),IF(ISNUMBER(MATCH(E15,'Custom SPA Indicators Labels'!B$1:B$119,0)),IF(ISBLANK(VLOOKUP(E15,'Custom SPA Indicators Labels'!B$1:H$119,6,FALSE)),"",VLOOKUP(E15,'Custom SPA Indicators Labels'!B$1:H$119,6,FALSE)),"")) ->  | V15: =IF(ISNUMBER(MATCH(E15,StandardIndicators,0)),IF(ISBLANK(INDIRECT("'SPA Elements and Indicators'!O"&MATCH(E15,StandardIndicators,0))),"",INDIRECT("'SPA Elements and Indicators'!O"&MATCH(E15,StandardIndicators,0))),IF(ISNUMBER(MATCH(E15,'Custom SPA Indicators Labels'!B$1:B$119,0)),IF(ISBLANK(VLOOKUP(E15,'Custom SPA Indicators Labels'!B$1:H$119,7,FALSE)),"",VLOOKUP(E15,'Custom SPA Indicators Labels'!B$1:H$119,7,FALSE)),"")) -> 
E16: =IF(ISBLANK($E$12),"",IF(OR(ISBLANK(INDIRECT("'SPA Elements and Indicators'!B"&MATCH(E15,StandardIndicators,0)+1)),ISNA(INDIRECT("'SPA Elements and Indicators'!B"&MATCH(E15,StandardIndicators,0)+1))),X16,W16)) ->  | L16: =IF(ISNUMBER(MATCH(E16,StandardIndicators,0)),IF(ISBLANK(INDIRECT("'SPA Elements and Indicators'!J"&MATCH(E16,StandardIndicators,0))),"",INDIRECT("'SPA Elements and Indicators'!J"&MATCH(E16,StandardIndicators,0))),IF(ISNUMBER(MATCH(E16,'Custom SPA Indicators Labels'!B$1:B$119,0)),IF(ISBLANK(VLOOKUP(E16,'Custom SPA Indicators Labels'!B$1:H$119,2,FALSE)),"",VLOOKUP(E16,'Custom SPA Indicators Labels'!B$1:H$119,2,FALSE)),"")) ->  | N16: =IF(ISNUMBER(MATCH(E16,StandardIndicators,0)),IF(ISBLANK(INDIRECT("'SPA Elements and Indicators'!K"&MATCH(E16,StandardIndicators,0))),"",INDIRECT("'SPA Elements and Indicators'!K"&MATCH(E16,StandardIndicators,0))),IF(ISNUMBER(MATCH(E16,'Custom SPA Indicators Labels'!B$1:B$119,0)),IF(ISBLANK(VLOOKUP(E16,'Custom SPA Indicators Labels'!B$1:H$119,3,FALSE)),"",VLOOKUP(E16,'Custom SPA Indicators Labels'!B$1:H$119,3,FALSE)),"")) ->  | P16: =IF(ISNUMBER(MATCH(E16,StandardIndicators,0)),IF(ISBLANK(INDIRECT("'SPA Elements and Indicators'!L"&MATCH(E16,StandardIndicators,0))),"",INDIRECT("'SPA Elements and Indicators'!L"&MATCH(E16,StandardIndicators,0))),IF(ISNUMBER(MATCH(E16,'Custom SPA Indicators Labels'!B$1:B$119,0)),IF(ISBLANK(VLOOKUP(E16,'Custom SPA Indicators Labels'!B$1:H$119,4,FALSE)),"",VLOOKUP(E16,'Custom SPA Indicators Labels'!B$1:H$119,4,FALSE)),"")) ->  | R16: =IF(ISNUMBER(MATCH(E16,StandardIndicators,0)),IF(ISBLANK(INDIRECT("'SPA Elements and Indicators'!M"&MATCH(E16,StandardIndicators,0))),"",INDIRECT("'SPA Elements and Indicators'!M"&MATCH(E16,StandardIndicators,0))),IF(ISNUMBER(MATCH(E16,'Custom SPA Indicators Labels'!B$1:B$119,0)),IF(ISBLANK(VLOOKUP(E16,'Custom SPA Indicators Labels'!B$1:H$119,5,FALSE)),"",VLOOKUP(E16,'Custom SPA Indicators Labels'!B$1:H$119,5,FALSE)),"")) ->  | T16: =IF(ISNUMBER(MATCH(E16,StandardIndicators,0)),IF(ISBLANK(INDIRECT("'SPA Elements and Indicators'!N"&MATCH(E16,StandardIndicators,0))),"",INDIRECT("'SPA Elements and Indicators'!N"&MATCH(E16,StandardIndicators,0))),IF(ISNUMBER(MATCH(E16,'Custom SPA Indicators Labels'!B$1:B$119,0)),IF(ISBLANK(VLOOKUP(E16,'Custom SPA Indicators Labels'!B$1:H$119,6,FALSE)),"",VLOOKUP(E16,'Custom SPA Indicators Labels'!B$1:H$119,6,FALSE)),"")) ->  | V16: =IF(ISNUMBER(MATCH(E16,StandardIndicators,0)),IF(ISBLANK(INDIRECT("'SPA Elements and Indicators'!O"&MATCH(E16,StandardIndicators,0))),"",INDIRECT("'SPA Elements and Indicators'!O"&MATCH(E16,StandardIndicators,0))),IF(ISNUMBER(MATCH(E16,'Custom SPA Indicators Labels'!B$1:B$119,0)),IF(ISBLANK(VLOOKUP(E16,'Custom SPA Indicators Labels'!B$1:H$119,7,FALSE)),"",VLOOKUP(E16,'Custom SPA Indicators Labels'!B$1:H$119,7,FALSE)),"")) ->  | W16: =IF(MATCH(LEFT(E$12,5),'SPA Elements and Indicators'!A:A,0)+ROW()-16<MATCH(LEFT(INDIRECT("'Lookup'!B"&MATCH(E$12,Lookup!B:B,0)+1),5),'SPA Elements and Indicators'!A:A,0),INDIRECT("'SPA Elements and Indicators'!B"&MATCH(LEFT(E$12,5),'SPA Elements and Indicators'!A:A,0)+ROW()-15),"") ->  | X16: =IF(EXACT(INDIRECT("'Custom SPA Indicators'!B"&MATCH(LEFT(E$12,5),'Custom SPA Indicators'!A:A,0)+ROW()-Y16),Y$1),"",Z16) ->  | Y16: =MATCH(INDIRECT("'SPA Elements and Indicators'!B"&MATCH(LEFT(INDIRECT("'Lookup'!B"&MATCH(E$12,Lookup!B:B,0)+1),5),'SPA Elements and Indicators'!A:A,0)-2),E:E,0) ->  | Z16: =IF(MATCH(LEFT(E$12,5),'Custom SPA Indicators'!A:A,0)+ROW()-MATCH(INDIRECT("'SPA Elements and Indicators'!B"&MATCH(LEFT(INDIRECT("'Lookup'!B"&MATCH(E$12,Lookup!B:B,0)+1),5),'SPA Elements and Indicators'!A:A,0)-2),E:E,0)<MATCH(LEFT(INDIRECT("'Lookup'!B"&MATCH(E$12,Lookup!B:B,0)+1),5),'Custom SPA Indicators'!A:A,0),INDIRECT("'Custom SPA Indicators'!B"&MATCH(LEFT(E$12,5),'Custom SPA Indicators'!A:A,0)+ROW()-MATCH(INDIRECT("'SPA Elements and Indicators'!B"&MATCH(LEFT(INDIRECT("'Lookup'!B"&MATCH(E$12,Lookup!B:B,0)+1),5),'SPA Elements and Indicators'!A:A,0)-2),E:E,0)),"") -> 
L17: =IF(ISNUMBER(MATCH(E17,StandardIndicators,0)),IF(ISBLANK(INDIRECT("'SPA Elements and Indicators'!J"&MATCH(E17,StandardIndicators,0))),"",INDIRECT("'SPA Elements and Indicators'!J"&MATCH(E17,StandardIndicators,0))),IF(ISNUMBER(MATCH(E17,'Custom SPA Indicators Labels'!B$1:B$119,0)),IF(ISBLANK(VLOOKUP(E17,'Custom SPA Indicators Labels'!B$1:H$119,2,FALSE)),"",VLOOKUP(E17,'Custom SPA Indicators Labels'!B$1:H$119,2,FALSE)),"")) ->  | N17: =IF(ISNUMBER(MATCH(E17,StandardIndicators,0)),IF(ISBLANK(INDIRECT("'SPA Elements and Indicators'!K"&MATCH(E17,StandardIndicators,0))),"",INDIRECT("'SPA Elements and Indicators'!K"&MATCH(E17,StandardIndicators,0))),IF(ISNUMBER(MATCH(E17,'Custom SPA Indicators Labels'!B$1:B$119,0)),IF(ISBLANK(VLOOKUP(E17,'Custom SPA Indicators Labels'!B$1:H$119,3,FALSE)),"",VLOOKUP(E17,'Custom SPA Indicators Labels'!B$1:H$119,3,FALSE)),"")) ->  | P17: =IF(ISNUMBER(MATCH(E17,StandardIndicators,0)),IF(ISBLANK(INDIRECT("'SPA Elements and Indicators'!L"&MATCH(E17,StandardIndicators,0))),"",INDIRECT("'SPA Elements and Indicators'!L"&MATCH(E17,StandardIndicators,0))),IF(ISNUMBER(MATCH(E17,'Custom SPA Indicators Labels'!B$1:B$119,0)),IF(ISBLANK(VLOOKUP(E17,'Custom SPA Indicators Labels'!B$1:H$119,4,FALSE)),"",VLOOKUP(E17,'Custom SPA Indicators Labels'!B$1:H$119,4,FALSE)),"")) ->  | R17: =IF(ISNUMBER(MATCH(E17,StandardIndicators,0)),IF(ISBLANK(INDIRECT("'SPA Elements and Indicators'!M"&MATCH(E17,StandardIndicators,0))),"",INDIRECT("'SPA Elements and Indicators'!M"&MATCH(E17,StandardIndicators,0))),IF(ISNUMBER(MATCH(E17,'Custom SPA Indicators Labels'!B$1:B$119,0)),IF(ISBLANK(VLOOKUP(E17,'Custom SPA Indicators Labels'!B$1:H$119,5,FALSE)),"",VLOOKUP(E17,'Custom SPA Indicators Labels'!B$1:H$119,5,FALSE)),"")) ->  | T17: =IF(ISNUMBER(MATCH(E17,StandardIndicators,0)),IF(ISBLANK(INDIRECT("'SPA Elements and Indicators'!N"&MATCH(E17,StandardIndicators,0))),"",INDIRECT("'SPA Elements and Indicators'!N"&MATCH(E17,StandardIndicators,0))),IF(ISNUMBER(MATCH(E17,'Custom SPA Indicators Labels'!B$1:B$119,0)),IF(ISBLANK(VLOOKUP(E17,'Custom SPA Indicators Labels'!B$1:H$119,6,FALSE)),"",VLOOKUP(E17,'Custom SPA Indicators Labels'!B$1:H$119,6,FALSE)),"")) ->  | V17: =IF(ISNUMBER(MATCH(E17,StandardIndicators,0)),IF(ISBLANK(INDIRECT("'SPA Elements and Indicators'!O"&MATCH(E17,StandardIndicators,0))),"",INDIRECT("'SPA Elements and Indicators'!O"&MATCH(E17,StandardIndicators,0))),IF(ISNUMBER(MATCH(E17,'Custom SPA Indicators Labels'!B$1:B$119,0)),IF(ISBLANK(VLOOKUP(E17,'Custom SPA Indicators Labels'!B$1:H$119,7,FALSE)),"",VLOOKUP(E17,'Custom SPA Indicators Labels'!B$1:H$119,7,FALSE)),"")) ->  | W17: =IF(MATCH(LEFT(E$12,5),'SPA Elements and Indicators'!A:A,0)+ROW()-16<MATCH(LEFT(INDIRECT("'Lookup'!B"&MATCH(E$12,Lookup!B:B,0)+1),5),'SPA Elements and Indicators'!A:A,0),INDIRECT("'SPA Elements and Indicators'!B"&MATCH(LEFT(E$12,5),'SPA Elements and Indicators'!A:A,0)+ROW()-15),"") ->  | X17: =IF(EXACT(INDIRECT("'Custom SPA Indicators'!B"&MATCH(LEFT(E$12,5),'Custom SPA Indicators'!A:A,0)+ROW()-Y17),Y$1),"",Z17) ->  | Y17: =MATCH(INDIRECT("'SPA Elements and Indicators'!B"&MATCH(LEFT(INDIRECT("'Lookup'!B"&MATCH(E$12,Lookup!B:B,0)+1),5),'SPA Elements and Indicators'!A:A,0)-2),E:E,0) ->  | Z17: =IF(MATCH(LEFT(E$12,5),'Custom SPA Indicators'!A:A,0)+ROW()-MATCH(INDIRECT("'SPA Elements and Indicators'!B"&MATCH(LEFT(INDIRECT("'Lookup'!B"&MATCH(E$12,Lookup!B:B,0)+1),5),'SPA Elements and Indicators'!A:A,0)-2),E:E,0)<MATCH(LEFT(INDIRECT("'Lookup'!B"&MATCH(E$12,Lookup!B:B,0)+1),5),'Custom SPA Indicators'!A:A,0),INDIRECT("'Custom SPA Indicators'!B"&MATCH(LEFT(E$12,5),'Custom SPA Indicators'!A:A,0)+ROW()-MATCH(INDIRECT("'SPA Elements and Indicators'!B"&MATCH(LEFT(INDIRECT("'Lookup'!B"&MATCH(E$12,Lookup!B:B,0)+1),5),'SPA Elements and Indicators'!A:A,0)-2),E:E,0)),"") -> 
L18: =IF(ISNUMBER(MATCH(E18,StandardIndicators,0)),IF(ISBLANK(INDIRECT("'SPA Elements and Indicators'!J"&MATCH(E18,StandardIndicators,0))),"",INDIRECT("'SPA Elements and Indicators'!J"&MATCH(E18,StandardIndicators,0))),IF(ISNUMBER(MATCH(E18,'Custom SPA Indicators Labels'!B$1:B$119,0)),IF(ISBLANK(VLOOKUP(E18,'Custom SPA Indicators Labels'!B$1:H$119,2,FALSE)),"",VLOOKUP(E18,'Custom SPA Indicators Labels'!B$1:H$119,2,FALSE)),"")) ->  | N18: =IF(ISNUMBER(MATCH(E18,StandardIndicators,0)),IF(ISBLANK(INDIRECT("'SPA Elements and Indicators'!K"&MATCH(E18,StandardIndicators,0))),"",INDIRECT("'SPA Elements and Indicators'!K"&MATCH(E18,StandardIndicators,0))),IF(ISNUMBER(MATCH(E18,'Custom SPA Indicators Labels'!B$1:B$119,0)),IF(ISBLANK(VLOOKUP(E18,'Custom SPA Indicators Labels'!B$1:H$119,3,FALSE)),"",VLOOKUP(E18,'Custom SPA Indicators Labels'!B$1:H$119,3,FALSE)),"")) ->  | P18: =IF(ISNUMBER(MATCH(E18,StandardIndicators,0)),IF(ISBLANK(INDIRECT("'SPA Elements and Indicators'!L"&MATCH(E18,StandardIndicators,0))),"",INDIRECT("'SPA Elements and Indicators'!L"&MATCH(E18,StandardIndicators,0))),IF(ISNUMBER(MATCH(E18,'Custom SPA Indicators Labels'!B$1:B$119,0)),IF(ISBLANK(VLOOKUP(E18,'Custom SPA Indicators Labels'!B$1:H$119,4,FALSE)),"",VLOOKUP(E18,'Custom SPA Indicators Labels'!B$1:H$119,4,FALSE)),"")) ->  | R18: =IF(ISNUMBER(MATCH(E18,StandardIndicators,0)),IF(ISBLANK(INDIRECT("'SPA Elements and Indicators'!M"&MATCH(E18,StandardIndicators,0))),"",INDIRECT("'SPA Elements and Indicators'!M"&MATCH(E18,StandardIndicators,0))),IF(ISNUMBER(MATCH(E18,'Custom SPA Indicators Labels'!B$1:B$119,0)),IF(ISBLANK(VLOOKUP(E18,'Custom SPA Indicators Labels'!B$1:H$119,5,FALSE)),"",VLOOKUP(E18,'Custom SPA Indicators Labels'!B$1:H$119,5,FALSE)),"")) ->  | T18: =IF(ISNUMBER(MATCH(E18,StandardIndicators,0)),IF(ISBLANK(INDIRECT("'SPA Elements and Indicators'!N"&MATCH(E18,StandardIndicators,0))),"",INDIRECT("'SPA Elements and Indicators'!N"&MATCH(E18,StandardIndicators,0))),IF(ISNUMBER(MATCH(E18,'Custom SPA Indicators Labels'!B$1:B$119,0)),IF(ISBLANK(VLOOKUP(E18,'Custom SPA Indicators Labels'!B$1:H$119,6,FALSE)),"",VLOOKUP(E18,'Custom SPA Indicators Labels'!B$1:H$119,6,FALSE)),"")) ->  | V18: =IF(ISNUMBER(MATCH(E18,StandardIndicators,0)),IF(ISBLANK(INDIRECT("'SPA Elements and Indicators'!O"&MATCH(E18,StandardIndicators,0))),"",INDIRECT("'SPA Elements and Indicators'!O"&MATCH(E18,StandardIndicators,0))),IF(ISNUMBER(MATCH(E18,'Custom SPA Indicators Labels'!B$1:B$119,0)),IF(ISBLANK(VLOOKUP(E18,'Custom SPA Indicators Labels'!B$1:H$119,7,FALSE)),"",VLOOKUP(E18,'Custom SPA Indicators Labels'!B$1:H$119,7,FALSE)),"")) ->  | W18: =IF(MATCH(LEFT(E$12,5),'SPA Elements and Indicators'!A:A,0)+ROW()-16<MATCH(LEFT(INDIRECT("'Lookup'!B"&MATCH(E$12,Lookup!B:B,0)+1),5),'SPA Elements and Indicators'!A:A,0),INDIRECT("'SPA Elements and Indicators'!B"&MATCH(LEFT(E$12,5),'SPA Elements and Indicators'!A:A,0)+ROW()-15),"") ->  | X18: =IF(EXACT(INDIRECT("'Custom SPA Indicators'!B"&MATCH(LEFT(E$12,5),'Custom SPA Indicators'!A:A,0)+ROW()-Y18),Y$1),"",Z18) ->  | Y18: =MATCH(INDIRECT("'SPA Elements and Indicators'!B"&MATCH(LEFT(INDIRECT("'Lookup'!B"&MATCH(E$12,Lookup!B:B,0)+1),5),'SPA Elements and Indicators'!A:A,0)-2),E:E,0) ->  | Z18: =IF(MATCH(LEFT(E$12,5),'Custom SPA Indicators'!A:A,0)+ROW()-MATCH(INDIRECT("'SPA Elements and Indicators'!B"&MATCH(LEFT(INDIRECT("'Lookup'!B"&MATCH(E$12,Lookup!B:B,0)+1),5),'SPA Elements and Indicators'!A:A,0)-2),E:E,0)<MATCH(LEFT(INDIRECT("'Lookup'!B"&MATCH(E$12,Lookup!B:B,0)+1),5),'Custom SPA Indicators'!A:A,0),INDIRECT("'Custom SPA Indicators'!B"&MATCH(LEFT(E$12,5),'Custom SPA Indicators'!A:A,0)+ROW()-MATCH(INDIRECT("'SPA Elements and Indicators'!B"&MATCH(LEFT(INDIRECT("'Lookup'!B"&MATCH(E$12,Lookup!B:B,0)+1),5),'SPA Elements and Indicators'!A:A,0)-2),E:E,0)),"") -> 
L19: =IF(ISNUMBER(MATCH(E19,StandardIndicators,0)),IF(ISBLANK(INDIRECT("'SPA Elements and Indicators'!J"&MATCH(E19,StandardIndicators,0))),"",INDIRECT("'SPA Elements and Indicators'!J"&MATCH(E19,StandardIndicators,0))),IF(ISNUMBER(MATCH(E19,'Custom SPA Indicators Labels'!B$1:B$119,0)),IF(ISBLANK(VLOOKUP(E19,'Custom SPA Indicators Labels'!B$1:H$119,2,FALSE)),"",VLOOKUP(E19,'Custom SPA Indicators Labels'!B$1:H$119,2,FALSE)),"")) ->  | N19: =IF(ISNUMBER(MATCH(E19,StandardIndicators,0)),IF(ISBLANK(INDIRECT("'SPA Elements and Indicators'!K"&MATCH(E19,StandardIndicators,0))),"",INDIRECT("'SPA Elements and Indicators'!K"&MATCH(E19,StandardIndicators,0))),IF(ISNUMBER(MATCH(E19,'Custom SPA Indicators Labels'!B$1:B$119,0)),IF(ISBLANK(VLOOKUP(E19,'Custom SPA Indicators Labels'!B$1:H$119,3,FALSE)),"",VLOOKUP(E19,'Custom SPA Indicators Labels'!B$1:H$119,3,FALSE)),"")) ->  | P19: =IF(ISNUMBER(MATCH(E19,StandardIndicators,0)),IF(ISBLANK(INDIRECT("'SPA Elements and Indicators'!L"&MATCH(E19,StandardIndicators,0))),"",INDIRECT("'SPA Elements and Indicators'!L"&MATCH(E19,StandardIndicators,0))),IF(ISNUMBER(MATCH(E19,'Custom SPA Indicators Labels'!B$1:B$119,0)),IF(ISBLANK(VLOOKUP(E19,'Custom SPA Indicators Labels'!B$1:H$119,4,FALSE)),"",VLOOKUP(E19,'Custom SPA Indicators Labels'!B$1:H$119,4,FALSE)),"")) ->  | R19: =IF(ISNUMBER(MATCH(E19,StandardIndicators,0)),IF(ISBLANK(INDIRECT("'SPA Elements and Indicators'!M"&MATCH(E19,StandardIndicators,0))),"",INDIRECT("'SPA Elements and Indicators'!M"&MATCH(E19,StandardIndicators,0))),IF(ISNUMBER(MATCH(E19,'Custom SPA Indicators Labels'!B$1:B$119,0)),IF(ISBLANK(VLOOKUP(E19,'Custom SPA Indicators Labels'!B$1:H$119,5,FALSE)),"",VLOOKUP(E19,'Custom SPA Indicators Labels'!B$1:H$119,5,FALSE)),"")) ->  | T19: =IF(ISNUMBER(MATCH(E19,StandardIndicators,0)),IF(ISBLANK(INDIRECT("'SPA Elements and Indicators'!N"&MATCH(E19,StandardIndicators,0))),"",INDIRECT("'SPA Elements and Indicators'!N"&MATCH(E19,StandardIndicators,0))),IF(ISNUMBER(MATCH(E19,'Custom SPA Indicators Labels'!B$1:B$119,0)),IF(ISBLANK(VLOOKUP(E19,'Custom SPA Indicators Labels'!B$1:H$119,6,FALSE)),"",VLOOKUP(E19,'Custom SPA Indicators Labels'!B$1:H$119,6,FALSE)),"")) ->  | V19: =IF(ISNUMBER(MATCH(E19,StandardIndicators,0)),IF(ISBLANK(INDIRECT("'SPA Elements and Indicators'!O"&MATCH(E19,StandardIndicators,0))),"",INDIRECT("'SPA Elements and Indicators'!O"&MATCH(E19,StandardIndicators,0))),IF(ISNUMBER(MATCH(E19,'Custom SPA Indicators Labels'!B$1:B$119,0)),IF(ISBLANK(VLOOKUP(E19,'Custom SPA Indicators Labels'!B$1:H$119,7,FALSE)),"",VLOOKUP(E19,'Custom SPA Indicators Labels'!B$1:H$119,7,FALSE)),"")) ->  | W19: =IF(MATCH(LEFT(E$12,5),'SPA Elements and Indicators'!A:A,0)+ROW()-16<MATCH(LEFT(INDIRECT("'Lookup'!B"&MATCH(E$12,Lookup!B:B,0)+1),5),'SPA Elements and Indicators'!A:A,0),INDIRECT("'SPA Elements and Indicators'!B"&MATCH(LEFT(E$12,5),'SPA Elements and Indicators'!A:A,0)+ROW()-15),"") ->  | X19: =IF(EXACT(INDIRECT("'Custom SPA Indicators'!B"&MATCH(LEFT(E$12,5),'Custom SPA Indicators'!A:A,0)+ROW()-Y19),Y$1),"",Z19) ->  | Y19: =MATCH(INDIRECT("'SPA Elements and Indicators'!B"&MATCH(LEFT(INDIRECT("'Lookup'!B"&MATCH(E$12,Lookup!B:B,0)+1),5),'SPA Elements and Indicators'!A:A,0)-2),E:E,0) ->  | Z19: =IF(MATCH(LEFT(E$12,5),'Custom SPA Indicators'!A:A,0)+ROW()-MATCH(INDIRECT("'SPA Elements and Indicators'!B"&MATCH(LEFT(INDIRECT("'Lookup'!B"&MATCH(E$12,Lookup!B:B,0)+1),5),'SPA Elements and Indicators'!A:A,0)-2),E:E,0)<MATCH(LEFT(INDIRECT("'Lookup'!B"&MATCH(E$12,Lookup!B:B,0)+1),5),'Custom SPA Indicators'!A:A,0),INDIRECT("'Custom SPA Indicators'!B"&MATCH(LEFT(E$12,5),'Custom SPA Indicators'!A:A,0)+ROW()-MATCH(INDIRECT("'SPA Elements and Indicators'!B"&MATCH(LEFT(INDIRECT("'Lookup'!B"&MATCH(E$12,Lookup!B:B,0)+1),5),'SPA Elements and Indicators'!A:A,0)-2),E:E,0)),"") -> 
L20: =IF(ISNUMBER(MATCH(E20,StandardIndicators,0)),IF(ISBLANK(INDIRECT("'SPA Elements and Indicators'!J"&MATCH(E20,StandardIndicators,0))),"",INDIRECT("'SPA Elements and Indicators'!J"&MATCH(E20,StandardIndicators,0))),IF(ISNUMBER(MATCH(E20,'Custom SPA Indicators Labels'!B$1:B$119,0)),IF(ISBLANK(VLOOKUP(E20,'Custom SPA Indicators Labels'!B$1:H$119,2,FALSE)),"",VLOOKUP(E20,'Custom SPA Indicators Labels'!B$1:H$119,2,FALSE)),"")) ->  | N20: =IF(ISNUMBER(MATCH(E20,StandardIndicators,0)),IF(ISBLANK(INDIRECT("'SPA Elements and Indicators'!K"&MATCH(E20,StandardIndicators,0))),"",INDIRECT("'SPA Elements and Indicators'!K"&MATCH(E20,StandardIndicators,0))),IF(ISNUMBER(MATCH(E20,'Custom SPA Indicators Labels'!B$1:B$119,0)),IF(ISBLANK(VLOOKUP(E20,'Custom SPA Indicators Labels'!B$1:H$119,3,FALSE)),"",VLOOKUP(E20,'Custom SPA Indicators Labels'!B$1:H$119,3,FALSE)),"")) ->  | P20: =IF(ISNUMBER(MATCH(E20,StandardIndicators,0)),IF(ISBLANK(INDIRECT("'SPA Elements and Indicators'!L"&MATCH(E20,StandardIndicators,0))),"",INDIRECT("'SPA Elements and Indicators'!L"&MATCH(E20,StandardIndicators,0))),IF(ISNUMBER(MATCH(E20,'Custom SPA Indicators Labels'!B$1:B$119,0)),IF(ISBLANK(VLOOKUP(E20,'Custom SPA Indicators Labels'!B$1:H$119,4,FALSE)),"",VLOOKUP(E20,'Custom SPA Indicators Labels'!B$1:H$119,4,FALSE)),"")) ->  | R20: =IF(ISNUMBER(MATCH(E20,StandardIndicators,0)),IF(ISBLANK(INDIRECT("'SPA Elements and Indicators'!M"&MATCH(E20,StandardIndicators,0))),"",INDIRECT("'SPA Elements and Indicators'!M"&MATCH(E20,StandardIndicators,0))),IF(ISNUMBER(MATCH(E20,'Custom SPA Indicators Labels'!B$1:B$119,0)),IF(ISBLANK(VLOOKUP(E20,'Custom SPA Indicators Labels'!B$1:H$119,5,FALSE)),"",VLOOKUP(E20,'Custom SPA Indicators Labels'!B$1:H$119,5,FALSE)),"")) ->  | T20: =IF(ISNUMBER(MATCH(E20,StandardIndicators,0)),IF(ISBLANK(INDIRECT("'SPA Elements and Indicators'!N"&MATCH(E20,StandardIndicators,0))),"",INDIRECT("'SPA Elements and Indicators'!N"&MATCH(E20,StandardIndicators,0))),IF(ISNUMBER(MATCH(E20,'Custom SPA Indicators Labels'!B$1:B$119,0)),IF(ISBLANK(VLOOKUP(E20,'Custom SPA Indicators Labels'!B$1:H$119,6,FALSE)),"",VLOOKUP(E20,'Custom SPA Indicators Labels'!B$1:H$119,6,FALSE)),"")) ->  | V20: =IF(ISNUMBER(MATCH(E20,StandardIndicators,0)),IF(ISBLANK(INDIRECT("'SPA Elements and Indicators'!O"&MATCH(E20,StandardIndicators,0))),"",INDIRECT("'SPA Elements and Indicators'!O"&MATCH(E20,StandardIndicators,0))),IF(ISNUMBER(MATCH(E20,'Custom SPA Indicators Labels'!B$1:B$119,0)),IF(ISBLANK(VLOOKUP(E20,'Custom SPA Indicators Labels'!B$1:H$119,7,FALSE)),"",VLOOKUP(E20,'Custom SPA Indicators Labels'!B$1:H$119,7,FALSE)),"")) ->  | W20: =IF(MATCH(LEFT(E$12,5),'SPA Elements and Indicators'!A:A,0)+ROW()-16<MATCH(LEFT(INDIRECT("'Lookup'!B"&MATCH(E$12,Lookup!B:B,0)+1),5),'SPA Elements and Indicators'!A:A,0),INDIRECT("'SPA Elements and Indicators'!B"&MATCH(LEFT(E$12,5),'SPA Elements and Indicators'!A:A,0)+ROW()-15),"") ->  | X20: =IF(EXACT(INDIRECT("'Custom SPA Indicators'!B"&MATCH(LEFT(E$12,5),'Custom SPA Indicators'!A:A,0)+ROW()-Y20),Y$1),"",Z20) ->  | Y20: =MATCH(INDIRECT("'SPA Elements and Indicators'!B"&MATCH(LEFT(INDIRECT("'Lookup'!B"&MATCH(E$12,Lookup!B:B,0)+1),5),'SPA Elements and Indicators'!A:A,0)-2),E:E,0) ->  | Z20: =IF(MATCH(LEFT(E$12,5),'Custom SPA Indicators'!A:A,0)+ROW()-MATCH(INDIRECT("'SPA Elements and Indicators'!B"&MATCH(LEFT(INDIRECT("'Lookup'!B"&MATCH(E$12,Lookup!B:B,0)+1),5),'SPA Elements and Indicators'!A:A,0)-2),E:E,0)<MATCH(LEFT(INDIRECT("'Lookup'!B"&MATCH(E$12,Lookup!B:B,0)+1),5),'Custom SPA Indicators'!A:A,0),INDIRECT("'Custom SPA Indicators'!B"&MATCH(LEFT(E$12,5),'Custom SPA Indicators'!A:A,0)+ROW()-MATCH(INDIRECT("'SPA Elements and Indicators'!B"&MATCH(LEFT(INDIRECT("'Lookup'!B"&MATCH(E$12,Lookup!B:B,0)+1),5),'SPA Elements and Indicators'!A:A,0)-2),E:E,0)),"") -> 
L21: =IF(ISNUMBER(MATCH(E21,StandardIndicators,0)),IF(ISBLANK(INDIRECT("'SPA Elements and Indicators'!J"&MATCH(E21,StandardIndicators,0))),"",INDIRECT("'SPA Elements and Indicators'!J"&MATCH(E21,StandardIndicators,0))),IF(ISNUMBER(MATCH(E21,'Custom SPA Indicators Labels'!B$1:B$119,0)),IF(ISBLANK(VLOOKUP(E21,'Custom SPA Indicators Labels'!B$1:H$119,2,FALSE)),"",VLOOKUP(E21,'Custom SPA Indicators Labels'!B$1:H$119,2,FALSE)),"")) ->  | N21: =IF(ISNUMBER(MATCH(E21,StandardIndicators,0)),IF(ISBLANK(INDIRECT("'SPA Elements and Indicators'!K"&MATCH(E21,StandardIndicators,0))),"",INDIRECT("'SPA Elements and Indicators'!K"&MATCH(E21,StandardIndicators,0))),IF(ISNUMBER(MATCH(E21,'Custom SPA Indicators Labels'!B$1:B$119,0)),IF(ISBLANK(VLOOKUP(E21,'Custom SPA Indicators Labels'!B$1:H$119,3,FALSE)),"",VLOOKUP(E21,'Custom SPA Indicators Labels'!B$1:H$119,3,FALSE)),"")) ->  | P21: =IF(ISNUMBER(MATCH(E21,StandardIndicators,0)),IF(ISBLANK(INDIRECT("'SPA Elements and Indicators'!L"&MATCH(E21,StandardIndicators,0))),"",INDIRECT("'SPA Elements and Indicators'!L"&MATCH(E21,StandardIndicators,0))),IF(ISNUMBER(MATCH(E21,'Custom SPA Indicators Labels'!B$1:B$119,0)),IF(ISBLANK(VLOOKUP(E21,'Custom SPA Indicators Labels'!B$1:H$119,4,FALSE)),"",VLOOKUP(E21,'Custom SPA Indicators Labels'!B$1:H$119,4,FALSE)),"")) ->  | R21: =IF(ISNUMBER(MATCH(E21,StandardIndicators,0)),IF(ISBLANK(INDIRECT("'SPA Elements and Indicators'!M"&MATCH(E21,StandardIndicators,0))),"",INDIRECT("'SPA Elements and Indicators'!M"&MATCH(E21,StandardIndicators,0))),IF(ISNUMBER(MATCH(E21,'Custom SPA Indicators Labels'!B$1:B$119,0)),IF(ISBLANK(VLOOKUP(E21,'Custom SPA Indicators Labels'!B$1:H$119,5,FALSE)),"",VLOOKUP(E21,'Custom SPA Indicators Labels'!B$1:H$119,5,FALSE)),"")) ->  | T21: =IF(ISNUMBER(MATCH(E21,StandardIndicators,0)),IF(ISBLANK(INDIRECT("'SPA Elements and Indicators'!N"&MATCH(E21,StandardIndicators,0))),"",INDIRECT("'SPA Elements and Indicators'!N"&MATCH(E21,StandardIndicators,0))),IF(ISNUMBER(MATCH(E21,'Custom SPA Indicators Labels'!B$1:B$119,0)),IF(ISBLANK(VLOOKUP(E21,'Custom SPA Indicators Labels'!B$1:H$119,6,FALSE)),"",VLOOKUP(E21,'Custom SPA Indicators Labels'!B$1:H$119,6,FALSE)),"")) ->  | V21: =IF(ISNUMBER(MATCH(E21,StandardIndicators,0)),IF(ISBLANK(INDIRECT("'SPA Elements and Indicators'!O"&MATCH(E21,StandardIndicators,0))),"",INDIRECT("'SPA Elements and Indicators'!O"&MATCH(E21,StandardIndicators,0))),IF(ISNUMBER(MATCH(E21,'Custom SPA Indicators Labels'!B$1:B$119,0)),IF(ISBLANK(VLOOKUP(E21,'Custom SPA Indicators Labels'!B$1:H$119,7,FALSE)),"",VLOOKUP(E21,'Custom SPA Indicators Labels'!B$1:H$119,7,FALSE)),"")) ->  | W21: =IF(MATCH(LEFT(E$12,5),'SPA Elements and Indicators'!A:A,0)+ROW()-16<MATCH(LEFT(INDIRECT("'Lookup'!B"&MATCH(E$12,Lookup!B:B,0)+1),5),'SPA Elements and Indicators'!A:A,0),INDIRECT("'SPA Elements and Indicators'!B"&MATCH(LEFT(E$12,5),'SPA Elements and Indicators'!A:A,0)+ROW()-15),"") ->  | X21: =IF(EXACT(INDIRECT("'Custom SPA Indicators'!B"&MATCH(LEFT(E$12,5),'Custom SPA Indicators'!A:A,0)+ROW()-Y21),Y$1),"",Z21) ->  | Y21: =MATCH(INDIRECT("'SPA Elements and Indicators'!B"&MATCH(LEFT(INDIRECT("'Lookup'!B"&MATCH(E$12,Lookup!B:B,0)+1),5),'SPA Elements and Indicators'!A:A,0)-2),E:E,0) ->  | Z21: =IF(MATCH(LEFT(E$12,5),'Custom SPA Indicators'!A:A,0)+ROW()-MATCH(INDIRECT("'SPA Elements and Indicators'!B"&MATCH(LEFT(INDIRECT("'Lookup'!B"&MATCH(E$12,Lookup!B:B,0)+1),5),'SPA Elements and Indicators'!A:A,0)-2),E:E,0)<MATCH(LEFT(INDIRECT("'Lookup'!B"&MATCH(E$12,Lookup!B:B,0)+1),5),'Custom SPA Indicators'!A:A,0),INDIRECT("'Custom SPA Indicators'!B"&MATCH(LEFT(E$12,5),'Custom SPA Indicators'!A:A,0)+ROW()-MATCH(INDIRECT("'SPA Elements and Indicators'!B"&MATCH(LEFT(INDIRECT("'Lookup'!B"&MATCH(E$12,Lookup!B:B,0)+1),5),'SPA Elements and Indicators'!A:A,0)-2),E:E,0)),"") -> 
L22: =IF(ISNUMBER(MATCH(E22,StandardIndicators,0)),IF(ISBLANK(INDIRECT("'SPA Elements and Indicators'!J"&MATCH(E22,StandardIndicators,0))),"",INDIRECT("'SPA Elements and Indicators'!J"&MATCH(E22,StandardIndicators,0))),IF(ISNUMBER(MATCH(E22,'Custom SPA Indicators Labels'!B$1:B$119,0)),IF(ISBLANK(VLOOKUP(E22,'Custom SPA Indicators Labels'!B$1:H$119,2,FALSE)),"",VLOOKUP(E22,'Custom SPA Indicators Labels'!B$1:H$119,2,FALSE)),"")) ->  | N22: =IF(ISNUMBER(MATCH(E22,StandardIndicators,0)),IF(ISBLANK(INDIRECT("'SPA Elements and Indicators'!K"&MATCH(E22,StandardIndicators,0))),"",INDIRECT("'SPA Elements and Indicators'!K"&MATCH(E22,StandardIndicators,0))),IF(ISNUMBER(MATCH(E22,'Custom SPA Indicators Labels'!B$1:B$119,0)),IF(ISBLANK(VLOOKUP(E22,'Custom SPA Indicators Labels'!B$1:H$119,3,FALSE)),"",VLOOKUP(E22,'Custom SPA Indicators Labels'!B$1:H$119,3,FALSE)),"")) ->  | P22: =IF(ISNUMBER(MATCH(E22,StandardIndicators,0)),IF(ISBLANK(INDIRECT("'SPA Elements and Indicators'!L"&MATCH(E22,StandardIndicators,0))),"",INDIRECT("'SPA Elements and Indicators'!L"&MATCH(E22,StandardIndicators,0))),IF(ISNUMBER(MATCH(E22,'Custom SPA Indicators Labels'!B$1:B$119,0)),IF(ISBLANK(VLOOKUP(E22,'Custom SPA Indicators Labels'!B$1:H$119,4,FALSE)),"",VLOOKUP(E22,'Custom SPA Indicators Labels'!B$1:H$119,4,FALSE)),"")) ->  | R22: =IF(ISNUMBER(MATCH(E22,StandardIndicators,0)),IF(ISBLANK(INDIRECT("'SPA Elements and Indicators'!M"&MATCH(E22,StandardIndicators,0))),"",INDIRECT("'SPA Elements and Indicators'!M"&MATCH(E22,StandardIndicators,0))),IF(ISNUMBER(MATCH(E22,'Custom SPA Indicators Labels'!B$1:B$119,0)),IF(ISBLANK(VLOOKUP(E22,'Custom SPA Indicators Labels'!B$1:H$119,5,FALSE)),"",VLOOKUP(E22,'Custom SPA Indicators Labels'!B$1:H$119,5,FALSE)),"")) ->  | T22: =IF(ISNUMBER(MATCH(E22,StandardIndicators,0)),IF(ISBLANK(INDIRECT("'SPA Elements and Indicators'!N"&MATCH(E22,StandardIndicators,0))),"",INDIRECT("'SPA Elements and Indicators'!N"&MATCH(E22,StandardIndicators,0))),IF(ISNUMBER(MATCH(E22,'Custom SPA Indicators Labels'!B$1:B$119,0)),IF(ISBLANK(VLOOKUP(E22,'Custom SPA Indicators Labels'!B$1:H$119,6,FALSE)),"",VLOOKUP(E22,'Custom SPA Indicators Labels'!B$1:H$119,6,FALSE)),"")) ->  | V22: =IF(ISNUMBER(MATCH(E22,StandardIndicators,0)),IF(ISBLANK(INDIRECT("'SPA Elements and Indicators'!O"&MATCH(E22,StandardIndicators,0))),"",INDIRECT("'SPA Elements and Indicators'!O"&MATCH(E22,StandardIndicators,0))),IF(ISNUMBER(MATCH(E22,'Custom SPA Indicators Labels'!B$1:B$119,0)),IF(ISBLANK(VLOOKUP(E22,'Custom SPA Indicators Labels'!B$1:H$119,7,FALSE)),"",VLOOKUP(E22,'Custom SPA Indicators Labels'!B$1:H$119,7,FALSE)),"")) ->  | W22: =IF(MATCH(LEFT(E$12,5),'SPA Elements and Indicators'!A:A,0)+ROW()-16<MATCH(LEFT(INDIRECT("'Lookup'!B"&MATCH(E$12,Lookup!B:B,0)+1),5),'SPA Elements and Indicators'!A:A,0),INDIRECT("'SPA Elements and Indicators'!B"&MATCH(LEFT(E$12,5),'SPA Elements and Indicators'!A:A,0)+ROW()-15),"") ->  | X22: =IF(EXACT(INDIRECT("'Custom SPA Indicators'!B"&MATCH(LEFT(E$12,5),'Custom SPA Indicators'!A:A,0)+ROW()-Y22),Y$1),"",Z22) ->  | Y22: =MATCH(INDIRECT("'SPA Elements and Indicators'!B"&MATCH(LEFT(INDIRECT("'Lookup'!B"&MATCH(E$12,Lookup!B:B,0)+1),5),'SPA Elements and Indicators'!A:A,0)-2),E:E,0) ->  | Z22: =IF(MATCH(LEFT(E$12,5),'Custom SPA Indicators'!A:A,0)+ROW()-MATCH(INDIRECT("'SPA Elements and Indicators'!B"&MATCH(LEFT(INDIRECT("'Lookup'!B"&MATCH(E$12,Lookup!B:B,0)+1),5),'SPA Elements and Indicators'!A:A,0)-2),E:E,0)<MATCH(LEFT(INDIRECT("'Lookup'!B"&MATCH(E$12,Lookup!B:B,0)+1),5),'Custom SPA Indicators'!A:A,0),INDIRECT("'Custom SPA Indicators'!B"&MATCH(LEFT(E$12,5),'Custom SPA Indicators'!A:A,0)+ROW()-MATCH(INDIRECT("'SPA Elements and Indicators'!B"&MATCH(LEFT(INDIRECT("'Lookup'!B"&MATCH(E$12,Lookup!B:B,0)+1),5),'SPA Elements and Indicators'!A:A,0)-2),E:E,0)),"") -> 
L23: =IF(ISNUMBER(MATCH(E23,StandardIndicators,0)),IF(ISBLANK(INDIRECT("'SPA Elements and Indicators'!J"&MATCH(E23,StandardIndicators,0))),"",INDIRECT("'SPA Elements and Indicators'!J"&MATCH(E23,StandardIndicators,0))),IF(ISNUMBER(MATCH(E23,'Custom SPA Indicators Labels'!B$1:B$119,0)),IF(ISBLANK(VLOOKUP(E23,'Custom SPA Indicators Labels'!B$1:H$119,2,FALSE)),"",VLOOKUP(E23,'Custom SPA Indicators Labels'!B$1:H$119,2,FALSE)),"")) ->  | N23: =IF(ISNUMBER(MATCH(E23,StandardIndicators,0)),IF(ISBLANK(INDIRECT("'SPA Elements and Indicators'!K"&MATCH(E23,StandardIndicators,0))),"",INDIRECT("'SPA Elements and Indicators'!K"&MATCH(E23,StandardIndicators,0))),IF(ISNUMBER(MATCH(E23,'Custom SPA Indicators Labels'!B$1:B$119,0)),IF(ISBLANK(VLOOKUP(E23,'Custom SPA Indicators Labels'!B$1:H$119,3,FALSE)),"",VLOOKUP(E23,'Custom SPA Indicators Labels'!B$1:H$119,3,FALSE)),"")) ->  | P23: =IF(ISNUMBER(MATCH(E23,StandardIndicators,0)),IF(ISBLANK(INDIRECT("'SPA Elements and Indicators'!L"&MATCH(E23,StandardIndicators,0))),"",INDIRECT("'SPA Elements and Indicators'!L"&MATCH(E23,StandardIndicators,0))),IF(ISNUMBER(MATCH(E23,'Custom SPA Indicators Labels'!B$1:B$119,0)),IF(ISBLANK(VLOOKUP(E23,'Custom SPA Indicators Labels'!B$1:H$119,4,FALSE)),"",VLOOKUP(E23,'Custom SPA Indicators Labels'!B$1:H$119,4,FALSE)),"")) ->  | R23: =IF(ISNUMBER(MATCH(E23,StandardIndicators,0)),IF(ISBLANK(INDIRECT("'SPA Elements and Indicators'!M"&MATCH(E23,StandardIndicators,0))),"",INDIRECT("'SPA Elements and Indicators'!M"&MATCH(E23,StandardIndicators,0))),IF(ISNUMBER(MATCH(E23,'Custom SPA Indicators Labels'!B$1:B$119,0)),IF(ISBLANK(VLOOKUP(E23,'Custom SPA Indicators Labels'!B$1:H$119,5,FALSE)),"",VLOOKUP(E23,'Custom SPA Indicators Labels'!B$1:H$119,5,FALSE)),"")) ->  | T23: =IF(ISNUMBER(MATCH(E23,StandardIndicators,0)),IF(ISBLANK(INDIRECT("'SPA Elements and Indicators'!N"&MATCH(E23,StandardIndicators,0))),"",INDIRECT("'SPA Elements and Indicators'!N"&MATCH(E23,StandardIndicators,0))),IF(ISNUMBER(MATCH(E23,'Custom SPA Indicators Labels'!B$1:B$119,0)),IF(ISBLANK(VLOOKUP(E23,'Custom SPA Indicators Labels'!B$1:H$119,6,FALSE)),"",VLOOKUP(E23,'Custom SPA Indicators Labels'!B$1:H$119,6,FALSE)),"")) ->  | V23: =IF(ISNUMBER(MATCH(E23,StandardIndicators,0)),IF(ISBLANK(INDIRECT("'SPA Elements and Indicators'!O"&MATCH(E23,StandardIndicators,0))),"",INDIRECT("'SPA Elements and Indicators'!O"&MATCH(E23,StandardIndicators,0))),IF(ISNUMBER(MATCH(E23,'Custom SPA Indicators Labels'!B$1:B$119,0)),IF(ISBLANK(VLOOKUP(E23,'Custom SPA Indicators Labels'!B$1:H$119,7,FALSE)),"",VLOOKUP(E23,'Custom SPA Indicators Labels'!B$1:H$119,7,FALSE)),"")) ->  | W23: =IF(MATCH(LEFT(E$12,5),'SPA Elements and Indicators'!A:A,0)+ROW()-16<MATCH(LEFT(INDIRECT("'Lookup'!B"&MATCH(E$12,Lookup!B:B,0)+1),5),'SPA Elements and Indicators'!A:A,0),INDIRECT("'SPA Elements and Indicators'!B"&MATCH(LEFT(E$12,5),'SPA Elements and Indicators'!A:A,0)+ROW()-15),"") ->  | X23: =IF(EXACT(INDIRECT("'Custom SPA Indicators'!B"&MATCH(LEFT(E$12,5),'Custom SPA Indicators'!A:A,0)+ROW()-Y23),Y$1),"",Z23) ->  | Y23: =MATCH(INDIRECT("'SPA Elements and Indicators'!B"&MATCH(LEFT(INDIRECT("'Lookup'!B"&MATCH(E$12,Lookup!B:B,0)+1),5),'SPA Elements and Indicators'!A:A,0)-2),E:E,0) ->  | Z23: =IF(MATCH(LEFT(E$12,5),'Custom SPA Indicators'!A:A,0)+ROW()-MATCH(INDIRECT("'SPA Elements and Indicators'!B"&MATCH(LEFT(INDIRECT("'Lookup'!B"&MATCH(E$12,Lookup!B:B,0)+1),5),'SPA Elements and Indicators'!A:A,0)-2),E:E,0)<MATCH(LEFT(INDIRECT("'Lookup'!B"&MATCH(E$12,Lookup!B:B,0)+1),5),'Custom SPA Indicators'!A:A,0),INDIRECT("'Custom SPA Indicators'!B"&MATCH(LEFT(E$12,5),'Custom SPA Indicators'!A:A,0)+ROW()-MATCH(INDIRECT("'SPA Elements and Indicators'!B"&MATCH(LEFT(INDIRECT("'Lookup'!B"&MATCH(E$12,Lookup!B:B,0)+1),5),'SPA Elements and Indicators'!A:A,0)-2),E:E,0)),"") -> 
L24: =IF(ISNUMBER(MATCH(E24,StandardIndicators,0)),IF(ISBLANK(INDIRECT("'SPA Elements and Indicators'!J"&MATCH(E24,StandardIndicators,0))),"",INDIRECT("'SPA Elements and Indicators'!J"&MATCH(E24,StandardIndicators,0))),IF(ISNUMBER(MATCH(E24,'Custom SPA Indicators Labels'!B$1:B$119,0)),IF(ISBLANK(VLOOKUP(E24,'Custom SPA Indicators Labels'!B$1:H$119,2,FALSE)),"",VLOOKUP(E24,'Custom SPA Indicators Labels'!B$1:H$119,2,FALSE)),"")) ->  | N24: =IF(ISNUMBER(MATCH(E24,StandardIndicators,0)),IF(ISBLANK(INDIRECT("'SPA Elements and Indicators'!K"&MATCH(E24,StandardIndicators,0))),"",INDIRECT("'SPA Elements and Indicators'!K"&MATCH(E24,StandardIndicators,0))),IF(ISNUMBER(MATCH(E24,'Custom SPA Indicators Labels'!B$1:B$119,0)),IF(ISBLANK(VLOOKUP(E24,'Custom SPA Indicators Labels'!B$1:H$119,3,FALSE)),"",VLOOKUP(E24,'Custom SPA Indicators Labels'!B$1:H$119,3,FALSE)),"")) ->  | P24: =IF(ISNUMBER(MATCH(E24,StandardIndicators,0)),IF(ISBLANK(INDIRECT("'SPA Elements and Indicators'!L"&MATCH(E24,StandardIndicators,0))),"",INDIRECT("'SPA Elements and Indicators'!L"&MATCH(E24,StandardIndicators,0))),IF(ISNUMBER(MATCH(E24,'Custom SPA Indicators Labels'!B$1:B$119,0)),IF(ISBLANK(VLOOKUP(E24,'Custom SPA Indicators Labels'!B$1:H$119,4,FALSE)),"",VLOOKUP(E24,'Custom SPA Indicators Labels'!B$1:H$119,4,FALSE)),"")) ->  | R24: =IF(ISNUMBER(MATCH(E24,StandardIndicators,0)),IF(ISBLANK(INDIRECT("'SPA Elements and Indicators'!M"&MATCH(E24,StandardIndicators,0))),"",INDIRECT("'SPA Elements and Indicators'!M"&MATCH(E24,StandardIndicators,0))),IF(ISNUMBER(MATCH(E24,'Custom SPA Indicators Labels'!B$1:B$119,0)),IF(ISBLANK(VLOOKUP(E24,'Custom SPA Indicators Labels'!B$1:H$119,5,FALSE)),"",VLOOKUP(E24,'Custom SPA Indicators Labels'!B$1:H$119,5,FALSE)),"")) ->  | T24: =IF(ISNUMBER(MATCH(E24,StandardIndicators,0)),IF(ISBLANK(INDIRECT("'SPA Elements and Indicators'!N"&MATCH(E24,StandardIndicators,0))),"",INDIRECT("'SPA Elements and Indicators'!N"&MATCH(E24,StandardIndicators,0))),IF(ISNUMBER(MATCH(E24,'Custom SPA Indicators Labels'!B$1:B$119,0)),IF(ISBLANK(VLOOKUP(E24,'Custom SPA Indicators Labels'!B$1:H$119,6,FALSE)),"",VLOOKUP(E24,'Custom SPA Indicators Labels'!B$1:H$119,6,FALSE)),"")) ->  | V24: =IF(ISNUMBER(MATCH(E24,StandardIndicators,0)),IF(ISBLANK(INDIRECT("'SPA Elements and Indicators'!O"&MATCH(E24,StandardIndicators,0))),"",INDIRECT("'SPA Elements and Indicators'!O"&MATCH(E24,StandardIndicators,0))),IF(ISNUMBER(MATCH(E24,'Custom SPA Indicators Labels'!B$1:B$119,0)),IF(ISBLANK(VLOOKUP(E24,'Custom SPA Indicators Labels'!B$1:H$119,7,FALSE)),"",VLOOKUP(E24,'Custom SPA Indicators Labels'!B$1:H$119,7,FALSE)),"")) ->  | W24: =IF(MATCH(LEFT(E$12,5),'SPA Elements and Indicators'!A:A,0)+ROW()-16<MATCH(LEFT(INDIRECT("'Lookup'!B"&MATCH(E$12,Lookup!B:B,0)+1),5),'SPA Elements and Indicators'!A:A,0),INDIRECT("'SPA Elements and Indicators'!B"&MATCH(LEFT(E$12,5),'SPA Elements and Indicators'!A:A,0)+ROW()-15),"") ->  | X24: =IF(EXACT(INDIRECT("'Custom SPA Indicators'!B"&MATCH(LEFT(E$12,5),'Custom SPA Indicators'!A:A,0)+ROW()-Y24),Y$1),"",Z24) ->  | Y24: =MATCH(INDIRECT("'SPA Elements and Indicators'!B"&MATCH(LEFT(INDIRECT("'Lookup'!B"&MATCH(E$12,Lookup!B:B,0)+1),5),'SPA Elements and Indicators'!A:A,0)-2),E:E,0) ->  | Z24: =IF(MATCH(LEFT(E$12,5),'Custom SPA Indicators'!A:A,0)+ROW()-MATCH(INDIRECT("'SPA Elements and Indicators'!B"&MATCH(LEFT(INDIRECT("'Lookup'!B"&MATCH(E$12,Lookup!B:B,0)+1),5),'SPA Elements and Indicators'!A:A,0)-2),E:E,0)<MATCH(LEFT(INDIRECT("'Lookup'!B"&MATCH(E$12,Lookup!B:B,0)+1),5),'Custom SPA Indicators'!A:A,0),INDIRECT("'Custom SPA Indicators'!B"&MATCH(LEFT(E$12,5),'Custom SPA Indicators'!A:A,0)+ROW()-MATCH(INDIRECT("'SPA Elements and Indicators'!B"&MATCH(LEFT(INDIRECT("'Lookup'!B"&MATCH(E$12,Lookup!B:B,0)+1),5),'SPA Elements and Indicators'!A:A,0)-2),E:E,0)),"") -> 
L25: =IF(ISNUMBER(MATCH(E25,StandardIndicators,0)),IF(ISBLANK(INDIRECT("'SPA Elements and Indicators'!J"&MATCH(E25,StandardIndicators,0))),"",INDIRECT("'SPA Elements and Indicators'!J"&MATCH(E25,StandardIndicators,0))),IF(ISNUMBER(MATCH(E25,'Custom SPA Indicators Labels'!B$1:B$119,0)),IF(ISBLANK(VLOOKUP(E25,'Custom SPA Indicators Labels'!B$1:H$119,2,FALSE)),"",VLOOKUP(E25,'Custom SPA Indicators Labels'!B$1:H$119,2,FALSE)),"")) ->  | N25: =IF(ISNUMBER(MATCH(E25,StandardIndicators,0)),IF(ISBLANK(INDIRECT("'SPA Elements and Indicators'!K"&MATCH(E25,StandardIndicators,0))),"",INDIRECT("'SPA Elements and Indicators'!K"&MATCH(E25,StandardIndicators,0))),IF(ISNUMBER(MATCH(E25,'Custom SPA Indicators Labels'!B$1:B$119,0)),IF(ISBLANK(VLOOKUP(E25,'Custom SPA Indicators Labels'!B$1:H$119,3,FALSE)),"",VLOOKUP(E25,'Custom SPA Indicators Labels'!B$1:H$119,3,FALSE)),"")) ->  | P25: =IF(ISNUMBER(MATCH(E25,StandardIndicators,0)),IF(ISBLANK(INDIRECT("'SPA Elements and Indicators'!L"&MATCH(E25,StandardIndicators,0))),"",INDIRECT("'SPA Elements and Indicators'!L"&MATCH(E25,StandardIndicators,0))),IF(ISNUMBER(MATCH(E25,'Custom SPA Indicators Labels'!B$1:B$119,0)),IF(ISBLANK(VLOOKUP(E25,'Custom SPA Indicators Labels'!B$1:H$119,4,FALSE)),"",VLOOKUP(E25,'Custom SPA Indicators Labels'!B$1:H$119,4,FALSE)),"")) ->  | R25: =IF(ISNUMBER(MATCH(E25,StandardIndicators,0)),IF(ISBLANK(INDIRECT("'SPA Elements and Indicators'!M"&MATCH(E25,StandardIndicators,0))),"",INDIRECT("'SPA Elements and Indicators'!M"&MATCH(E25,StandardIndicators,0))),IF(ISNUMBER(MATCH(E25,'Custom SPA Indicators Labels'!B$1:B$119,0)),IF(ISBLANK(VLOOKUP(E25,'Custom SPA Indicators Labels'!B$1:H$119,5,FALSE)),"",VLOOKUP(E25,'Custom SPA Indicators Labels'!B$1:H$119,5,FALSE)),"")) ->  | T25: =IF(ISNUMBER(MATCH(E25,StandardIndicators,0)),IF(ISBLANK(INDIRECT("'SPA Elements and Indicators'!N"&MATCH(E25,StandardIndicators,0))),"",INDIRECT("'SPA Elements and Indicators'!N"&MATCH(E25,StandardIndicators,0))),IF(ISNUMBER(MATCH(E25,'Custom SPA Indicators Labels'!B$1:B$119,0)),IF(ISBLANK(VLOOKUP(E25,'Custom SPA Indicators Labels'!B$1:H$119,6,FALSE)),"",VLOOKUP(E25,'Custom SPA Indicators Labels'!B$1:H$119,6,FALSE)),"")) ->  | V25: =IF(ISNUMBER(MATCH(E25,StandardIndicators,0)),IF(ISBLANK(INDIRECT("'SPA Elements and Indicators'!O"&MATCH(E25,StandardIndicators,0))),"",INDIRECT("'SPA Elements and Indicators'!O"&MATCH(E25,StandardIndicators,0))),IF(ISNUMBER(MATCH(E25,'Custom SPA Indicators Labels'!B$1:B$119,0)),IF(ISBLANK(VLOOKUP(E25,'Custom SPA Indicators Labels'!B$1:H$119,7,FALSE)),"",VLOOKUP(E25,'Custom SPA Indicators Labels'!B$1:H$119,7,FALSE)),"")) ->  | W25: =IF(MATCH(LEFT(E$12,5),'SPA Elements and Indicators'!A:A,0)+ROW()-16<MATCH(LEFT(INDIRECT("'Lookup'!B"&MATCH(E$12,Lookup!B:B,0)+1),5),'SPA Elements and Indicators'!A:A,0),INDIRECT("'SPA Elements and Indicators'!B"&MATCH(LEFT(E$12,5),'SPA Elements and Indicators'!A:A,0)+ROW()-15),"") ->  | X25: =IF(EXACT(INDIRECT("'Custom SPA Indicators'!B"&MATCH(LEFT(E$12,5),'Custom SPA Indicators'!A:A,0)+ROW()-Y25),Y$1),"",Z25) ->  | Y25: =MATCH(INDIRECT("'SPA Elements and Indicators'!B"&MATCH(LEFT(INDIRECT("'Lookup'!B"&MATCH(E$12,Lookup!B:B,0)+1),5),'SPA Elements and Indicators'!A:A,0)-2),E:E,0) ->  | Z25: =IF(MATCH(LEFT(E$12,5),'Custom SPA Indicators'!A:A,0)+ROW()-MATCH(INDIRECT("'SPA Elements and Indicators'!B"&MATCH(LEFT(INDIRECT("'Lookup'!B"&MATCH(E$12,Lookup!B:B,0)+1),5),'SPA Elements and Indicators'!A:A,0)-2),E:E,0)<MATCH(LEFT(INDIRECT("'Lookup'!B"&MATCH(E$12,Lookup!B:B,0)+1),5),'Custom SPA Indicators'!A:A,0),INDIRECT("'Custom SPA Indicators'!B"&MATCH(LEFT(E$12,5),'Custom SPA Indicators'!A:A,0)+ROW()-MATCH(INDIRECT("'SPA Elements and Indicators'!B"&MATCH(LEFT(INDIRECT("'Lookup'!B"&MATCH(E$12,Lookup!B:B,0)+1),5),'SPA Elements and Indicators'!A:A,0)-2),E:E,0)),"") -> 
L26: =IF(ISNUMBER(MATCH(E26,StandardIndicators,0)),IF(ISBLANK(INDIRECT("'SPA Elements and Indicators'!J"&MATCH(E26,StandardIndicators,0))),"",INDIRECT("'SPA Elements and Indicators'!J"&MATCH(E26,StandardIndicators,0))),IF(ISNUMBER(MATCH(E26,'Custom SPA Indicators Labels'!B$1:B$119,0)),IF(ISBLANK(VLOOKUP(E26,'Custom SPA Indicators Labels'!B$1:H$119,2,FALSE)),"",VLOOKUP(E26,'Custom SPA Indicators Labels'!B$1:H$119,2,FALSE)),"")) ->  | N26: =IF(ISNUMBER(MATCH(E26,StandardIndicators,0)),IF(ISBLANK(INDIRECT("'SPA Elements and Indicators'!K"&MATCH(E26,StandardIndicators,0))),"",INDIRECT("'SPA Elements and Indicators'!K"&MATCH(E26,StandardIndicators,0))),IF(ISNUMBER(MATCH(E26,'Custom SPA Indicators Labels'!B$1:B$119,0)),IF(ISBLANK(VLOOKUP(E26,'Custom SPA Indicators Labels'!B$1:H$119,3,FALSE)),"",VLOOKUP(E26,'Custom SPA Indicators Labels'!B$1:H$119,3,FALSE)),"")) ->  | P26: =IF(ISNUMBER(MATCH(E26,StandardIndicators,0)),IF(ISBLANK(INDIRECT("'SPA Elements and Indicators'!L"&MATCH(E26,StandardIndicators,0))),"",INDIRECT("'SPA Elements and Indicators'!L"&MATCH(E26,StandardIndicators,0))),IF(ISNUMBER(MATCH(E26,'Custom SPA Indicators Labels'!B$1:B$119,0)),IF(ISBLANK(VLOOKUP(E26,'Custom SPA Indicators Labels'!B$1:H$119,4,FALSE)),"",VLOOKUP(E26,'Custom SPA Indicators Labels'!B$1:H$119,4,FALSE)),"")) ->  | R26: =IF(ISNUMBER(MATCH(E26,StandardIndicators,0)),IF(ISBLANK(INDIRECT("'SPA Elements and Indicators'!M"&MATCH(E26,StandardIndicators,0))),"",INDIRECT("'SPA Elements and Indicators'!M"&MATCH(E26,StandardIndicators,0))),IF(ISNUMBER(MATCH(E26,'Custom SPA Indicators Labels'!B$1:B$119,0)),IF(ISBLANK(VLOOKUP(E26,'Custom SPA Indicators Labels'!B$1:H$119,5,FALSE)),"",VLOOKUP(E26,'Custom SPA Indicators Labels'!B$1:H$119,5,FALSE)),"")) ->  | T26: =IF(ISNUMBER(MATCH(E26,StandardIndicators,0)),IF(ISBLANK(INDIRECT("'SPA Elements and Indicators'!N"&MATCH(E26,StandardIndicators,0))),"",INDIRECT("'SPA Elements and Indicators'!N"&MATCH(E26,StandardIndicators,0))),IF(ISNUMBER(MATCH(E26,'Custom SPA Indicators Labels'!B$1:B$119,0)),IF(ISBLANK(VLOOKUP(E26,'Custom SPA Indicators Labels'!B$1:H$119,6,FALSE)),"",VLOOKUP(E26,'Custom SPA Indicators Labels'!B$1:H$119,6,FALSE)),"")) ->  | V26: =IF(ISNUMBER(MATCH(E26,StandardIndicators,0)),IF(ISBLANK(INDIRECT("'SPA Elements and Indicators'!O"&MATCH(E26,StandardIndicators,0))),"",INDIRECT("'SPA Elements and Indicators'!O"&MATCH(E26,StandardIndicators,0))),IF(ISNUMBER(MATCH(E26,'Custom SPA Indicators Labels'!B$1:B$119,0)),IF(ISBLANK(VLOOKUP(E26,'Custom SPA Indicators Labels'!B$1:H$119,7,FALSE)),"",VLOOKUP(E26,'Custom SPA Indicators Labels'!B$1:H$119,7,FALSE)),"")) ->  | W26: =IF(MATCH(LEFT(E$12,5),'SPA Elements and Indicators'!A:A,0)+ROW()-16<MATCH(LEFT(INDIRECT("'Lookup'!B"&MATCH(E$12,Lookup!B:B,0)+1),5),'SPA Elements and Indicators'!A:A,0),INDIRECT("'SPA Elements and Indicators'!B"&MATCH(LEFT(E$12,5),'SPA Elements and Indicators'!A:A,0)+ROW()-15),"") ->  | X26: =IF(EXACT(INDIRECT("'Custom SPA Indicators'!B"&MATCH(LEFT(E$12,5),'Custom SPA Indicators'!A:A,0)+ROW()-Y26),Y$1),"",Z26) ->  | Y26: =MATCH(INDIRECT("'SPA Elements and Indicators'!B"&MATCH(LEFT(INDIRECT("'Lookup'!B"&MATCH(E$12,Lookup!B:B,0)+1),5),'SPA Elements and Indicators'!A:A,0)-2),E:E,0) ->  | Z26: =IF(MATCH(LEFT(E$12,5),'Custom SPA Indicators'!A:A,0)+ROW()-MATCH(INDIRECT("'SPA Elements and Indicators'!B"&MATCH(LEFT(INDIRECT("'Lookup'!B"&MATCH(E$12,Lookup!B:B,0)+1),5),'SPA Elements and Indicators'!A:A,0)-2),E:E,0)<MATCH(LEFT(INDIRECT("'Lookup'!B"&MATCH(E$12,Lookup!B:B,0)+1),5),'Custom SPA Indicators'!A:A,0),INDIRECT("'Custom SPA Indicators'!B"&MATCH(LEFT(E$12,5),'Custom SPA Indicators'!A:A,0)+ROW()-MATCH(INDIRECT("'SPA Elements and Indicators'!B"&MATCH(LEFT(INDIRECT("'Lookup'!B"&MATCH(E$12,Lookup!B:B,0)+1),5),'SPA Elements and Indicators'!A:A,0)-2),E:E,0)),"") -> 
L27: =IF(ISNUMBER(MATCH(E27,StandardIndicators,0)),IF(ISBLANK(INDIRECT("'SPA Elements and Indicators'!J"&MATCH(E27,StandardIndicators,0))),"",INDIRECT("'SPA Elements and Indicators'!J"&MATCH(E27,StandardIndicators,0))),IF(ISNUMBER(MATCH(E27,'Custom SPA Indicators Labels'!B$1:B$119,0)),IF(ISBLANK(VLOOKUP(E27,'Custom SPA Indicators Labels'!B$1:H$119,2,FALSE)),"",VLOOKUP(E27,'Custom SPA Indicators Labels'!B$1:H$119,2,FALSE)),"")) ->  | N27: =IF(ISNUMBER(MATCH(E27,StandardIndicators,0)),IF(ISBLANK(INDIRECT("'SPA Elements and Indicators'!K"&MATCH(E27,StandardIndicators,0))),"",INDIRECT("'SPA Elements and Indicators'!K"&MATCH(E27,StandardIndicators,0))),IF(ISNUMBER(MATCH(E27,'Custom SPA Indicators Labels'!B$1:B$119,0)),IF(ISBLANK(VLOOKUP(E27,'Custom SPA Indicators Labels'!B$1:H$119,3,FALSE)),"",VLOOKUP(E27,'Custom SPA Indicators Labels'!B$1:H$119,3,FALSE)),"")) ->  | P27: =IF(ISNUMBER(MATCH(E27,StandardIndicators,0)),IF(ISBLANK(INDIRECT("'SPA Elements and Indicators'!L"&MATCH(E27,StandardIndicators,0))),"",INDIRECT("'SPA Elements and Indicators'!L"&MATCH(E27,StandardIndicators,0))),IF(ISNUMBER(MATCH(E27,'Custom SPA Indicators Labels'!B$1:B$119,0)),IF(ISBLANK(VLOOKUP(E27,'Custom SPA Indicators Labels'!B$1:H$119,4,FALSE)),"",VLOOKUP(E27,'Custom SPA Indicators Labels'!B$1:H$119,4,FALSE)),"")) ->  | R27: =IF(ISNUMBER(MATCH(E27,StandardIndicators,0)),IF(ISBLANK(INDIRECT("'SPA Elements and Indicators'!M"&MATCH(E27,StandardIndicators,0))),"",INDIRECT("'SPA Elements and Indicators'!M"&MATCH(E27,StandardIndicators,0))),IF(ISNUMBER(MATCH(E27,'Custom SPA Indicators Labels'!B$1:B$119,0)),IF(ISBLANK(VLOOKUP(E27,'Custom SPA Indicators Labels'!B$1:H$119,5,FALSE)),"",VLOOKUP(E27,'Custom SPA Indicators Labels'!B$1:H$119,5,FALSE)),"")) ->  | T27: =IF(ISNUMBER(MATCH(E27,StandardIndicators,0)),IF(ISBLANK(INDIRECT("'SPA Elements and Indicators'!N"&MATCH(E27,StandardIndicators,0))),"",INDIRECT("'SPA Elements and Indicators'!N"&MATCH(E27,StandardIndicators,0))),IF(ISNUMBER(MATCH(E27,'Custom SPA Indicators Labels'!B$1:B$119,0)),IF(ISBLANK(VLOOKUP(E27,'Custom SPA Indicators Labels'!B$1:H$119,6,FALSE)),"",VLOOKUP(E27,'Custom SPA Indicators Labels'!B$1:H$119,6,FALSE)),"")) ->  | V27: =IF(ISNUMBER(MATCH(E27,StandardIndicators,0)),IF(ISBLANK(INDIRECT("'SPA Elements and Indicators'!O"&MATCH(E27,StandardIndicators,0))),"",INDIRECT("'SPA Elements and Indicators'!O"&MATCH(E27,StandardIndicators,0))),IF(ISNUMBER(MATCH(E27,'Custom SPA Indicators Labels'!B$1:B$119,0)),IF(ISBLANK(VLOOKUP(E27,'Custom SPA Indicators Labels'!B$1:H$119,7,FALSE)),"",VLOOKUP(E27,'Custom SPA Indicators Labels'!B$1:H$119,7,FALSE)),"")) ->  | W27: =IF(MATCH(LEFT(E$12,5),'SPA Elements and Indicators'!A:A,0)+ROW()-16<MATCH(LEFT(INDIRECT("'Lookup'!B"&MATCH(E$12,Lookup!B:B,0)+1),5),'SPA Elements and Indicators'!A:A,0),INDIRECT("'SPA Elements and Indicators'!B"&MATCH(LEFT(E$12,5),'SPA Elements and Indicators'!A:A,0)+ROW()-15),"") ->  | X27: =IF(EXACT(INDIRECT("'Custom SPA Indicators'!B"&MATCH(LEFT(E$12,5),'Custom SPA Indicators'!A:A,0)+ROW()-Y27),Y$1),"",Z27) ->  | Y27: =MATCH(INDIRECT("'SPA Elements and Indicators'!B"&MATCH(LEFT(INDIRECT("'Lookup'!B"&MATCH(E$12,Lookup!B:B,0)+1),5),'SPA Elements and Indicators'!A:A,0)-2),E:E,0) ->  | Z27: =IF(MATCH(LEFT(E$12,5),'Custom SPA Indicators'!A:A,0)+ROW()-MATCH(INDIRECT("'SPA Elements and Indicators'!B"&MATCH(LEFT(INDIRECT("'Lookup'!B"&MATCH(E$12,Lookup!B:B,0)+1),5),'SPA Elements and Indicators'!A:A,0)-2),E:E,0)<MATCH(LEFT(INDIRECT("'Lookup'!B"&MATCH(E$12,Lookup!B:B,0)+1),5),'Custom SPA Indicators'!A:A,0),INDIRECT("'Custom SPA Indicators'!B"&MATCH(LEFT(E$12,5),'Custom SPA Indicators'!A:A,0)+ROW()-MATCH(INDIRECT("'SPA Elements and Indicators'!B"&MATCH(LEFT(INDIRECT("'Lookup'!B"&MATCH(E$12,Lookup!B:B,0)+1),5),'SPA Elements and Indicators'!A:A,0)-2),E:E,0)),"") -> 
L28: =IF(ISNUMBER(MATCH(E28,StandardIndicators,0)),IF(ISBLANK(INDIRECT("'SPA Elements and Indicators'!J"&MATCH(E28,StandardIndicators,0))),"",INDIRECT("'SPA Elements and Indicators'!J"&MATCH(E28,StandardIndicators,0))),IF(ISNUMBER(MATCH(E28,'Custom SPA Indicators Labels'!B$1:B$119,0)),IF(ISBLANK(VLOOKUP(E28,'Custom SPA Indicators Labels'!B$1:H$119,2,FALSE)),"",VLOOKUP(E28,'Custom SPA Indicators Labels'!B$1:H$119,2,FALSE)),"")) ->  | N28: =IF(ISNUMBER(MATCH(E28,StandardIndicators,0)),IF(ISBLANK(INDIRECT("'SPA Elements and Indicators'!K"&MATCH(E28,StandardIndicators,0))),"",INDIRECT("'SPA Elements and Indicators'!K"&MATCH(E28,StandardIndicators,0))),IF(ISNUMBER(MATCH(E28,'Custom SPA Indicators Labels'!B$1:B$119,0)),IF(ISBLANK(VLOOKUP(E28,'Custom SPA Indicators Labels'!B$1:H$119,3,FALSE)),"",VLOOKUP(E28,'Custom SPA Indicators Labels'!B$1:H$119,3,FALSE)),"")) ->  | P28: =IF(ISNUMBER(MATCH(E28,StandardIndicators,0)),IF(ISBLANK(INDIRECT("'SPA Elements and Indicators'!L"&MATCH(E28,StandardIndicators,0))),"",INDIRECT("'SPA Elements and Indicators'!L"&MATCH(E28,StandardIndicators,0))),IF(ISNUMBER(MATCH(E28,'Custom SPA Indicators Labels'!B$1:B$119,0)),IF(ISBLANK(VLOOKUP(E28,'Custom SPA Indicators Labels'!B$1:H$119,4,FALSE)),"",VLOOKUP(E28,'Custom SPA Indicators Labels'!B$1:H$119,4,FALSE)),"")) ->  | R28: =IF(ISNUMBER(MATCH(E28,StandardIndicators,0)),IF(ISBLANK(INDIRECT("'SPA Elements and Indicators'!M"&MATCH(E28,StandardIndicators,0))),"",INDIRECT("'SPA Elements and Indicators'!M"&MATCH(E28,StandardIndicators,0))),IF(ISNUMBER(MATCH(E28,'Custom SPA Indicators Labels'!B$1:B$119,0)),IF(ISBLANK(VLOOKUP(E28,'Custom SPA Indicators Labels'!B$1:H$119,5,FALSE)),"",VLOOKUP(E28,'Custom SPA Indicators Labels'!B$1:H$119,5,FALSE)),"")) ->  | T28: =IF(ISNUMBER(MATCH(E28,StandardIndicators,0)),IF(ISBLANK(INDIRECT("'SPA Elements and Indicators'!N"&MATCH(E28,StandardIndicators,0))),"",INDIRECT("'SPA Elements and Indicators'!N"&MATCH(E28,StandardIndicators,0))),IF(ISNUMBER(MATCH(E28,'Custom SPA Indicators Labels'!B$1:B$119,0)),IF(ISBLANK(VLOOKUP(E28,'Custom SPA Indicators Labels'!B$1:H$119,6,FALSE)),"",VLOOKUP(E28,'Custom SPA Indicators Labels'!B$1:H$119,6,FALSE)),"")) ->  | V28: =IF(ISNUMBER(MATCH(E28,StandardIndicators,0)),IF(ISBLANK(INDIRECT("'SPA Elements and Indicators'!O"&MATCH(E28,StandardIndicators,0))),"",INDIRECT("'SPA Elements and Indicators'!O"&MATCH(E28,StandardIndicators,0))),IF(ISNUMBER(MATCH(E28,'Custom SPA Indicators Labels'!B$1:B$119,0)),IF(ISBLANK(VLOOKUP(E28,'Custom SPA Indicators Labels'!B$1:H$119,7,FALSE)),"",VLOOKUP(E28,'Custom SPA Indicators Labels'!B$1:H$119,7,FALSE)),"")) ->  | W28: =IF(MATCH(LEFT(E$12,5),'SPA Elements and Indicators'!A:A,0)+ROW()-16<MATCH(LEFT(INDIRECT("'Lookup'!B"&MATCH(E$12,Lookup!B:B,0)+1),5),'SPA Elements and Indicators'!A:A,0),INDIRECT("'SPA Elements and Indicators'!B"&MATCH(LEFT(E$12,5),'SPA Elements and Indicators'!A:A,0)+ROW()-15),"") ->  | X28: =IF(EXACT(INDIRECT("'Custom SPA Indicators'!B"&MATCH(LEFT(E$12,5),'Custom SPA Indicators'!A:A,0)+ROW()-Y28),Y$1),"",Z28) ->  | Y28: =MATCH(INDIRECT("'SPA Elements and Indicators'!B"&MATCH(LEFT(INDIRECT("'Lookup'!B"&MATCH(E$12,Lookup!B:B,0)+1),5),'SPA Elements and Indicators'!A:A,0)-2),E:E,0) ->  | Z28: =IF(MATCH(LEFT(E$12,5),'Custom SPA Indicators'!A:A,0)+ROW()-MATCH(INDIRECT("'SPA Elements and Indicators'!B"&MATCH(LEFT(INDIRECT("'Lookup'!B"&MATCH(E$12,Lookup!B:B,0)+1),5),'SPA Elements and Indicators'!A:A,0)-2),E:E,0)<MATCH(LEFT(INDIRECT("'Lookup'!B"&MATCH(E$12,Lookup!B:B,0)+1),5),'Custom SPA Indicators'!A:A,0),INDIRECT("'Custom SPA Indicators'!B"&MATCH(LEFT(E$12,5),'Custom SPA Indicators'!A:A,0)+ROW()-MATCH(INDIRECT("'SPA Elements and Indicators'!B"&MATCH(LEFT(INDIRECT("'Lookup'!B"&MATCH(E$12,Lookup!B:B,0)+1),5),'SPA Elements and Indicators'!A:A,0)-2),E:E,0)),"") -> 
L29: =IF(ISNUMBER(MATCH(E29,StandardIndicators,0)),IF(ISBLANK(INDIRECT("'SPA Elements and Indicators'!J"&MATCH(E29,StandardIndicators,0))),"",INDIRECT("'SPA Elements and Indicators'!J"&MATCH(E29,StandardIndicators,0))),IF(ISNUMBER(MATCH(E29,'Custom SPA Indicators Labels'!B$1:B$119,0)),IF(ISBLANK(VLOOKUP(E29,'Custom SPA Indicators Labels'!B$1:H$119,2,FALSE)),"",VLOOKUP(E29,'Custom SPA Indicators Labels'!B$1:H$119,2,FALSE)),"")) ->  | N29: =IF(ISNUMBER(MATCH(E29,StandardIndicators,0)),IF(ISBLANK(INDIRECT("'SPA Elements and Indicators'!K"&MATCH(E29,StandardIndicators,0))),"",INDIRECT("'SPA Elements and Indicators'!K"&MATCH(E29,StandardIndicators,0))),IF(ISNUMBER(MATCH(E29,'Custom SPA Indicators Labels'!B$1:B$119,0)),IF(ISBLANK(VLOOKUP(E29,'Custom SPA Indicators Labels'!B$1:H$119,3,FALSE)),"",VLOOKUP(E29,'Custom SPA Indicators Labels'!B$1:H$119,3,FALSE)),"")) ->  | P29: =IF(ISNUMBER(MATCH(E29,StandardIndicators,0)),IF(ISBLANK(INDIRECT("'SPA Elements and Indicators'!L"&MATCH(E29,StandardIndicators,0))),"",INDIRECT("'SPA Elements and Indicators'!L"&MATCH(E29,StandardIndicators,0))),IF(ISNUMBER(MATCH(E29,'Custom SPA Indicators Labels'!B$1:B$119,0)),IF(ISBLANK(VLOOKUP(E29,'Custom SPA Indicators Labels'!B$1:H$119,4,FALSE)),"",VLOOKUP(E29,'Custom SPA Indicators Labels'!B$1:H$119,4,FALSE)),"")) ->  | R29: =IF(ISNUMBER(MATCH(E29,StandardIndicators,0)),IF(ISBLANK(INDIRECT("'SPA Elements and Indicators'!M"&MATCH(E29,StandardIndicators,0))),"",INDIRECT("'SPA Elements and Indicators'!M"&MATCH(E29,StandardIndicators,0))),IF(ISNUMBER(MATCH(E29,'Custom SPA Indicators Labels'!B$1:B$119,0)),IF(ISBLANK(VLOOKUP(E29,'Custom SPA Indicators Labels'!B$1:H$119,5,FALSE)),"",VLOOKUP(E29,'Custom SPA Indicators Labels'!B$1:H$119,5,FALSE)),"")) ->  | T29: =IF(ISNUMBER(MATCH(E29,StandardIndicators,0)),IF(ISBLANK(INDIRECT("'SPA Elements and Indicators'!N"&MATCH(E29,StandardIndicators,0))),"",INDIRECT("'SPA Elements and Indicators'!N"&MATCH(E29,StandardIndicators,0))),IF(ISNUMBER(MATCH(E29,'Custom SPA Indicators Labels'!B$1:B$119,0)),IF(ISBLANK(VLOOKUP(E29,'Custom SPA Indicators Labels'!B$1:H$119,6,FALSE)),"",VLOOKUP(E29,'Custom SPA Indicators Labels'!B$1:H$119,6,FALSE)),"")) ->  | V29: =IF(ISNUMBER(MATCH(E29,StandardIndicators,0)),IF(ISBLANK(INDIRECT("'SPA Elements and Indicators'!O"&MATCH(E29,StandardIndicators,0))),"",INDIRECT("'SPA Elements and Indicators'!O"&MATCH(E29,StandardIndicators,0))),IF(ISNUMBER(MATCH(E29,'Custom SPA Indicators Labels'!B$1:B$119,0)),IF(ISBLANK(VLOOKUP(E29,'Custom SPA Indicators Labels'!B$1:H$119,7,FALSE)),"",VLOOKUP(E29,'Custom SPA Indicators Labels'!B$1:H$119,7,FALSE)),"")) ->  | W29: =IF(MATCH(LEFT(E$12,5),'SPA Elements and Indicators'!A:A,0)+ROW()-16<MATCH(LEFT(INDIRECT("'Lookup'!B"&MATCH(E$12,Lookup!B:B,0)+1),5),'SPA Elements and Indicators'!A:A,0),INDIRECT("'SPA Elements and Indicators'!B"&MATCH(LEFT(E$12,5),'SPA Elements and Indicators'!A:A,0)+ROW()-15),"") ->  | X29: =IF(EXACT(INDIRECT("'Custom SPA Indicators'!B"&MATCH(LEFT(E$12,5),'Custom SPA Indicators'!A:A,0)+ROW()-Y29),Y$1),"",Z29) ->  | Y29: =MATCH(INDIRECT("'SPA Elements and Indicators'!B"&MATCH(LEFT(INDIRECT("'Lookup'!B"&MATCH(E$12,Lookup!B:B,0)+1),5),'SPA Elements and Indicators'!A:A,0)-2),E:E,0) ->  | Z29: =IF(MATCH(LEFT(E$12,5),'Custom SPA Indicators'!A:A,0)+ROW()-MATCH(INDIRECT("'SPA Elements and Indicators'!B"&MATCH(LEFT(INDIRECT("'Lookup'!B"&MATCH(E$12,Lookup!B:B,0)+1),5),'SPA Elements and Indicators'!A:A,0)-2),E:E,0)<MATCH(LEFT(INDIRECT("'Lookup'!B"&MATCH(E$12,Lookup!B:B,0)+1),5),'Custom SPA Indicators'!A:A,0),INDIRECT("'Custom SPA Indicators'!B"&MATCH(LEFT(E$12,5),'Custom SPA Indicators'!A:A,0)+ROW()-MATCH(INDIRECT("'SPA Elements and Indicators'!B"&MATCH(LEFT(INDIRECT("'Lookup'!B"&MATCH(E$12,Lookup!B:B,0)+1),5),'SPA Elements and Indicators'!A:A,0)-2),E:E,0)),"") -> 
L30: =IF(ISNUMBER(MATCH(E30,StandardIndicators,0)),IF(ISBLANK(INDIRECT("'SPA Elements and Indicators'!J"&MATCH(E30,StandardIndicators,0))),"",INDIRECT("'SPA Elements and Indicators'!J"&MATCH(E30,StandardIndicators,0))),IF(ISNUMBER(MATCH(E30,'Custom SPA Indicators Labels'!B$1:B$119,0)),IF(ISBLANK(VLOOKUP(E30,'Custom SPA Indicators Labels'!B$1:H$119,2,FALSE)),"",VLOOKUP(E30,'Custom SPA Indicators Labels'!B$1:H$119,2,FALSE)),"")) ->  | N30: =IF(ISNUMBER(MATCH(E30,StandardIndicators,0)),IF(ISBLANK(INDIRECT("'SPA Elements and Indicators'!K"&MATCH(E30,StandardIndicators,0))),"",INDIRECT("'SPA Elements and Indicators'!K"&MATCH(E30,StandardIndicators,0))),IF(ISNUMBER(MATCH(E30,'Custom SPA Indicators Labels'!B$1:B$119,0)),IF(ISBLANK(VLOOKUP(E30,'Custom SPA Indicators Labels'!B$1:H$119,3,FALSE)),"",VLOOKUP(E30,'Custom SPA Indicators Labels'!B$1:H$119,3,FALSE)),"")) ->  | P30: =IF(ISNUMBER(MATCH(E30,StandardIndicators,0)),IF(ISBLANK(INDIRECT("'SPA Elements and Indicators'!L"&MATCH(E30,StandardIndicators,0))),"",INDIRECT("'SPA Elements and Indicators'!L"&MATCH(E30,StandardIndicators,0))),IF(ISNUMBER(MATCH(E30,'Custom SPA Indicators Labels'!B$1:B$119,0)),IF(ISBLANK(VLOOKUP(E30,'Custom SPA Indicators Labels'!B$1:H$119,4,FALSE)),"",VLOOKUP(E30,'Custom SPA Indicators Labels'!B$1:H$119,4,FALSE)),"")) ->  | R30: =IF(ISNUMBER(MATCH(E30,StandardIndicators,0)),IF(ISBLANK(INDIRECT("'SPA Elements and Indicators'!M"&MATCH(E30,StandardIndicators,0))),"",INDIRECT("'SPA Elements and Indicators'!M"&MATCH(E30,StandardIndicators,0))),IF(ISNUMBER(MATCH(E30,'Custom SPA Indicators Labels'!B$1:B$119,0)),IF(ISBLANK(VLOOKUP(E30,'Custom SPA Indicators Labels'!B$1:H$119,5,FALSE)),"",VLOOKUP(E30,'Custom SPA Indicators Labels'!B$1:H$119,5,FALSE)),"")) ->  | T30: =IF(ISNUMBER(MATCH(E30,StandardIndicators,0)),IF(ISBLANK(INDIRECT("'SPA Elements and Indicators'!N"&MATCH(E30,StandardIndicators,0))),"",INDIRECT("'SPA Elements and Indicators'!N"&MATCH(E30,StandardIndicators,0))),IF(ISNUMBER(MATCH(E30,'Custom SPA Indicators Labels'!B$1:B$119,0)),IF(ISBLANK(VLOOKUP(E30,'Custom SPA Indicators Labels'!B$1:H$119,6,FALSE)),"",VLOOKUP(E30,'Custom SPA Indicators Labels'!B$1:H$119,6,FALSE)),"")) ->  | V30: =IF(ISNUMBER(MATCH(E30,StandardIndicators,0)),IF(ISBLANK(INDIRECT("'SPA Elements and Indicators'!O"&MATCH(E30,StandardIndicators,0))),"",INDIRECT("'SPA Elements and Indicators'!O"&MATCH(E30,StandardIndicators,0))),IF(ISNUMBER(MATCH(E30,'Custom SPA Indicators Labels'!B$1:B$119,0)),IF(ISBLANK(VLOOKUP(E30,'Custom SPA Indicators Labels'!B$1:H$119,7,FALSE)),"",VLOOKUP(E30,'Custom SPA Indicators Labels'!B$1:H$119,7,FALSE)),"")) ->  | W30: =IF(MATCH(LEFT(E$12,5),'SPA Elements and Indicators'!A:A,0)+ROW()-16<MATCH(LEFT(INDIRECT("'Lookup'!B"&MATCH(E$12,Lookup!B:B,0)+1),5),'SPA Elements and Indicators'!A:A,0),INDIRECT("'SPA Elements and Indicators'!B"&MATCH(LEFT(E$12,5),'SPA Elements and Indicators'!A:A,0)+ROW()-15),"") ->  | X30: =IF(EXACT(INDIRECT("'Custom SPA Indicators'!B"&MATCH(LEFT(E$12,5),'Custom SPA Indicators'!A:A,0)+ROW()-Y30),Y$1),"",Z30) ->  | Y30: =MATCH(INDIRECT("'SPA Elements and Indicators'!B"&MATCH(LEFT(INDIRECT("'Lookup'!B"&MATCH(E$12,Lookup!B:B,0)+1),5),'SPA Elements and Indicators'!A:A,0)-2),E:E,0) ->  | Z30: =IF(MATCH(LEFT(E$12,5),'Custom SPA Indicators'!A:A,0)+ROW()-MATCH(INDIRECT("'SPA Elements and Indicators'!B"&MATCH(LEFT(INDIRECT("'Lookup'!B"&MATCH(E$12,Lookup!B:B,0)+1),5),'SPA Elements and Indicators'!A:A,0)-2),E:E,0)<MATCH(LEFT(INDIRECT("'Lookup'!B"&MATCH(E$12,Lookup!B:B,0)+1),5),'Custom SPA Indicators'!A:A,0),INDIRECT("'Custom SPA Indicators'!B"&MATCH(LEFT(E$12,5),'Custom SPA Indicators'!A:A,0)+ROW()-MATCH(INDIRECT("'SPA Elements and Indicators'!B"&MATCH(LEFT(INDIRECT("'Lookup'!B"&MATCH(E$12,Lookup!B:B,0)+1),5),'SPA Elements and Indicators'!A:A,0)-2),E:E,0)),"") -> 
L31: =IF(ISNUMBER(MATCH(E31,StandardIndicators,0)),IF(ISBLANK(INDIRECT("'SPA Elements and Indicators'!J"&MATCH(E31,StandardIndicators,0))),"",INDIRECT("'SPA Elements and Indicators'!J"&MATCH(E31,StandardIndicators,0))),IF(ISNUMBER(MATCH(E31,'Custom SPA Indicators Labels'!B$1:B$119,0)),IF(ISBLANK(VLOOKUP(E31,'Custom SPA Indicators Labels'!B$1:H$119,2,FALSE)),"",VLOOKUP(E31,'Custom SPA Indicators Labels'!B$1:H$119,2,FALSE)),"")) ->  | N31: =IF(ISNUMBER(MATCH(E31,StandardIndicators,0)),IF(ISBLANK(INDIRECT("'SPA Elements and Indicators'!K"&MATCH(E31,StandardIndicators,0))),"",INDIRECT("'SPA Elements and Indicators'!K"&MATCH(E31,StandardIndicators,0))),IF(ISNUMBER(MATCH(E31,'Custom SPA Indicators Labels'!B$1:B$119,0)),IF(ISBLANK(VLOOKUP(E31,'Custom SPA Indicators Labels'!B$1:H$119,3,FALSE)),"",VLOOKUP(E31,'Custom SPA Indicators Labels'!B$1:H$119,3,FALSE)),"")) ->  | P31: =IF(ISNUMBER(MATCH(E31,StandardIndicators,0)),IF(ISBLANK(INDIRECT("'SPA Elements and Indicators'!L"&MATCH(E31,StandardIndicators,0))),"",INDIRECT("'SPA Elements and Indicators'!L"&MATCH(E31,StandardIndicators,0))),IF(ISNUMBER(MATCH(E31,'Custom SPA Indicators Labels'!B$1:B$119,0)),IF(ISBLANK(VLOOKUP(E31,'Custom SPA Indicators Labels'!B$1:H$119,4,FALSE)),"",VLOOKUP(E31,'Custom SPA Indicators Labels'!B$1:H$119,4,FALSE)),"")) ->  | R31: =IF(ISNUMBER(MATCH(E31,StandardIndicators,0)),IF(ISBLANK(INDIRECT("'SPA Elements and Indicators'!M"&MATCH(E31,StandardIndicators,0))),"",INDIRECT("'SPA Elements and Indicators'!M"&MATCH(E31,StandardIndicators,0))),IF(ISNUMBER(MATCH(E31,'Custom SPA Indicators Labels'!B$1:B$119,0)),IF(ISBLANK(VLOOKUP(E31,'Custom SPA Indicators Labels'!B$1:H$119,5,FALSE)),"",VLOOKUP(E31,'Custom SPA Indicators Labels'!B$1:H$119,5,FALSE)),"")) ->  | T31: =IF(ISNUMBER(MATCH(E31,StandardIndicators,0)),IF(ISBLANK(INDIRECT("'SPA Elements and Indicators'!N"&MATCH(E31,StandardIndicators,0))),"",INDIRECT("'SPA Elements and Indicators'!N"&MATCH(E31,StandardIndicators,0))),IF(ISNUMBER(MATCH(E31,'Custom SPA Indicators Labels'!B$1:B$119,0)),IF(ISBLANK(VLOOKUP(E31,'Custom SPA Indicators Labels'!B$1:H$119,6,FALSE)),"",VLOOKUP(E31,'Custom SPA Indicators Labels'!B$1:H$119,6,FALSE)),"")) ->  | V31: =IF(ISNUMBER(MATCH(E31,StandardIndicators,0)),IF(ISBLANK(INDIRECT("'SPA Elements and Indicators'!O"&MATCH(E31,StandardIndicators,0))),"",INDIRECT("'SPA Elements and Indicators'!O"&MATCH(E31,StandardIndicators,0))),IF(ISNUMBER(MATCH(E31,'Custom SPA Indicators Labels'!B$1:B$119,0)),IF(ISBLANK(VLOOKUP(E31,'Custom SPA Indicators Labels'!B$1:H$119,7,FALSE)),"",VLOOKUP(E31,'Custom SPA Indicators Labels'!B$1:H$119,7,FALSE)),"")) ->  | W31: =IF(MATCH(LEFT(E$12,5),'SPA Elements and Indicators'!A:A,0)+ROW()-16<MATCH(LEFT(INDIRECT("'Lookup'!B"&MATCH(E$12,Lookup!B:B,0)+1),5),'SPA Elements and Indicators'!A:A,0),INDIRECT("'SPA Elements and Indicators'!B"&MATCH(LEFT(E$12,5),'SPA Elements and Indicators'!A:A,0)+ROW()-15),"") ->  | X31: =IF(EXACT(INDIRECT("'Custom SPA Indicators'!B"&MATCH(LEFT(E$12,5),'Custom SPA Indicators'!A:A,0)+ROW()-Y31),Y$1),"",Z31) ->  | Y31: =MATCH(INDIRECT("'SPA Elements and Indicators'!B"&MATCH(LEFT(INDIRECT("'Lookup'!B"&MATCH(E$12,Lookup!B:B,0)+1),5),'SPA Elements and Indicators'!A:A,0)-2),E:E,0) ->  | Z31: =IF(MATCH(LEFT(E$12,5),'Custom SPA Indicators'!A:A,0)+ROW()-MATCH(INDIRECT("'SPA Elements and Indicators'!B"&MATCH(LEFT(INDIRECT("'Lookup'!B"&MATCH(E$12,Lookup!B:B,0)+1),5),'SPA Elements and Indicators'!A:A,0)-2),E:E,0)<MATCH(LEFT(INDIRECT("'Lookup'!B"&MATCH(E$12,Lookup!B:B,0)+1),5),'Custom SPA Indicators'!A:A,0),INDIRECT("'Custom SPA Indicators'!B"&MATCH(LEFT(E$12,5),'Custom SPA Indicators'!A:A,0)+ROW()-MATCH(INDIRECT("'SPA Elements and Indicators'!B"&MATCH(LEFT(INDIRECT("'Lookup'!B"&MATCH(E$12,Lookup!B:B,0)+1),5),'SPA Elements and Indicators'!A:A,0)-2),E:E,0)),"") -> 
L32: =IF(ISNUMBER(MATCH(E32,StandardIndicators,0)),IF(ISBLANK(INDIRECT("'SPA Elements and Indicators'!J"&MATCH(E32,StandardIndicators,0))),"",INDIRECT("'SPA Elements and Indicators'!J"&MATCH(E32,StandardIndicators,0))),IF(ISNUMBER(MATCH(E32,'Custom SPA Indicators Labels'!B$1:B$119,0)),IF(ISBLANK(VLOOKUP(E32,'Custom SPA Indicators Labels'!B$1:H$119,2,FALSE)),"",VLOOKUP(E32,'Custom SPA Indicators Labels'!B$1:H$119,2,FALSE)),"")) ->  | N32: =IF(ISNUMBER(MATCH(E32,StandardIndicators,0)),IF(ISBLANK(INDIRECT("'SPA Elements and Indicators'!K"&MATCH(E32,StandardIndicators,0))),"",INDIRECT("'SPA Elements and Indicators'!K"&MATCH(E32,StandardIndicators,0))),IF(ISNUMBER(MATCH(E32,'Custom SPA Indicators Labels'!B$1:B$119,0)),IF(ISBLANK(VLOOKUP(E32,'Custom SPA Indicators Labels'!B$1:H$119,3,FALSE)),"",VLOOKUP(E32,'Custom SPA Indicators Labels'!B$1:H$119,3,FALSE)),"")) ->  | P32: =IF(ISNUMBER(MATCH(E32,StandardIndicators,0)),IF(ISBLANK(INDIRECT("'SPA Elements and Indicators'!L"&MATCH(E32,StandardIndicators,0))),"",INDIRECT("'SPA Elements and Indicators'!L"&MATCH(E32,StandardIndicators,0))),IF(ISNUMBER(MATCH(E32,'Custom SPA Indicators Labels'!B$1:B$119,0)),IF(ISBLANK(VLOOKUP(E32,'Custom SPA Indicators Labels'!B$1:H$119,4,FALSE)),"",VLOOKUP(E32,'Custom SPA Indicators Labels'!B$1:H$119,4,FALSE)),"")) ->  | R32: =IF(ISNUMBER(MATCH(E32,StandardIndicators,0)),IF(ISBLANK(INDIRECT("'SPA Elements and Indicators'!M"&MATCH(E32,StandardIndicators,0))),"",INDIRECT("'SPA Elements and Indicators'!M"&MATCH(E32,StandardIndicators,0))),IF(ISNUMBER(MATCH(E32,'Custom SPA Indicators Labels'!B$1:B$119,0)),IF(ISBLANK(VLOOKUP(E32,'Custom SPA Indicators Labels'!B$1:H$119,5,FALSE)),"",VLOOKUP(E32,'Custom SPA Indicators Labels'!B$1:H$119,5,FALSE)),"")) ->  | T32: =IF(ISNUMBER(MATCH(E32,StandardIndicators,0)),IF(ISBLANK(INDIRECT("'SPA Elements and Indicators'!N"&MATCH(E32,StandardIndicators,0))),"",INDIRECT("'SPA Elements and Indicators'!N"&MATCH(E32,StandardIndicators,0))),IF(ISNUMBER(MATCH(E32,'Custom SPA Indicators Labels'!B$1:B$119,0)),IF(ISBLANK(VLOOKUP(E32,'Custom SPA Indicators Labels'!B$1:H$119,6,FALSE)),"",VLOOKUP(E32,'Custom SPA Indicators Labels'!B$1:H$119,6,FALSE)),"")) ->  | V32: =IF(ISNUMBER(MATCH(E32,StandardIndicators,0)),IF(ISBLANK(INDIRECT("'SPA Elements and Indicators'!O"&MATCH(E32,StandardIndicators,0))),"",INDIRECT("'SPA Elements and Indicators'!O"&MATCH(E32,StandardIndicators,0))),IF(ISNUMBER(MATCH(E32,'Custom SPA Indicators Labels'!B$1:B$119,0)),IF(ISBLANK(VLOOKUP(E32,'Custom SPA Indicators Labels'!B$1:H$119,7,FALSE)),"",VLOOKUP(E32,'Custom SPA Indicators Labels'!B$1:H$119,7,FALSE)),"")) ->  | W32: =IF(MATCH(LEFT(E$12,5),'SPA Elements and Indicators'!A:A,0)+ROW()-16<MATCH(LEFT(INDIRECT("'Lookup'!B"&MATCH(E$12,Lookup!B:B,0)+1),5),'SPA Elements and Indicators'!A:A,0),INDIRECT("'SPA Elements and Indicators'!B"&MATCH(LEFT(E$12,5),'SPA Elements and Indicators'!A:A,0)+ROW()-15),"") ->  | X32: =IF(EXACT(INDIRECT("'Custom SPA Indicators'!B"&MATCH(LEFT(E$12,5),'Custom SPA Indicators'!A:A,0)+ROW()-Y32),Y$1),"",Z32) ->  | Y32: =MATCH(INDIRECT("'SPA Elements and Indicators'!B"&MATCH(LEFT(INDIRECT("'Lookup'!B"&MATCH(E$12,Lookup!B:B,0)+1),5),'SPA Elements and Indicators'!A:A,0)-2),E:E,0) ->  | Z32: =IF(MATCH(LEFT(E$12,5),'Custom SPA Indicators'!A:A,0)+ROW()-MATCH(INDIRECT("'SPA Elements and Indicators'!B"&MATCH(LEFT(INDIRECT("'Lookup'!B"&MATCH(E$12,Lookup!B:B,0)+1),5),'SPA Elements and Indicators'!A:A,0)-2),E:E,0)<MATCH(LEFT(INDIRECT("'Lookup'!B"&MATCH(E$12,Lookup!B:B,0)+1),5),'Custom SPA Indicators'!A:A,0),INDIRECT("'Custom SPA Indicators'!B"&MATCH(LEFT(E$12,5),'Custom SPA Indicators'!A:A,0)+ROW()-MATCH(INDIRECT("'SPA Elements and Indicators'!B"&MATCH(LEFT(INDIRECT("'Lookup'!B"&MATCH(E$12,Lookup!B:B,0)+1),5),'SPA Elements and Indicators'!A:A,0)-2),E:E,0)),"") -> 

Sheet SPA Program Element Dropdown (hidden)
A1: Country | B1: Program Elements | G1: This sheet is linked to the data validation/dropdown for the "Program Element" box on the For SPA Funded Activities page. It controls which program elements show up when you choose a SPA country on the Classification and Budget page. If a country has funding in a new program element, simply add another entry for that country (both the country name and the name of the new program element) to columns A and B.
A2: Albania | B2: 2.4.1, Civic Participation
A3: Armenia | B3: 2.4.1, Civic Participation
A4: Armenia | B4: 3.1.8, Water Supply and Sanitation
A5: Armenia | B5: 3.3.3, Social Assistance
A6: Azerbaijan | B6: 2.4.1, Civic Participation
A7: Benin | B7: 3.1.1, HIV/AIDS
A8: Benin | B8: 3.1.6, Maternal and Child Health
A9: Benin | B9: 3.1.7, Family Planning and Reproductive Health
A10: Benin | B10: 3.1.8, Water Supply and Sanitation
A11: Benin | B11: 3.1.3, Malaria
A12: Benin | B12: 3.2.1, Basic Education
A13: Burkina Faso | B13: 3.1.1, HIV/AIDS
A14: Burkina Faso | B14: 3.1.6, Maternal and Child Health
A15: Burkina Faso | B15: 3.1.7, Family Planning and Reproductive Health
A16: Burkina Faso | B16: 3.1.8, Water Supply and Sanitation
A17: Cambodia | B17: 3.1.6, Maternal and Child Health
A18: Cambodia | B18: 3.2.1, Basic Education
A19: Cambodia | B19: 3.1.1, HIV/AIDS
A20: Cambodia | B20: 4.7.3, Strengthen Microenterprise Productivity
A21: Cameroon | B21: 3.1.8, Water Supply and Sanitation
A22: Cape Verde | B22: 3.1.8, Water Supply and Sanitation
A23: Colombia | B23: 6.1.1, Cross Cutting
A24: Colombia | B24: 3.3.2, Social Services
A25: Costa Rica | B25: 2.2.3, Local Government and Decentralization
A26: Dominican Republic | B26: 3.1.7, Family Planning and Reproductive Health
A27: Dominican Republic | B27: 3.2.1, Basic Education
A28: Dominican Republic | B28: 4.6.2, Private Sector Capacity
A29: Dominican Republic | B29: 4.8.1, Natural Resources and Biodiversity
A30: Dominican Republic | B30: 4.8.2, Clean Productive Environment
A31: Eastern Caribbean | B31: 3.1.1, HIV/AIDS
A32: Eastern Caribbean | B32: 4.7.3, Strengthen Microenterprise Productivity
A33: Eastern Caribbean | B33: 4.8.2, Clean Productive Environment
A34: Ecuador | B34: 4.8.1, Natural Resources and Biodiversity
A35: El Salvador | B35: 3.2.1, Basic Education
A36: El Salvador | B36: 2.2.3, Local Government and Decentralization
A37: El Salvador | B37: 3.1.6, Maternal and Child Health
A38: El Salvador | B38: 4.8.1, Natural Resources and Biodiversity
A39: Ethiopia | B39: 4.5.2, Agricultural Sector Productivity
A40: Fiji | B40: 4.8.2, Clean Productive Environment
A41: Georgia | B41: 2.4.1, Civic Participation
A42: Ghana | B42: 3.1.3, Malaria
A43: Ghana | B43: 3.1.6, Maternal and Child Health
A44: Ghana | B44: 3.1.8, Water Supply and Sanitation
A45: Ghana | B45: 3.1.9, Nutrition
A46: Ghana | B46: 3.2.1, Basic Education
A47: Ghana | B47: 4.5.2, Agricultural Sector Productivity
A48: Ghana | B48: 4.6.3, Workforce Development
A49: Guatemala | B49: 4.8.2, Clean Productive Environment
A50: Guatemala | B50: 2.2.3, Local Government and Decentralization
A51: Guatemala | B51: 4.5.2, Agricultural Sector Productivity
A52: Guatemala | B52: 4.8.1, Natural Resources and Biodiversity
A53: Guinea | B53: 3.1.1, HIV/AIDS
A54: Guinea | B54: 3.1.8, Water Supply and Sanitation
A55: Guinea | B55: 3.1.6, Maternal and Child Health
A56: Guinea | B56: 3.1.7, Family Planning and Reproductive Health
A57: Guinea | B57: 4.5.2, Agricultural Sector Productivity
A58: Guinea | B58: 4.7.3, Strengthen Microenterprise Productivity
A59: Guinea | B59: 3.2.1, Basic Education
A60: Jamaica | B60: 3.2.1, Basic Education
A61: Jamaica | B61: 4.8.2, Clean Productive Environment
A62: Jamaica | B62: 1.3.7, Law Enforcement Restructuring, Reform and Operations
A63: Jamaica | B63: 2.4.1, Civic Participation
A64: Jamaica | B64: 3.1.1, HIV/AIDS
A65: Jamaica | B65: 4.2.1, Trade and Investment Enabling Environment
A66: Jamaica | B66: 4.5.2, Agricultural Sector Productivity
A67: Jamaica | B67: 4.8.1, Natural Resources and Biodiversity
A68: Jordan | B68: 4.6.3, Workforce Development
A69: Kazakhstan | B69: 2.4.1, Civic Participation
A70: Kazakhstan | B70: 3.1.1, HIV/AIDS
A71: Kazakhstan | B71: 3.1.6, Maternal and Child Health
A72: Kazakhstan | B72: 3.1.7, Family Planning and Reproductive Health
A73: Kazakhstan | B73: 3.1.8, Water Supply and Sanitation
A74: Kazakhstan | B74: 3.2.1, Basic Education
A75: Kazakhstan | B75: 4.5.2, Agricultural Sector Productivity
A76: Kazakhstan | B76: 4.7.3, Strengthen Microenterprise Productivity
A77: Kazakhstan | B77: 4.8.2, Clean Productive Environment
A78: Kyrgyz Republic | B78: 2.4.1, Civic Participation
A79: Kyrgyz Republic | B79: 3.1.1, HIV/AIDS
A80: Kyrgyz Republic | B80: 3.1.6, Maternal and Child Health
A81: Kyrgyz Republic | B81: 3.1.7, Family Planning and Reproductive Health
A82: Kyrgyz Republic | B82: 3.1.8, Water Supply and Sanitation
A83: Kyrgyz Republic | B83: 3.2.1, Basic Education
A84: Kyrgyz Republic | B84: 4.5.2, Agricultural Sector Productivity
A85: Kyrgyz Republic | B85: 4.7.3, Strengthen Microenterprise Productivity
A86: Kyrgyz Republic | B86: 4.8.2, Clean Productive Environment
A87: Kyrgyz Republic | B87: 6.1.1, Cross Cutting
A88: Liberia | B88: 3.1.1, HIV/AIDS
A89: Liberia | B89: 3.1.6, Maternal and Child Health
A90: Liberia | B90: 3.2.1, Basic Education
A91: Liberia | B91: 3.2.2, Higher Education
A92: Macedonia | B92: 2.4.1, Civic Participation
A93: Madagascar | B93: 3.1.3, Malaria
A94: Madagascar | B94: 3.1.6, Maternal and Child Health
A95: Malawi | B95: 3.1.1, HIV/AIDS
A96: Malawi | B96: 3.1.6, Maternal and Child Health
A97: Malawi | B97: 3.1.9, Nutrition
A98: Malawi | B98: 3.2.1, Basic Education
A99: Malawi | B99: 4.5.2, Agricultural Sector Productivity
A100: Malawi | B100: 4.7.3, Strengthen Microenterprise Productivity
A101: Malawi | B101: 4.8.1, Natural Resources and Biodiversity
A102: Mali | B102: 2.2.3, Local Government and Decentralization
A103: Mali | B103: 3.1.1, HIV/AIDS
A104: Mali | B104: 3.1.3, Malaria
A105: Mali | B105: 3.1.6, Maternal and Child Health
A106: Mali | B106: 3.1.7, Family Planning and Reproductive Health
A107: Mali | B107: 3.2.1, Basic Education
A108: Mali | B108: 4.3.1, Financial Sector Enabling Environment
A109: Mali | B109: 4.3.2, Financial Sector Capacity
A110: Mali | B110: 4.5.2, Agricultural Sector Productivity
A111: Mali | B111: 4.8.1, Natural Resources and Biodiversity
A112: Mali | B112: 4.8.2, Clean Productive Environment
A113: Mexico | B113: 4.6.1, Business Enabling Environment
A114: Mexico | B114: 4.8.1, Natural Resources and Biodiversity
A115: Mexico | B115: 4.8.2, Clean Productive Environment
A116: Micronesia | B116: 5.2.1, Capacity Building, Preparedness and Planning
A117: Moldova | B117: 2.4.1, Civic Participation
A118: Moldova | B118: 4.7.3, Strengthen Microenterprise Productivity
A119: Mongolia | B119: 4.6.3, Workforce Development
A120: Morocco | B120: 2.4.1, Civic Participation
A121: Morocco | B121: 3.2.1, Basic Education
A122: Morocco | B122: 4.8.1, Natural Resources and Biodiversity
A123: Mozambique | B123: 3.1.3, Malaria
A124: Mozambique | B124: 3.1.9, Nutrition
A125: Nicaragua | B125: 2.2.3, Local Government and Decentralization
A126: Nicaragua | B126: 2.4.1, Civic Participation
A127: Nicaragua | B127: 3.1.6, Maternal and Child Health
A128: Nicaragua | B128: 3.1.8, Water Supply and Sanitation
A129: Nicaragua | B129: 3.2.1, Basic Education
A130: Nicaragua | B130: 4.5.2, Agricultural Sector Productivity
A131: Nicaragua | B131: 5.2.2, Disaster Readiness and Mitigation
A132: Panama | B132: 2.2.3, Local Government and Decentralization
A133: Panama | B133: 4.8.1, Natural Resources and Biodiversity
A134: Paraguay | B134: 2.2.4, Anti-Corruption Reforms
A135: Paraguay | B135: 4.6.3, Workforce Development
A136: Peru | B136: 3.2.1, Basic Education
A137: Peru | B137: 4.8.2, Clean Productive Environment
A138: Peru | B138: 3.1.6, Maternal and Child Health
A139: Peru | B139: 4.2.2, Trade and Investment Capacity
A140: Peru | B140: 4.6.2, Private Sector Capacity
A141: Philippines | B141: 3.1.1, HIV/AIDS
A142: Philippines | B142: 3.2.1, Basic Education
A143: Philippines | B143: 4.8.1, Natural Resources and Biodiversity
A144: Philippines | B144: 4.8.2, Clean Productive Environment
A145: Romania | B145: 2.4.1, Civic Participation
A146: Romania | B146: 4.6.3, Workforce Development
A147: Rwanda | B147: 3.2.1, Basic Education
A148: Rwanda | B148: 4.5.2, Agricultural Sector Productivity
A149: Senegal | B149: 3.1.3, Malaria
A150: Senegal | B150: 3.1.6, Maternal and Child Health
A151: Senegal | B151: 3.1.7, Family Planning and Reproductive Health
A152: Senegal | B152: 3.2.1, Basic Education
A153: Senegal | B153: 4.5.2, Agricultural Sector Productivity
A154: Senegal | B154: 4.8.1, Natural Resources and Biodiversity
A155: Sierra Leone | B155: 2.3.2, Elections and Political Processes
A156: Sierra Leone | B156: 3.1.1, HIV/AIDS
A157: Sierra Leone | B157: 3.1.7, Family Planning and Reproductive Health
A158: Sierra Leone | B158: 3.1.8, Water Supply and Sanitation
A159: Tanzania | B159: 3.1.3, Malaria
A160: Tanzania | B160: 3.1.6, Maternal and Child Health
A161: Tanzania | B161: 4.8.1, Natural Resources and Biodiversity
A162: Tanzania | B162: 3.1.8, Water Supply and Sanitation
A163: Tanzania | B163: 3.2.1, Basic Education
A164: The Gambia | B164: 3.1.8, Water Supply and Sanitation
A165: The Gambia | B165: 3.1.1, HIV/AIDS
A166: The Gambia | B166: 3.1.7, Family Planning and Reproductive Health
A167: Togo | B167: 3.1.1, HIV/AIDS
A168: Togo | B168: 3.1.6, Maternal and Child Health
A169: Togo | B169: 3.1.7, Family Planning and Reproductive Health
A170: Togo | B170: 3.1.8, Water Supply and Sanitation
A171: Turkmenistan | B171: 2.4.1, Civic Participation
A172: Turkmenistan | B172: 3.1.1, HIV/AIDS
A173: Turkmenistan | B173: 3.1.6, Maternal and Child Health
A174: Turkmenistan | B174: 3.1.7, Family Planning and Reproductive Health
A175: Turkmenistan | B175: 3.1.8, Water Supply and Sanitation
A176: Turkmenistan | B176: 3.2.1, Basic Education
A177: Turkmenistan | B177: 4.5.2, Agricultural Sector Productivity
A178: Turkmenistan | B178: 4.7.3, Strengthen Microenterprise Productivity
A179: Turkmenistan | B179: 4.8.2, Clean Productive Environment
A180: Uganda | B180: 3.1.3, Malaria
A181: Uganda | B181: 3.2.1, Basic Education
A182: Uganda | B182: 3.1.6, Maternal and Child Health
A183: Uganda | B183: 3.1.8, Water Supply and Sanitation
A184: Uganda | B184: 4.5.2, Agricultural Sector Productivity
A185: Ukraine | B185: 2.4.1, Civic Participation
A186: Vanuatu | B186: 4.8.2, Clean Productive Environment
A187: Zambia | B187: 3.1.3, Malaria
A188: Zambia | B188: 3.1.6, Maternal and Child Health
A189: Zambia | B189: 3.1.9, Nutrition
A190: Zambia | B190: 3.2.1, Basic Education
A191: Zambia | B191: 3.1.7, Family Planning and Reproductive Health
A192: Zambia | B192: 4.5.2, Agricultural Sector Productivity

Sheet SPA Elements and Indicators (hidden)
A3: 1.3.7 | B3: # of communities in USG-assisted areas using community policing methods | J3: Communities | P3: 1
B4: # of programs conducted to enhance and improve police/community relationships | J4: Programs | P4: 2
A6: 2.2.3 | B6: # of community based organizations (CBOs) or governmental entities that received assistance to strengthen local government and/or decentralization efforts | J6: CBOs | K6: Governmental entities | P6: 3
B7: # of individuals who received training or assistance to strengthen local government and/or decentralization efforts | J7: Men 25 and older | K7: Women 25 and older | L7: Men 15-24 | M7: Women 15-24 | N7: Boys 14 and under | O7: Girls 14 and under | P7: 4
B8: # of private sector actors/entities engaged during the planning or implementation of the activity (CARSI) | J8: Actors/Entities | P8: 5
B9: # of service providers who have benefitted from USG-supported educational and socio-economic opportunities (CARSI) | J9: Men 25 and older | K9: Women 25 and older | L9: Men 15-24 | M9: Women 15-24 | P9: 6
B10: # of youth between 15 and 25 who have benefitted from USG-supported educational and socio-economic opportunities (CARSI) | J10: Male, 15-25 | K10: Female, 15-25 | P10: 7
B11: # of youth who are under 15 who have benefitted from USG-supported educational and socio-economic opportunities (CARSI) | J11: Boys, 14 and under | K11: Girls, 14 and under | P11: 8
B12: # of communities benefited with USG assistance (CARSI) | J12: Communities | P12: 9
B13: # of USG-assisted organizations and/or service delivery systems that serve youth (CARSI) | J13: Organizations | K13: Service delivery systems | P13: 10
B14: CARSI Risk Factor: 1. Dysfunctional families, lack of supervision in the home and high rates of domestic violence | J14: Mark "X" if applies | P14: 11
B15: CARSI Risk Factor: 2. Loss of family and social values | J15: Mark "X" if applies | P15: 12
B16: CARSI Risk Factor: 3. The need for Identity and belonging, low self-esteem, negative peer contact and lack of dreams | J16: Mark "X" if applies | P16: 13
B17: CARSI Risk Factor: 4. Irresponsible sexual activity at an early stage | J17: Mark "X" if applies | P17: 14
B18: CARSI Risk Factor: 5. Limited access to formal and informal education | J18: Mark "X" if applies | P18: 15
B19: CARSI Risk Factor: 6. Low quality of education/teachers, high school dropout rate | J19: Mark "X" if applies | P19: 16
B20: CARSI Risk Factor: 7. High unemployment among youth and a lack of skills for employment | J20: Mark "X" if applies | P20: 17
B21: CARSI Risk Factor: 8. Overcrowded neighborhoods with limited access to basic services and spaces for recreation | J21: Mark "X" if applies | P21: 18
A23: 2.2.4 | B23: # of community based organizations (CBOs) or governmental entities that received assistance to strengthen management skills and/or fiscal management | J23: Community based organizations | K23: Governmental entities | P23: 19
B24: # of individuals who received US government-assisted training in management skills and/or fiscal management | J24: Men 25 and older | K24: Women 25 and older | L24: Men 15-24 | M24: Women 15-24 | N24: Boys 14 and under | O24: Girls 14 and under | P24: 20
B25: # of individuals trained/educated in civic education and leadership capacity | J25: Men 25 and older | K25: Women 25 and older | L25: Men 15-24 | M25: Women 15-24 | N25: Boys 14 and under | O25: Girls 14 and under | P25: 21
A27: 2.3.2 | B27: # of individuals receiving civic education through US government-assisted programs | J27: Men 25 and older | K27: Women 25 and older | L27: Men 15-24 | M27: Women 15-24 | N27: Boys 14 and under | O27: Girls 14 and under | P27: 22
B28: # of local mechanisms (such as formation of girls empowerment clubs, youth leadership camps and student governance/student peer-group learning) supported with US government assistance for citizens to engage their sub-national government | J28: Girls empowerment clubs | K28: Youth leadership camps | L28: Student governence | M28: Student peer group learning | N28: Other mechanisms | P28: 23
A30: 2.4.1 | B30: # of civil society organizations using US government assistance to improve internal organizational capacity | J30: Civil society organizations | P30: 24
B31: # of people who have completed USG-assisted civic education programs | J31: Men 25 and older | K31: Women 25 and older | L31: Men 15-24 | M31: Women 15-24 | N31: Boys 14 and under | O31: Girls 14 and under | P31: 25
B32: # of people trained/educated in organizational capacity and/or leadership | J32: Men 25 and older | K32: Women 25 and older | L32: Men 15-24 | M32: Women 15-24 | N32: Boys 14 and under | O32: Girls 14 and under | P32: 26
A34: 3.1.1 | B34: # of individuals reached through community outreach that promotes HIV/AIDS prevention | J34: Men 25 and older | K34: Women 25 and older | L34: Men 15-24 | M34: Women 15-24 | N34: Boys 14 and under | O34: Girls 14 and under | P34: 28
B35: # of health care workers who successfully completed an in-service training program for HIV/AIDS related service delivery | J35: Men 25 and older | K35: Women 25 and older | L35: Men 15-24 | M35: Women 15-24 | P35: 29
B36: # of MARP (most at-risk population) reached with individual and/or small group level HIV preventive interventions that are based on evidence and/or meet the minimum standards required | J36: Commercial sex workers (CSW) | K36: Injecting drug users (IDU) | L36: Men who have sex with men (MSM) | N36: Other vulnerable populations | P36: 30
B37: # of individuals reached through community outreach that promotes HIV/AIDS care and treatment | J37: Men 25 and older | K37: Women 25 and older | L37: Men 15-24 | M37: Women 15-24 | N37: Boys 14 and under | O37: Girls 14 and under | P37: 31
B38: # of individuals trained in HIV-related stigma and discrimination reduction | J38: Men 25 and older | K38: Women 25 and older | L38: Men 15-24 | M38: Women 15-24 | P38: 32
B39: # of local organizations provided with technical assistance for HIV-related institutional capacity building | J39: Organizations | P39: 33
N40: =IF(ISNA(MATCH(N37,B:B,0)),"",INDIRECT("B"&MATCH(N37,B:B,0)+1)) -> 
A41: 3.1.3 | B41: # of community health workers trained in home based care | J41: Men 25 and older | K41: Women 25 and older | L41: Men 15-24 | M41: Women 15-24 | P41: 34
B42: # of community health workers trained in Intermittent Presumptive Treatment for pregnant women (IPTp) | J42: Men 25 and older | K42: Women 25 and older | L42: Men 15-24 | M42: Women 15-24 | P42: 35
B43: # of community health workers trained in Rapid Diagnostic Test (RDT) use | J43: Men 25 and older | K43: Women 25 and older | L43: Men 15-24 | M43: Women 15-24 | P43: 36
B44: # of community health workers trained in malaria prevention Behavior Change Communication (BCC) messaging skills | J44: Men 25 and older | K44: Women 25 and older | L44: Men 15-24 | M44: Women 15-24 | P44: 37
B45: # of people receiving malaria prevention Behavior Change Communication (BCC) messaging regarding early treatment | J45: Men 25 and older | K45: Women 25 and older | L45: Men 15-24 | M45: Women 15-24 | N45: Boys 14 and under | O45: Girls 14 and under | P45: 38
B46: # of people receiving malaria prevention Behavior Change Communication (BCC) messaging regarding net usage | J46: Men 25 and older | K46: Women 25 and older | L46: Men 15-24 | M46: Women 15-24 | N46: Boys 14 and under | O46: Girls 14 and under | P46: 39
B47: # of people receiving malaria prevention Behavior Change Communication (BCC) messaging regarding Intermittent Presumptive Treatment for pregnant women (IPTp) | J47: Men 25 and older | K47: Women 25 and older | L47: Men 15-24 | M47: Women 15-24 | N47: Boys 14 and under | O47: Girls 14 and under | P47: 40
B48: # of people receiving malaria prevention Behavior Change Communication (BCC) messaging regarding Indoor Residual Spraying (IRS) | J48: Men 25 and older | K48: Women 25 and older | L48: Men 15-24 | M48: Women 15-24 | N48: Boys 14 and under | O48: Girls 14 and under | P48: 41
B49: # of Long Lasting Insecticide-Treated Nets (LLITNs) distributed | J49: Nets | P49: 42
A51: 3.1.6 | B51: # of individuals trained in maternal or newborn health through USG supported programs | J51: Men 25 and older | K51: Women 25 and older | L51: Men 15-24 | M51: Women 15-24 | P51: 43
B52: # of individuals trained in child health and nutrition through US government-supported health area programs | J52: Men 25 and older | K52: Women 25 and older | L52: Men 15-24 | M52: Women 15-24 | P52: 44
B53: # of children reached by USG-supported nutrition programs | J53: Boys 6-14 | K53: Girls 6-14 | L53: Boys 5 and under | M53: Girls 5 and under | P53: 45
A55: 3.1.7 | B55: # of US government-assisted community health workers (CHWs) trained to provide family planning (FP) information and/or services during the year | J55: Men 25 and older | K55: Women 25 and older | L55: Men 15-24 | M55: Women 15-24 | P55: 46
B56: # of individuals that have seen or heard a specific USG-supported FP/RH message | J56: Men 25 and older | K56: Women 25 and older | L56: Men 15-24 | M56: Women 15-24 | N56: Boys 14 and under | O56: Girls 14 and under | P56: 47
A58: 3.1.8 | B58: # of people gaining access to an improved drinking water source | J58: Men 25 and older | K58: Women 25 and older | L58: Men 15-24 | M58: Women 15-24 | N58: Boys 14 and under | O58: Girls 14 and under | P58: 51
B59: # of people gaining access to an improved sanitation facility | J59: Men 25 and older | K59: Women 25 and older | L59: Men 15-24 | M59: Women 15-24 | N59: Boys 14 and under | O59: Girls 14 and under | P59: 52
A61: 3.1.9 | B61: # of people trained in child health and nutrition through USG-supported health area programs | J61: Men 25 and older | K61: Women 25 and older | L61: Men 15-24 | M61: Women 15-24 | P61: 53
B62: # of health facilities with improved capacity to manage acute under-nutrition | J62: Facilities | P62: 54
B63: # of children under five reached by US government-supported nutrition programs | J63: Boys under 5 years old | K63: Girls under 5 years old | P63: 55
A65: 3.2.1 | B65: # of textbooks and other teaching and learning materials (TLM) provided with US government assistance | J65: Textbooks | P65: 56
B66: # of schools using Information and Communication Technology due to US government support | J66: Schools | P66: 57
B67: # of classrooms built or repaired with US government assistance | J67: Classrooms | P67: 58
B68: # of teachers/educators who received training with US government support | J68: Men 25 and older | K68: Women 25 and older | L68: Men 15-24 | M68: Women 15-24 | P68: 59
B69: # of education administrators and officials trained with US government support | J69: Men 25 and older | K69: Women 25 and older | L69: Men 15-24 | M69: Women 15-24 | P69: 60
B70: # of PTAs or similar ‘school’ governance structures supported | J70: PTAs | P70: 61
B71: # of learners enrolled in USG-supported secondary schools or equivalent non-school-based settings | J71: Men 25 and older | K71: Women 25 and older | L71: Men 15-24 | M71: Women 15-24 | N71: Boys 14 and under | O71: Girls 14 and under | P71: 62
B72: # of learners receiving literacy interventions at the primary level | J72: Men 25 and older | K72: Women 25 and older | L72: Men 15-24 | M72: Women 15-24 | N72: Boys 14 and under | O72: Girls 14 and under | P72: 63
B73: # of learners at the primary level receiving US government-supported training other than literacy interventions | J73: Men 25 and older | K73: Women 25 and older | L73: Men 15-25 | M73: Women 15-25 | N73: Boys 14 and under | O73: Girls 14 and under | P73: 64
A75: 3.2.2 | B75: # of US government-assisted curricula revised with private and/or public sector employers’ input | J75: Curricula | P75: 65
B76: # of US government-supported tertiary or vocational programs | J76: Programs | P76: 66
B77: # of individuals trained as a result of US governement investments in higher education institutions | J77: Men 25 and older | K77: Women 25 and older | L77: Men 15-24 | M77: Women 15-24 | P77: 67
A79: 3.3.2 | B79: # of vulnerable individuals benefitting from US government-supported social services | J79: Men 25 and older | K79: Women 25 and older | L79: Men 15-24 | M79: Women 15-24 | N79: Boys 14 and under | O79: Girls 14 and under | P79: 68
B80: # of service providers trained who serve vulnerable persons | J80: Men 25 and older | K80: Women 25 and older | L80: Men 15-24 | M80: Women 15-24 | P80: 69
B81: # of US government assisted organizations and/or service delivery systems strengthened who serve vulnerable populations | J81: Organizations | K81: Service Delivery Systems | P81: 70
A83: 3.3.3 | B83: # of individuals benefiting from US government-supported social assistance programming | J83: Men 25 and older | K83: Women 25 and older | L83: Men 15-24 | M83: Women 15-24 | N83: Boys 14 and under | O83: Girls 14 and under | P83: 71
B84: # of service providers trained who serve vulnerable persons | J84: Men 25 and older | K84: Women 25 and older | L84: Men 15-24 | M84: Women 15-24 | P84: 72
B85: # of US government assisted organizations and/or service delivery systems strengthened who serve vulnerable populations | J85: Organizations | K85: Service delivery systems | P85: 73
A87: 4.2.1 | B87: # of individuals who received capacity building training and/or assistance in trade and/or investment enabling environment | J87: Men 25 and older | K87: Women 25 and older | L87: Men 15-24 | M87: Women 15-24 | P87: 74
B88: # of community based organizations, businesses or governmental entities that received assistance to strengthen trade and investment | J88: Community based organizations | K88: Governmental entities | L88: Businesses | P88: 75
A90: 4.2.2 | B90: # of individuals who received capacity building training and/or assistance in trade and/or investment capacity | J90: Men 25 and older | K90: Women 25 and older | L90: Men 15-24 | M90: Women 15-24 | P90: 76
B91: # of community based organizations, businesses or governmental entities that received assistance to strengthen trade and/or investment capacity | J91: Community based organizations | K91: Governmental entities | L91: Businesses | P91: 77
A93: 4.3.1 | B93: # of individuals who received capacity building training and/or assistance to enable or enhance the financial sector environment | J93: Men 25 and older | K93: Women 25 and older | L93: Men 15-24 | M93: Women 15-24 | P93: 78
B94: # of community based organizations (CBOs), businesses or governmental entities that received assistance to enable or enhance the financial sector environment | J94: Community based organizations | K94: Governmental entities | L94: Businesses | P94: 79
A96: 4.3.2 | B96: # of individuals who received capacity building training and/or assistance in the financial sector (such as trainings or assistance that improve financial management systems) | J96: Men 25 and older | K96: Women 25 and older | L96: Men 15-24 | M96: Women 15-24 | P96: 80
B97: # of community based organizations (CBOs), businesses or governmental entities that received assistance to enable or enhance the financial sector environment | J97: Community based organizations | K97: Governmental entities | L97: Businesses | P97: 81
A99: 4.5.1 | B99: # of hectares under improved technologies or management practices as a result of USG assistance | J99: Hectares | P99: 82
B100: # of farmers and others who have applied new technologies or management practices as a result of US government assistance | J100: Men 25 and older | K100: Women 25 and older | L100: Men 15-24 | M100: Women 15-24 | N100: Boys 14 and under | O100: Girls 14 and under | P100: 83
B101: # of food security private enterprises, producers organizations, water users associations, women's groups, trade and business associations, and community-based organizations receiving USG assistance | J101: Private enterprises | K101: Producers organizations | L101: Water users associations | M101: Women's groups | N101: Trade and business associations | O101: Community based organizations (CBOs) | P101: 84
B102: # of individuals who have received USG supported short term agricultural sector productivity or food security training | J102: Men 25 and older | K102: Women 25 and older | L102: Men 15-24 | M102: Women 15-24 | N102: Boys 14 and under | O102: Girls 14 and under | P102: 85
B103: # of food security private enterprises, producers organizations, water users associations, women's groups, trade and business associations, and community-based organizations that applied new technologies or management practices | J103: Private enterprises | K103: Producers organizations | L103: Water users associations | M103: Women's groups | N103: Trade and business associations | O103: Community based organizations (CBOs) | P103: 86
A105: 4.5.2 | B105: # of hectares under improved technologies or management practices as a result of USG assistance | J105: Hectares | P105: 87
B106: # of farmers and others who have applied new technologies or management practices as a result of US government assistance | J106: Men 25 and older | K106: Women 25 and older | L106: Men 15-24 | M106: Women 15-24 | N106: Boys 14 and under | O106: Girls 14 and under | P106: 88
B107: # of food security private enterprises, producers organizations, water users associations, women's groups, trade and business associations, and community-based organizations receiving USG assistance | J107: Private enterprises | K107: Producers organizations | L107: Water users associations | M107: Women's groups | N107: Trade and business associations | O107: Community based organizations (CBOs) | P107: 89
B108: # of individuals who have received USG supported short term agricultural sector productivity or food security training | J108: Men 25 and older | K108: Women 25 and older | L108: Men 15-24 | M108: Women 15-24 | N108: Boys 14 and under | O108: Girls 14 and under | P108: 90
B109: # of food security private enterprises, producers organizations, water users associations, women's groups, trade and business associations, and community-based organizations that applied new technologies or management practices | J109: Private enterprises | K109: Producers organizations | L109: Water users associations | M109: Women's groups | N109: Trade and business associations | O109: Community based organizations (CBOs) | P109: 91
A111: 4.6.1 | B111: # of individuals who received capacity building training and/or assistance to strengthen the business environment | J111: Men 25 and older | K111: Women 25 and older | L111: Men 15-24 | M111: Women 15-24 | N111: Boys 14 and under | O111: Girls 14 and under | P111: 92
B112: # of community based organizations (CBOs), businesses or governmental entities that received assistance to strengthen the business environment | J112: Community based organizations | K112: Governmental entities | L112: Businesses | P112: 93
A114: 4.6.2 | B114: # of private sector firms that have improved management practices as a result of US government assistance | J114: Firms | P114: 94
B115: # of individuals who received training or assistance to strengthen private sector productivity | J115: Men 25 and older | K115: Women 25 and older | L115: Men 15-24 | M115: Women 15-24 | P115: 95
A117: 4.6.3 | B117: # of individuals who received training or assistance in workforce development | J117: Men 25 and older | K117: Women 25 and older | L117: Men 15-24 | M117: Women 15-24 | N117: Boys 14 and under | O117: Girls 14 and under | P117: 96
B118: # of workforce development initiatives completed as a result of USG participation in public-private partnerships | J118: Initiatives | P118: 97
A120: 4.7.3 | B120: # of microenterprises supported by US government enterprise assistance | J120: Microenterprises | P120: 98
B121: # of individuals who received training or assistance to strengthen microenterprises | J121: Men 25 and older | K121: Women 25 and older | L121: Men 15-24 | M121: Women 15-24 | P121: 99
A123: 4.8.1 | B123: # of people with increased economic benefits derived from sustainable natural resource management and conservation as a result of US government assistance | J123: Men 25 and older | K123: Women 25 and older | L123: Men 15-24 | M123: Women 15-24 | N123: Boys 14 and under | O123: Girls 14 and under | P123: 100
B124: # of hectares of biological significance and/or natural resources under improved natural resource management as a result of US government assistance | J124: Hectares | P124: 101
B125: # of people receiving US government supported training in natural resources management and/or biodiversity conservation. | J125: Men 25 and older | K125: Women 25 and older | L125: Men 15-24 | M125: Women 15-24 | N125: Boys 14 and under | O125: Girls 14 and under | P125: 102
A127: 4.8.2 | B127: # of institutions with improved capacity to address climate change issues as a result of US government assistance | J127: Institutions | P127: 103
B128: # of people with increased capacity to adapt to the impacts of climate variability and change as a result of US government assistance | J128: Men 25 and older | K128: Women 25 and older | L128: Men 15-24 | M128: Women 15-24 | P128: 104
A130: 5.2.1 | B130: # of people trained in disaster preparedness as a result of US government assistance | J130: Men 25 and older | K130: Women 25 and older | L130: Men 15-24 | M130: Women 15-24 | N130: Boys 14 and under | O130: Girls 14 and under | P130: 105
B131: # of hazard risk reduction plans, policies, strategies, systems, or curricula developed | J131: Risk reduction plans | K131: Policies | L131: Strategies | M131: Systems | N131: Curricula | P131: 106
A133: 5.2.2 | B133: # of communities who benefit from a USG-assisted physical infrastructure improvement that mitigates effects of inaccessibility to food or water. | J133: Communities | P133: 107
A135: 6.1.1 | B135: # of youth participating (ages 15-25) | J135: Male, 15-25 | K135: Female, 15-25 | P135: 108
B136: # of community groups benefitting | J136: Community groups | P136: 109
B137: # of new services provided | J137: Services | P137: 110
B138: # of service providers benefitting/using | J138: Men 25 and older | K138: Women 25 and older | L138: Men 15-24 | M138: Women 15-24 | P138: 111
A140: 6.6.6 | B140: # of communities with strengthened capacity to conduct supplementary early grade reading and literacy activities. | J140: Communities | P140: 112
B141: # of community and school libraries established. | J141: Libraries, community | K141: Libraries, school | P141: 113
B142: # of textbooks and other teaching and learning materials provided with USG assistance | J142: Textbooks | K142: Other teaching and learning materials | P142: 114
B143: # of activities that promote gender equitable practices | J143: Gender activities | P143: 115
A145: 9.9.9 | B145: PLACE HOLDER TO END THE LIST

Sheet Custom SPA Indicators (hidden)
C1: 1
C2: 2
C3: 3
C4: 4
C5: 5
C6: 6
A7: 1.3.7 | C7: 7
A8: 2.2.3 | C8: 8
B9: =IF(OR(ISNA(EXACT(CountryChoice,HLOOKUP(CountryChoice,'Custom SPA Indicator Source'!A$1:AA$4,1,FALSE))),ISBLANK(HLOOKUP(CountryChoice,'Custom SPA Indicator Source'!A$1:AA$4,C2,FALSE))),"No Indicator",HLOOKUP(CountryChoice,'Custom SPA Indicator Source'!A$1:AA$4,C2,FALSE)) -> No Indicator | C9: 9
B10: =IF(OR(ISNA(EXACT(CountryChoice,HLOOKUP(CountryChoice,'Custom SPA Indicator Source'!A$1:AA$4,1,FALSE))),ISBLANK(HLOOKUP(CountryChoice,'Custom SPA Indicator Source'!A$1:AA$4,C3,FALSE))),"No Indicator",HLOOKUP(CountryChoice,'Custom SPA Indicator Source'!A$1:AA$4,C3,FALSE)) -> No Indicator | C10: 10
A11: 2.2.4 | C11: 11
A12: 2.3.2 | C12: 12
A13: 2.4.1 | C13: 13
A14: 3.1.1 | C14: 14
B15: =IF(OR(ISNA(EXACT(CountryChoice,HLOOKUP(CountryChoice,'Custom SPA Indicator Source'!A$5:AA$10,1,FALSE))),ISBLANK(HLOOKUP(CountryChoice,'Custom SPA Indicator Source'!A$5:AA$10,C2,FALSE))),"No Indicator",HLOOKUP(CountryChoice,'Custom SPA Indicator Source'!A$5:AA$10,C2,FALSE)) -> No Indicator | C15: 15
B16: =IF(OR(ISNA(EXACT(CountryChoice,HLOOKUP(CountryChoice,'Custom SPA Indicator Source'!A$5:AA$10,1,FALSE))),ISBLANK(HLOOKUP(CountryChoice,'Custom SPA Indicator Source'!A$5:AA$10,C3,FALSE))),"No Indicator",HLOOKUP(CountryChoice,'Custom SPA Indicator Source'!A$5:AA$10,C3,FALSE)) -> No Indicator | C16: 16
B17: =IF(OR(ISNA(EXACT(CountryChoice,HLOOKUP(CountryChoice,'Custom SPA Indicator Source'!A$5:AA$10,1,FALSE))),ISBLANK(HLOOKUP(CountryChoice,'Custom SPA Indicator Source'!A$5:AA$10,C4,FALSE))),"No Indicator",HLOOKUP(CountryChoice,'Custom SPA Indicator Source'!A$5:AA$10,C4,FALSE)) -> No Indicator | C17: 17
B18: =IF(OR(ISNA(EXACT(CountryChoice,HLOOKUP(CountryChoice,'Custom SPA Indicator Source'!A$5:AA$10,1,FALSE))),ISBLANK(HLOOKUP(CountryChoice,'Custom SPA Indicator Source'!A$5:AA$10,C5,FALSE))),"No Indicator",HLOOKUP(CountryChoice,'Custom SPA Indicator Source'!A$5:AA$10,C5,FALSE)) -> No Indicator | C18: 18
A19: 3.1.3 | C19: No Indicator
B20: =IF(OR(ISNA(EXACT(CountryChoice,HLOOKUP(CountryChoice,'Custom SPA Indicator Source'!A$11:AA$19,1,FALSE))),ISBLANK(HLOOKUP(CountryChoice,'Custom SPA Indicator Source'!A$11:AA$19,C2,FALSE))),"No Indicator",HLOOKUP(CountryChoice,'Custom SPA Indicator Source'!A$11:AA$19,C2,FALSE)) -> No Indicator
B21: =IF(OR(ISNA(EXACT(CountryChoice,HLOOKUP(CountryChoice,'Custom SPA Indicator Source'!A$11:AA$19,1,FALSE))),ISBLANK(HLOOKUP(CountryChoice,'Custom SPA Indicator Source'!A$11:AA$19,C3,FALSE))),"No Indicator",HLOOKUP(CountryChoice,'Custom SPA Indicator Source'!A$11:AA$19,C3,FALSE)) -> No Indicator
B22: =IF(OR(ISNA(EXACT(CountryChoice,HLOOKUP(CountryChoice,'Custom SPA Indicator Source'!A$11:AA$19,1,FALSE))),ISBLANK(HLOOKUP(CountryChoice,'Custom SPA Indicator Source'!A$11:AA$19,C4,FALSE))),"No Indicator",HLOOKUP(CountryChoice,'Custom SPA Indicator Source'!A$11:AA$19,C4,FALSE)) -> No Indicator
B23: =IF(OR(ISNA(EXACT(CountryChoice,HLOOKUP(CountryChoice,'Custom SPA Indicator Source'!A$11:AA$19,1,FALSE))),ISBLANK(HLOOKUP(CountryChoice,'Custom SPA Indicator Source'!A$11:AA$19,C5,FALSE))),"No Indicator",HLOOKUP(CountryChoice,'Custom SPA Indicator Source'!A$11:AA$19,C5,FALSE)) -> No Indicator
B24: =IF(OR(ISNA(EXACT(CountryChoice,HLOOKUP(CountryChoice,'Custom SPA Indicator Source'!A$11:AA$19,1,FALSE))),ISBLANK(HLOOKUP(CountryChoice,'Custom SPA Indicator Source'!A$11:AA$19,C6,FALSE))),"No Indicator",HLOOKUP(CountryChoice,'Custom SPA Indicator Source'!A$11:AA$19,C6,FALSE)) -> No Indicator
B25: =IF(OR(ISNA(EXACT(CountryChoice,HLOOKUP(CountryChoice,'Custom SPA Indicator Source'!A$11:AA$19,1,FALSE))),ISBLANK(HLOOKUP(CountryChoice,'Custom SPA Indicator Source'!A$11:AA$19,C7,FALSE))),"No Indicator",HLOOKUP(CountryChoice,'Custom SPA Indicator Source'!A$11:AA$19,C7,FALSE)) -> No Indicator
B26: =IF(OR(ISNA(EXACT(CountryChoice,HLOOKUP(CountryChoice,'Custom SPA Indicator Source'!A$11:AA$19,1,FALSE))),ISBLANK(HLOOKUP(CountryChoice,'Custom SPA Indicator Source'!A$11:AA$19,C8,FALSE))),"No Indicator",HLOOKUP(CountryChoice,'Custom SPA Indicator Source'!A$11:AA$19,C8,FALSE)) -> No Indicator
A27: 3.1.6
B28: =IF(OR(ISNA(EXACT(CountryChoice,HLOOKUP(CountryChoice,'Custom SPA Indicator Source'!A$20:AA$23,1,FALSE))),ISBLANK(HLOOKUP(CountryChoice,'Custom SPA Indicator Source'!A$20:AA$23,C2,FALSE))),"No Indicator",HLOOKUP(CountryChoice,'Custom SPA Indicator Source'!A$20:AA$23,C2,FALSE)) -> No Indicator
B29: =IF(OR(ISNA(EXACT(CountryChoice,HLOOKUP(CountryChoice,'Custom SPA Indicator Source'!A$20:AA$23,1,FALSE))),ISBLANK(HLOOKUP(CountryChoice,'Custom SPA Indicator Source'!A$20:AA$23,C3,FALSE))),"No Indicator",HLOOKUP(CountryChoice,'Custom SPA Indicator Source'!A$20:AA$23,C3,FALSE)) -> No Indicator
A30: 3.1.7
A31: 3.1.8
A32: 3.1.9
B33: =IF(OR(ISNA(EXACT(CountryChoice,HLOOKUP(CountryChoice,'Custom SPA Indicator Source'!A$24:AA$26,1,FALSE))),ISBLANK(HLOOKUP(CountryChoice,'Custom SPA Indicator Source'!A$24:AA$26,C2,FALSE))),"No Indicator",HLOOKUP(CountryChoice,'Custom SPA Indicator Source'!A$24:AA$26,C2,FALSE)) -> No Indicator
A34: 3.2.1
B35: =IF(OR(ISNA(EXACT(CountryChoice,HLOOKUP(CountryChoice,'Custom SPA Indicator Source'!A$27:AA$33,1,FALSE))),ISBLANK(HLOOKUP(CountryChoice,'Custom SPA Indicator Source'!A$27:AA$33,C2,FALSE))),"No Indicator",HLOOKUP(CountryChoice,'Custom SPA Indicator Source'!A$27:AA$33,C2,FALSE)) -> No Indicator
B36: =IF(OR(ISNA(EXACT(CountryChoice,HLOOKUP(CountryChoice,'Custom SPA Indicator Source'!A$27:AA$33,1,FALSE))),ISBLANK(HLOOKUP(CountryChoice,'Custom SPA Indicator Source'!A$27:AA$33,C3,FALSE))),"No Indicator",HLOOKUP(CountryChoice,'Custom SPA Indicator Source'!A$27:AA$33,C3,FALSE)) -> No Indicator
B37: =IF(OR(ISNA(EXACT(CountryChoice,HLOOKUP(CountryChoice,'Custom SPA Indicator Source'!A$27:AA$33,1,FALSE))),ISBLANK(HLOOKUP(CountryChoice,'Custom SPA Indicator Source'!A$27:AA$33,C4,FALSE))),"No Indicator",HLOOKUP(CountryChoice,'Custom SPA Indicator Source'!A$27:AA$33,C4,FALSE)) -> No Indicator
B38: =IF(OR(ISNA(EXACT(CountryChoice,HLOOKUP(CountryChoice,'Custom SPA Indicator Source'!A$27:AA$33,1,FALSE))),ISBLANK(HLOOKUP(CountryChoice,'Custom SPA Indicator Source'!A$27:AA$33,C5,FALSE))),"No Indicator",HLOOKUP(CountryChoice,'Custom SPA Indicator Source'!A$27:AA$33,C5,FALSE)) -> No Indicator
B39: =IF(OR(ISNA(EXACT(CountryChoice,HLOOKUP(CountryChoice,'Custom SPA Indicator Source'!A$27:AA$33,1,FALSE))),ISBLANK(HLOOKUP(CountryChoice,'Custom SPA Indicator Source'!A$27:AA$33,C6,FALSE))),"No Indicator",HLOOKUP(CountryChoice,'Custom SPA Indicator Source'!A$27:AA$33,C6,FALSE)) -> No Indicator
A40: 3.2.2
B41: =IF(OR(ISNA(EXACT(CountryChoice,HLOOKUP(CountryChoice,'Custom SPA Indicator Source'!A$34:AA$37,1,FALSE))),ISBLANK(HLOOKUP(CountryChoice,'Custom SPA Indicator Source'!A$34:AA$37,C2,FALSE))),"No Indicator",HLOOKUP(CountryChoice,'Custom SPA Indicator Source'!A$34:AA$37,C2,FALSE)) -> No Indicator
B42: =IF(OR(ISNA(EXACT(CountryChoice,HLOOKUP(CountryChoice,'Custom SPA Indicator Source'!A$34:AA$37,1,FALSE))),ISBLANK(HLOOKUP(CountryChoice,'Custom SPA Indicator Source'!A$34:AA$37,C3,FALSE))),"No Indicator",HLOOKUP(CountryChoice,'Custom SPA Indicator Source'!A$34:AA$37,C3,FALSE)) -> No Indicator
A43: 3.3.2
A44: 3.3.3
A45: 4.2.1
A46: 4.2.2
B47: =IF(OR(ISNA(EXACT(CountryChoice,HLOOKUP(CountryChoice,'Custom SPA Indicator Source'!A$38:AA$40,1,FALSE))),ISBLANK(HLOOKUP(CountryChoice,'Custom SPA Indicator Source'!A$38:AA$40,C2,FALSE))),"No Indicator",HLOOKUP(CountryChoice,'Custom SPA Indicator Source'!A$38:AA$40,C2,FALSE)) -> No Indicator
A48: 4.3.1
A49: 4.3.2
A50: 4.5.1
A51: 4.5.2
B52: =IF(OR(ISNA(EXACT(CountryChoice,HLOOKUP(CountryChoice,'Custom SPA Indicator Source'!A$41:AA$43,1,FALSE))),ISBLANK(HLOOKUP(CountryChoice,'Custom SPA Indicator Source'!A$41:AA$43,C2,FALSE))),"No Indicator",HLOOKUP(CountryChoice,'Custom SPA Indicator Source'!A$41:AA$43,C2,FALSE)) -> No Indicator
A53: 4.6.1
B54: =IF(OR(ISNA(EXACT(CountryChoice,HLOOKUP(CountryChoice,'Custom SPA Indicator Source'!A$44:AA$49,1,FALSE))),ISBLANK(HLOOKUP(CountryChoice,'Custom SPA Indicator Source'!A$44:AA$49,C2,FALSE))),"No Indicator",HLOOKUP(CountryChoice,'Custom SPA Indicator Source'!A$44:AA$49,C2,FALSE)) -> No Indicator
B55: =IF(OR(ISNA(EXACT(CountryChoice,HLOOKUP(CountryChoice,'Custom SPA Indicator Source'!A$44:AA$49,1,FALSE))),ISBLANK(HLOOKUP(CountryChoice,'Custom SPA Indicator Source'!A$44:AA$49,C3,FALSE))),"No Indicator",HLOOKUP(CountryChoice,'Custom SPA Indicator Source'!A$44:AA$49,C3,FALSE)) -> No Indicator
B56: =IF(OR(ISNA(EXACT(CountryChoice,HLOOKUP(CountryChoice,'Custom SPA Indicator Source'!A$44:AA$49,1,FALSE))),ISBLANK(HLOOKUP(CountryChoice,'Custom SPA Indicator Source'!A$44:AA$49,C4,FALSE))),"No Indicator",HLOOKUP(CountryChoice,'Custom SPA Indicator Source'!A$44:AA$49,C4,FALSE)) -> No Indicator
B57: =IF(OR(ISNA(EXACT(CountryChoice,HLOOKUP(CountryChoice,'Custom SPA Indicator Source'!A$44:AA$49,1,FALSE))),ISBLANK(HLOOKUP(CountryChoice,'Custom SPA Indicator Source'!A$44:AA$49,C5,FALSE))),"No Indicator",HLOOKUP(CountryChoice,'Custom SPA Indicator Source'!A$44:AA$49,C5,FALSE)) -> No Indicator
A58: 4.6.2
A59: 4.6.3
B60: =IF(OR(ISNA(EXACT(CountryChoice,HLOOKUP(CountryChoice,'Custom SPA Indicator Source'!A$50:AA$56,1,FALSE))),ISBLANK(HLOOKUP(CountryChoice,'Custom SPA Indicator Source'!A$50:AA$56,C2,FALSE))),"No Indicator",HLOOKUP(CountryChoice,'Custom SPA Indicator Source'!A$50:AA$56,C2,FALSE)) -> No Indicator
B61: =IF(OR(ISNA(EXACT(CountryChoice,HLOOKUP(CountryChoice,'Custom SPA Indicator Source'!A$50:AA$56,1,FALSE))),ISBLANK(HLOOKUP(CountryChoice,'Custom SPA Indicator Source'!A$50:AA$56,C3,FALSE))),"No Indicator",HLOOKUP(CountryChoice,'Custom SPA Indicator Source'!A$50:AA$56,C3,FALSE)) -> No Indicator
B62: =IF(OR(ISNA(EXACT(CountryChoice,HLOOKUP(CountryChoice,'Custom SPA Indicator Source'!A$50:AA$56,1,FALSE))),ISBLANK(HLOOKUP(CountryChoice,'Custom SPA Indicator Source'!A$50:AA$56,C4,FALSE))),"No Indicator",HLOOKUP(CountryChoice,'Custom SPA Indicator Source'!A$50:AA$56,C4,FALSE)) -> No Indicator
B63: =IF(OR(ISNA(EXACT(CountryChoice,HLOOKUP(CountryChoice,'Custom SPA Indicator Source'!A$50:AA$56,1,FALSE))),ISBLANK(HLOOKUP(CountryChoice,'Custom SPA Indicator Source'!A$50:AA$56,C5,FALSE))),"No Indicator",HLOOKUP(CountryChoice,'Custom SPA Indicator Source'!A$50:AA$56,C5,FALSE)) -> No Indicator
B64: =IF(OR(ISNA(EXACT(CountryChoice,HLOOKUP(CountryChoice,'Custom SPA Indicator Source'!A$50:AA$56,1,FALSE))),ISBLANK(HLOOKUP(CountryChoice,'Custom SPA Indicator Source'!A$50:AA$56,C6,FALSE))),"No Indicator",HLOOKUP(CountryChoice,'Custom SPA Indicator Source'!A$50:AA$56,C6,FALSE)) -> No Indicator
A65: 4.7.3
B66: =IF(OR(ISNA(EXACT(CountryChoice,HLOOKUP(CountryChoice,'Custom SPA Indicator Source'!A$57:AA$59,1,FALSE))),ISBLANK(HLOOKUP(CountryChoice,'Custom SPA Indicator Source'!A$57:AA$59,C2,FALSE))),"No Indicator",HLOOKUP(CountryChoice,'Custom SPA Indicator Source'!A$57:AA$59,C2,FALSE)) -> No Indicator
A67: 4.8.1
B68: =IF(OR(ISNA(EXACT(CountryChoice,HLOOKUP(CountryChoice,'Custom SPA Indicator Source'!A$60:AA$64,1,FALSE))),ISBLANK(HLOOKUP(CountryChoice,'Custom SPA Indicator Source'!A$60:AA$64,C2,FALSE))),"No Indicator",HLOOKUP(CountryChoice,'Custom SPA Indicator Source'!A$60:AA$64,C2,FALSE)) -> No Indicator
B69: =IF(OR(ISNA(EXACT(CountryChoice,HLOOKUP(CountryChoice,'Custom SPA Indicator Source'!A$60:AA$64,1,FALSE))),ISBLANK(HLOOKUP(CountryChoice,'Custom SPA Indicator Source'!A$60:AA$64,C3,FALSE))),"No Indicator",HLOOKUP(CountryChoice,'Custom SPA Indicator Source'!A$60:AA$64,C3,FALSE)) -> No Indicator
B70: =IF(OR(ISNA(EXACT(CountryChoice,HLOOKUP(CountryChoice,'Custom SPA Indicator Source'!A$60:AA$64,1,FALSE))),ISBLANK(HLOOKUP(CountryChoice,'Custom SPA Indicator Source'!A$60:AA$64,C4,FALSE))),"No Indicator",HLOOKUP(CountryChoice,'Custom SPA Indicator Source'!A$60:AA$64,C4,FALSE)) -> No Indicator
A71: 4.8.2
B72: =IF(OR(ISNA(EXACT(CountryChoice,HLOOKUP(CountryChoice,'Custom SPA Indicator Source'!A$65:AA$73,1,FALSE))),ISBLANK(HLOOKUP(CountryChoice,'Custom SPA Indicator Source'!A$65:AA$73,C2,FALSE))),"No Indicator",HLOOKUP(CountryChoice,'Custom SPA Indicator Source'!A$65:AA$73,C2,FALSE)) -> No Indicator
B73: =IF(OR(ISNA(EXACT(CountryChoice,HLOOKUP(CountryChoice,'Custom SPA Indicator Source'!A$65:AA$73,1,FALSE))),ISBLANK(HLOOKUP(CountryChoice,'Custom SPA Indicator Source'!A$65:AA$73,C3,FALSE))),"No Indicator",HLOOKUP(CountryChoice,'Custom SPA Indicator Source'!A$65:AA$73,C3,FALSE)) -> No Indicator
B74: =IF(OR(ISNA(EXACT(CountryChoice,HLOOKUP(CountryChoice,'Custom SPA Indicator Source'!A$65:AA$73,1,FALSE))),ISBLANK(HLOOKUP(CountryChoice,'Custom SPA Indicator Source'!A$65:AA$73,C4,FALSE))),"No Indicator",HLOOKUP(CountryChoice,'Custom SPA Indicator Source'!A$65:AA$73,C4,FALSE)) -> No Indicator
B75: =IF(OR(ISNA(EXACT(CountryChoice,HLOOKUP(CountryChoice,'Custom SPA Indicator Source'!A$65:AA$73,1,FALSE))),ISBLANK(HLOOKUP(CountryChoice,'Custom SPA Indicator Source'!A$65:AA$73,C5,FALSE))),"No Indicator",HLOOKUP(CountryChoice,'Custom SPA Indicator Source'!A$65:AA$73,C5,FALSE)) -> No Indicator
B76: =IF(OR(ISNA(EXACT(CountryChoice,HLOOKUP(CountryChoice,'Custom SPA Indicator Source'!A$65:AA$73,1,FALSE))),ISBLANK(HLOOKUP(CountryChoice,'Custom SPA Indicator Source'!A$65:AA$73,C6,FALSE))),"No Indicator",HLOOKUP(CountryChoice,'Custom SPA Indicator Source'!A$65:AA$73,C6,FALSE)) -> No Indicator
B77: =IF(OR(ISNA(EXACT(CountryChoice,HLOOKUP(CountryChoice,'Custom SPA Indicator Source'!A$65:AA$73,1,FALSE))),ISBLANK(HLOOKUP(CountryChoice,'Custom SPA Indicator Source'!A$65:AA$73,C7,FALSE))),"No Indicator",HLOOKUP(CountryChoice,'Custom SPA Indicator Source'!A$65:AA$73,C7,FALSE)) -> No Indicator
B78: =IF(OR(ISNA(EXACT(CountryChoice,HLOOKUP(CountryChoice,'Custom SPA Indicator Source'!A$65:AA$73,1,FALSE))),ISBLANK(HLOOKUP(CountryChoice,'Custom SPA Indicator Source'!A$65:AA$73,C8,FALSE))),"No Indicator",HLOOKUP(CountryChoice,'Custom SPA Indicator Source'!A$65:AA$73,C8,FALSE)) -> No Indicator
A79: 5.2.1
B80: =IF(OR(ISNA(EXACT(CountryChoice,HLOOKUP(CountryChoice,'Custom SPA Indicator Source'!A$74:AA$76,1,FALSE))),ISBLANK(HLOOKUP(CountryChoice,'Custom SPA Indicator Source'!A$74:AA$76,C2,FALSE))),"No Indicator",HLOOKUP(CountryChoice,'Custom SPA Indicator Source'!A$74:AA$76,C2,FALSE)) -> No Indicator
A81: 5.2.2
A82: 6.1.1
B83: =IF(OR(ISNA(EXACT(CountryChoice,HLOOKUP(CountryChoice,'Custom SPA Indicator Source'!A$77:AA$82,1,FALSE))),ISBLANK(HLOOKUP(CountryChoice,'Custom SPA Indicator Source'!A$77:AA$82,C2,FALSE))),"No Indicator",HLOOKUP(CountryChoice,'Custom SPA Indicator Source'!A$77:AA$82,C2,FALSE)) -> No Indicator
B84: =IF(OR(ISNA(EXACT(CountryChoice,HLOOKUP(CountryChoice,'Custom SPA Indicator Source'!A$77:AA$82,1,FALSE))),ISBLANK(HLOOKUP(CountryChoice,'Custom SPA Indicator Source'!A$77:AA$82,C3,FALSE))),"No Indicator",HLOOKUP(CountryChoice,'Custom SPA Indicator Source'!A$77:AA$82,C3,FALSE)) -> No Indicator
B85: =IF(OR(ISNA(EXACT(CountryChoice,HLOOKUP(CountryChoice,'Custom SPA Indicator Source'!A$77:AA$82,1,FALSE))),ISBLANK(HLOOKUP(CountryChoice,'Custom SPA Indicator Source'!A$77:AA$82,C4,FALSE))),"No Indicator",HLOOKUP(CountryChoice,'Custom SPA Indicator Source'!A$77:AA$82,C4,FALSE)) -> No Indicator
B86: =IF(OR(ISNA(EXACT(CountryChoice,HLOOKUP(CountryChoice,'Custom SPA Indicator Source'!A$77:AA$82,1,FALSE))),ISBLANK(HLOOKUP(CountryChoice,'Custom SPA Indicator Source'!A$77:AA$82,C5,FALSE))),"No Indicator",HLOOKUP(CountryChoice,'Custom SPA Indicator Source'!A$77:AA$82,C5,FALSE)) -> No Indicator
A87: 6.6.6
A88: 9.9.9

Sheet Custom SPA Indicator Source (hidden)
A1: 2.2.3 | B1: Panama
B2: # of youth trained with USG support
B3: # of communities benefited with USG assistance.
A5: 3.1.1 | C5: Mali | D5: Eastern Caribbean | E5: Guinea | F5: Burkina Faso | G5: Togo
C6: # of individuals reached through community outreach that promote HIV/AIDS prevention through abstinence only | D6: # of individuals reached through community outreach that promote HIV/AIDS prevention through abstinence only | E6: # of individuals trained to promote HIV/AIDS prevention through programs that promote abstinence and/or being faithful | F6: # of targeted population reached with individual and/or small group level HIV prevention interventions that are based on evidence and/or meet standards required | G6: # of targeted population reached with individual and/or small group level HIV prevention interventions that are based on evidence and/or meet standards required
E7: # of individuals reached through community outreach that promote HIV/AIDS prevention through abstinence and/or being faithful
E8: # of individuals reached through community outreach that promotes HIV/AIDS prevention through other behavior change beyond abstinence and/or being faithful
E9: # of individuals trained to promote HIV/AIDS prevention through other behavior change beyond abstinence and/or being faithful
A11: 3.1.3 | B11: Benin | C11: Madagascar | D11: Zambia | E11: Tanzania | F11: Mozambique | G11: Uganda
B12: # of people reached with malaria prevention or treatment messages | C12: # of people reached with IEC/BCC message on malaria treatment or prevention | D12: # of people trained with USG funds in malaria treatment or prevention | E12: # of people trained with USG funds in malaria treatment or prevention | F12: # of community leaders/members trained | G12: # of Peace Corps Volunteers (PCVs) and their counterparts who have received maleria awareness training, and are able to mention at least two methods of malaria control.
C13: # of people who slept under ITN the previous night | D13: # of people reached with malaria treatment or prevention messages | F13: # of radio spots produced/transmitted | G13: # of small scale community-level malaria projects supported through PCVs and PCRVs that are directly implementing at least two methods of malaria control.
C14: # of women who received intermittent preventive treatment during antenatal care (ANC) visits during their last pregnancy
C15: # of targeted houses adequately sprayed with residual insecticide in the last 12 months
C16: # of individuals with fever in the last two weeks who received antimalarial treatment according to national policy within one day after onset of fever
C17: # of entrepreneurs trained to create businesses in malaria prevention goods or services
C18: # of teachers or other formal educators trained to incorporate malaria prevention themes into their lesson planning
A20: 3.1.6 | B20: Malawi | C20: Senegal | D20: Nicaragua | E20: Tanzania | F20: Madagascar
B21: # of health facilities rehabilitated | C21: Liters of drinking water disinfected with USG-supported point-of-use treatment products | D21: # of people reached by community support projects for improving child health and nutrition | E21: # of people reached by community support projects for improving child health and nutrition | F21: # of people reached by community support for projects for improving child health and nutrition
C22: # of health facilities rehabilitated | F22: # of people in target areas with access to improved sanitation facilities as a result of USG assistance
A24: 3.1.9 | B24: Malawi | C24: Mozambique
B25: # of people impacted by community support projects for improving child health and nutrition | C25: # of persons reached through mass media
A27: 3.2.1 | B27: Liberia | C27: Malawi | D27: Jamaica | E27: El Salvador | F27: Nicaragua | G27: Kyrgyz Republic | H27: Rwanda | I27: Uganda | J27: Dominican Republic | K27: Zambia
B28: # of institutions with improved management information systems, as a result of USG assistance | C28: # of school buildings renovated or rehabilitated | D28: # of primary teachers (grades 1-3) trained as a result of USG assistance | E28: # of learners enrolled in USG-supported primary schools or equivalent non-school-based settings | F28: # of learners enrolled in USG-supported primary schools or equivalent non-school-based settings | G28: # of Volunteer host family members trained | H28: # of beneficiaries trained | I28: # of community grants provided in support of Literacy in Uganda | J28: # of adult learners enrolled in USG-supported schools or equivalent non-school-based settings | K28: # of learners in in USG supported primary school or equivalent non-school-based settings
C29: # of students benefiting from procurement and distribution of text books and learning materials | D29: # of adult learners enrolled in USG supported schools equivalent non-school based settings | H29: # of beneficiaries accessing reading materials through USG assistance | I29: # of teachers who have benefitted from SPA support
C30: # of orphans, out-of-school youth and vulnerable members of the community being provided with learning instruction | D30: # of learners enrolled in USG-supported primary schools or equivalent non-school-based settings | H30: # of beneficiaries attending USG-sponsored events | I30: # of students who have benefitted from SPA support
C31: # of libraries built | H31: # of books borrowed per cycle
C32: # of science labs built | H32: # of outreach evenets held
A34: 3.2.2 | B34: Liberia
B35: # of host country individuals completing USG-funded exchange program conducted through higher education institutions
B36: # of host-country individuals receiving USG-funded scholarships to attend higher education institutions
A38: 4.2.2 | B38: Peru
B39: # of micro enterprises receiving business development services from USG assisted sources
A41: 4.5.2 | B41: Uganda | C41: Senegal | D41: Jamaica | E41: Ghana | F41: Zambia | G41: Ethiopia
B42: # of vulnerable households benefiting directly from USG interventions | C42: # of vulnerable households benefiting directly from USG interventions | D42: # of vulnerable households benefiting directly from USG interventions | F42: # of rural households benefitting directly from USG interventions | G42: # of vulnerable households benefiting directly from USG interventions
A44: 4.6.1 | B44: Mexico
B45: # of municipal regulations and administrative procedures that have been simplified as a result of USG assistance
B46: # of commerce laws and regulations simplified and implemented in accordance with international standards as a result of USG assistance
B47: Person hours of training completed in business enabling environment supported by USG assistance
B48: # of days of USG funded technical assistance in business enabling environment provided to counterparts or stakeholders
A50: 4.6.3 | B50: Paraguay | C50: Mongolia | D50: Jordan
B51: # of institutions/organizations undergoing needs assessments and identifying priority needs as a result of USG assistance | C51: # of youth and adults trained | D51: # of beneficiaries of SPA grants
C52: # of trained youth and adults who developed workforce skills | D52: # of counterparts participating in capacity building events
D53: # of Counterparts benefitting from Volunteer training
A57: 4.7.3 | B57: Eastern Caribbean
B58: # of youth microenterprises receiving business development services from USG assisted sources
A60: 4.8.1 | B60: Mexico
B61: # of hectares of natural resources showing improved biophysical conditions as a result of USG assistance
B62: # of days of USG-funded technical assistance in natural resources management and/or biodiversity povided to counterparts or stakeholders
B63: # of person hours of training in natural resources management and/or biodiversity conservation supported by USG assistance
A65: 4.8.2 | B65: Mexico | C65: Jamaica | D65: Dominican Republic | E65: Philippines | F65: Guatemala
B66: Quantity of greenhouse gas emissions, measured in metric tons CO2 equivalent, reduced or sequestrated as a result of USG assistance in natural resources management, agriculture, and/or biodiversity sectors | C66: # of stakeholders receiving trainings on climate change impacts, adaptation techniques, innovative agricultural practices and other related topics | D66: # of homes that been converted to and indoor clean air environmental setting as a result of USG assistance | E66: # of people receiving USG-supported training in environmental law, enforcement, public participation and cleaner production policies, stragegies, skills and techniques | F66: # of stakeholders with increased capacity to adapt to the impacts of climate variability and change as a result of USG assistance
B67: Person hours of graining completed in climate change supported by USG assistance | C67: # of people receiving USG-supported training in environmental law, enforcement, public participation and cleaner production policies, stragegies, skills and techniques | D67: # of family members that have benefited from an indoor clean air environment as a result of USG assistance
B68: Amount of investment leveraged in US dollars, from private and public sources, for climate change as a result of USG assistance | D68: # of families that have benefited from an indoor clean air environment as a result of USG assistance
B69: # of institutions with improved capacity to address climate change issues as a result of USG assistance | D69: # of women that have received the direct benefit from an indoor clean air environment as a result of USG assistance
B70: # of stakeholders with increased capacity to adapt to the imacts of climate variability and change as a result of USG assistance | D70: # of communities that are now less exposed to green house gasses as a result of USG assistance
B71: # of days of USG funded technical assistance in climate change and/or biodiversity conservation provided to counterparts or stakeholders.
B72: # of laws, policies, strategies, plans, agreements or regulations addressing climate change (mitigation or adapatation) and/or biodiversity conservation officially proposed, adopted, or implemented as a result of USG assistance
A74: 5.2.1 | B74: Micronesia
B75: # of schools/ communities with a disaster risk reduction plan
A77: 6.1.1 | B77: Colombia | C77: Kyrgyz Republic
B78: # of women benefitting/using | C78: # of grants and size of grants to community organizations
B79: # of men benefitting/ using
B80: # of children benefitting/ using
B81: # of projects implemented

Sheet Custom SPA Indicators Labels (hidden)
A1: 2.2.3 | B1: # of youth trained with USG support | C1: Boys, 14 and under | D1: Girls, 14 and under
B2: # of communities benefited with USG assistance. | C2: Communities
A3: 3.1.1 | B3: # of targeted populations reached with individual and/or small group level HIV prevention interventions that are based on evidence and/or meet standards required | C3: Populations
B4: # of individuals trained to promote HIV/AIDS prevention through programs that promote abstinence and/or being faithful | C4: Men, 25 and over | D4: Women, 25 and over | E4: Men, 15-24 | F4: Women, 15-24 | G4: Boys, 14 and under | H4: Girls, 14 and under
B5: # of individuals reached through community outreach that promote HIV/AIDS prevention through abstinence only | C5: Men, 25 and over | D5: Women, 25 and over | E5: Men, 15-24 | F5: Women, 15-24 | G5: Boys, 14 and under | H5: Girls, 14 and under
B6: # of individuals reached through community outreach that promote HIV/AIDS prevention through abstinence and/or being faithful | C6: Men, 25 and over | D6: Women, 25 and over | E6: Men, 15-24 | F6: Women, 15-24 | G6: Boys, 14 and under | H6: Girls, 14 and under
B7: # of individuals reached through community outreach that promotes HIV/AIDS prevention through other behavior change beyond abstinence and/or being faithful | C7: Men, 25 and over | D7: Women, 25 and over | E7: Men, 15-24 | F7: Women, 15-24 | G7: Boys, 14 and under | H7: Girls, 14 and under
B8: # of individuals trained to promote HIV/AIDS prevention through other behavior change beyond abstinence and/or being faithful | C8: Men, 25 and over | D8: Women, 25 and over | E8: Men, 15-24 | F8: Women, 15-24 | G8: Boys, 14 and under | H8: Girls, 14 and under
B9: # of targeted population reached with individual and/or small group level HIV prevention interventions that are based on evidence and/or meet standards required | C9: Men, 25 and over | D9: Women, 25 and over | E9: Men, 15-24 | F9: Women, 15-24 | G9: Boys, 14 and under | H9: Girls, 14 and under
A10: 3.1.3 | B10: # of people reached with malaria prevention or treatment messages | C10: Men, 25 and over | D10: Women, 25 and over | E10: Men, 15-24 | F10: Women, 15-24 | G10: Boys, 14 and under | H10: Girls, 14 and under
B11: # of people reached with IEC/BCC message on malaria treatment or prevention | C11: Men, 25 and over | D11: Women, 25 and over | E11: Men, 15-24 | F11: Women, 15-24 | G11: Boys, 14 and under | H11: Girls, 14 and under
B12: # of people who slept under ITN the previous night | C12: Men, 25 and over | D12: Women, 25 and over | E12: Men, 15-24 | F12: Women, 15-24 | G12: Boys, 14 and under | H12: Girls, 14 and under
B13: # of women who received intermittent preventive treatment during antenatal care (ANC) visits during their last pregnancy | C13: Women, 25 and over | D13: Women, 15-24
B14: # of targeted houses adequately sprayed with residual insecticide in the last 12 months | C14: Houses
B15: # of individuals with fever in the last two weeks who received antimalarial treatment according to national policy within one day after onset of fever | C15: Men, 25 and over | D15: Women, 25 and over | E15: Men, 15-24 | F15: Women, 15-24 | G15: Boys, 14 and under | H15: Girls, 14 and under
B16: # of entrepreneurs trained to create businesses in malaria prevention goods or services | C16: Men, 25 and over | D16: Women, 25 and over | E16: Men, 15-24 | F16: Women, 15-24 | G16: Boys, 14 and under | H16: Girls, 14 and under
B17: # of teachers or other formal educators trained to incorporate malaria prevention themes into their lesson planning | C17: Men, 25 and over | D17: Women, 25 and over | E17: Men, 15-24 | F17: Women, 15-24
B18: # of people trained with USG funds in malaria treatment or prevention | C18: Men, 25 and over | D18: Women, 25 and over | E18: Men, 15-24 | F18: Women, 15-24
B19: # of people reached with malaria treatment or prevention messages | C19: Men, 25 and over | D19: Women, 25 and over | E19: Men, 15-24 | F19: Women, 15-24 | G19: Boys, 14 and under | H19: Girls, 14 and under
B20: # of community leaders/members trained | C20: Men, 25 and over | D20: Women, 25 and over | E20: Men, 15-24 | F20: Women, 15-24
B21: # of radio spots produced/transmitted | C21: Radio spots
B22: # of Peace Corps Volunteers (PCVs) and their counterparts who have received maleria awareness training, and are able to mention at least two methods of malaria control. | C22: Men, 25 and over | D22: Women, 25 and over
B23: # of small scale community-level malaria projects supported through PCVs and PCRVs that are directly implementing at least two methods of malaria control. | C23: Men, 25 and over | D23: Women, 25 and over
A24: 3.1.6 | B24: # of health facilities rehabilitated | C24: Facilities
B25: Liters of drinking water disinfected with USG-supported point-of-use treatment products | C25: Liters
B26: # of people reached by community support projects for improving child health and nutrition | C26: Men, 25 and over | D26: Women, 25 and over | E26: Men, 15-24 | F26: Women, 15-24 | G26: Boys, 14 and under | H26: Girls, 14 and under
B27: # of people reached by community support for projects for improving child health and nutrition | C27: Men, 25 and over | D27: Women, 25 and over | E27: Men, 15-24 | F27: Women, 15-24 | G27: Boys, 14 and under | H27: Girls, 14 and under
B28: # of people in target areas with access to improved sanitation facilities as a result of USG assistance | C28: Men, 25 and over | D28: Women, 25 and over | E28: Men, 15-24 | F28: Women, 15-24 | G28: Boys, 14 and under | H28: Girls, 14 and under
A29: 3.1.9 | B29: # of people impacted by community support projects for improving child health and nutrition | C29: Men, 25 and over | D29: Women, 25 and over | E29: Men, 15-24 | F29: Women, 15-24 | G29: Boys, 14 and under | H29: Girls, 14 and under
B30: # of persons reached through mass media | C30: Men, 25 and over | D30: Women, 25 and over | E30: Men, 15-24 | F30: Women, 15-24 | G30: Boys, 14 and under | H30: Girls, 14 and under
A31: 3.2.1 | B31: # of institutions with improved management information systems, as a result of USG assistance | C31: Institutions
B32: # of school buildings renovated or rehabilitated | C32: Buildings
B33: # of students benefiting from procurement and distribution of text books and learning materials | C33: Men, 25 and over | D33: Women, 25 and over | E33: Men, 15-24 | F33: Women, 15-24 | G33: Boys, 14 and under | H33: Girls, 14 and under
B34: # of orphans, out-of-school youth and vulnerable members of the community being provided with learning instruction | C34: Orphans, male | D34: Orphans, female | E34: Out of school youth, male | F34: Out of school youth, female | G34: Vulnerable community members, male | H34: Vulneralbe community members, female
B35: # of libraries built | C35: Libraries
B36: # of science labs built | C36: Labs
B37: # of primary teachers (grades 1-3) trained as a result of USG assistance | C37: Men, 25 and over | D37: Women, 25 and over | E37: Men, 15-24 | F37: Women, 15-24
B38: # of adult learners enrolled in USG supported schools equivalent non-school based settings | C38: Men, 25 and over | D38: Women, 25 and over | E38: Men, 15-24 | F38: Women, 15-24
B39: # of learners enrolled in USG-supported primary schools or equivalent non-school-based settings | C39: Men, 25 and over | D39: Women, 25 and over | E39: Men, 15-24 | F39: Women, 15-24 | G39: Boys, 14 and under | H39: Girls, 14 and under
B40: # of Volunteer host family members trained | C40: Men, 25 and over | D40: Women, 25 and over | E40: Men, 15-24 | F40: Women, 15-24 | G40: Boys, 14 and under | H40: Girls, 14 and under
B41: # of beneficiaries trained | C41: Men, 25 and over | D41: Women, 25 and over | E41: Men, 15-24 | F41: Women, 15-24 | G41: Boys, 14 and under | H41: Girls, 14 and under
B42: # of beneficiaries accessing reading materials through USG assistance | C42: Men, 25 and over | D42: Women, 25 and over | E42: Men, 15-24 | F42: Women, 15-24 | G42: Boys, 14 and under | H42: Girls, 14 and under
B43: # of beneficiaries attending USG-sponsored events | C43: Men, 25 and over | D43: Women, 25 and over | E43: Men, 15-24 | F43: Women, 15-24 | G43: Boys, 14 and under | H43: Girls, 14 and under
B44: # of books borrowed per cycle | C44: Books
B45: # of outreach evenets held | C45: Events
B46: # of community grants provided in support of Literacy in Uganda | C46: Grants
B47: # of teachers who have benefitted from SPA support | C47: Men, 25 and over | D47: Women, 25 and over | E47: Men, 15-24 | F47: Women, 15-24
B48: # of students who have benefitted from SPA support | C48: Men, 25 and over | D48: Women, 25 and over | E48: Men, 15-24 | F48: Women, 15-24 | G48: Boys, 14 and under | H48: Girls, 14 and under
B49: # of adult learners enrolled in USG-supported schools or equivalent non-school-based settings | C49: Men, 25 and over | D49: Women, 25 and over | E49: Men, 15-24 | F49: Women, 15-24
A50: 3.2.2 | B50: # of host country individuals completing USG-funded exchange program conducted through higher education institutions | C50: Men, 25 and over | D50: Women, 25 and over | E50: Men, 15-24 | F50: Women, 15-24
B51: # of host-country individuals receiving USG-funded scholarships to attend higher education institutions | C51: Men, 25 and over | D51: Women, 25 and over | E51: Men, 15-24 | F51: Women, 15-24
A52: 4.2.2 | B52: # of micro enterprises receiving business development services from USG assisted sources | C52: Micro Enterprises
A53: 4.5.2 | B53: # of vulnerable households benefiting directly from USG interventions | C53: Households
B54: # of rural households benefitting directly from USG interventions | C54: Households
A55: 4.6.1 | B55: # of municipal regulations and administrative procedures that have been simplified as a result of USG assistance | C55: Regulations | D55: Administrative procedures
B56: # of commerce laws and regulations simplified and implemented in accordance with international standards as a result of USG assistance | C56: Laws | D56: Regulations
B57: Person hours of training completed in business enabling environment supported by USG assistance | C57: Hours, men 25 and older | D57: Hours, women 25 and older | E57: Hours, men 15-24 | F57: Hours, women 15-24 | G57: Hours, boys 14 and under | H57: Hours, girls 14 and under
B58: # of days of USG funded technical assistance in business enabling environment provided to counterparts or stakeholders | C58: Days, men 25 and older | D58: Days, women 25 and older | E58: Days, men 15-24 | F58: Days, women 15-24 | G58: Days, boys 14 and under | H58: Days, girls 14 and under
A59: 4.6.3 | B59: # of institutions/organizations undergoing needs assessments and identifying priority needs as a result of USG assistance | C59: Institutions
B60: # of youth and adults trained | C60: Men, 25 and over | D60: Women, 25 and over | E60: Men, 15-24 | F60: Women, 15-24 | G60: Boys, 14 and under | H60: Girls, 14 and under
B61: # of trained youth and adults who developed workforce skills | C61: Men, 25 and over | D61: Women, 25 and over | E61: Men, 15-24 | F61: Women, 15-24 | G61: Boys, 14 and under | H61: Girls, 14 and under
B62: # of community members involved with the planning, organization and implementation of the project | C62: Men, 25 and over | D62: Women, 25 and over | E62: Men, 15-24 | F62: Women, 15-24
B63: # of public officials that participated in the project | C63: Men, 25 and over | D63: Women, 25 and over | E63: Men, 15-24 | F63: Women, 15-24
B64: # of public departments that participated in the project | C64: Departments
B65: # of beneficiaries of SPA grants | C65: Men, 25 and over | D65: Women, 25 and over | E65: Men, 15-24 | F65: Women, 15-24 | G65: Boys, 14 and under | H65: Girls, 14 and under
B66: # of counterparts participating in capacity building events | C66: Counterparts, male 25 and older | D66: Counterparts, female 25 and older | E66: Counterparts, male 15-24 | F66: Counterparts, female 15-24
B67: # of Counterparts benefitting from Volunteer training | C67: Counterparts, male 25 and older | D67: Counterparts, female 25 and older | E67: Counterparts, male 15-24 | F67: Counterparts, female 15-24
A68: 4.7.3 | B68: # of youth microenterprises receiving business development services from USG assisted sources | C68: Micro Enterprises
A69: 4.8.1 | B69: # of hectares of natural resources showing improved biophysical conditions as a result of USG assistance | C69: Hectares
B70: # of days of USG-funded technical assistance in natural resources management and/or biodiversity povided to counterparts or stakeholders | C70: Days, men 25 and older | D70: Days, women 25 and older | E70: Days, men 15-24 | F70: Days, women 15-24 | G70: Days, boys 14 and under | H70: Days, girls 14 and under
B71: # of person hours of training in natural resources management and/or biodiversity conservation supported by USG assistance | C71: Hours, men 25 and older | D71: Hours, women 25 and older | E71: Hours, men 15-24 | F71: Hours, women 15-24 | G71: Hours, boys 14 and under | H71: Hours, girls 14 and under
A72: 4.8.2 | B72: Quantity of greenhouse gas emissions, measured in metric tons CO2 equivalent, reduced or sequestrated as a result of USG assistance in natural resources management, agriculture, and/or biodiversity sectors | C72: Metric tons CO2
B73: Person hours of graining completed in climate change supported by USG assistance | C73: Hours, men 25 and older | D73: Hours, women 25 and older | E73: Hours, men 15-24 | F73: Hours, women 15-24 | G73: Hours, boys 14 and under | H73: Hours, girls 14 and under
B74: Amount of investment leveraged in US dollars, from private and public sources, for climate change as a result of USG assistance | C74: USD
B75: # of institutions with improved capacity to address climate change issues as a result of USG assistance | C75: Institutions
B76: # of stakeholders with increased capacity to adapt to the imacts of climate variability and change as a result of USG assistance | C76: Male, Implementing risk-reducing practices/actions | D76: Female, Implementing risk-reducing practices/actions | E76: Male, using climate information in their decision making | F76: Female, using climate information in their decision making
B77: # of days of USG funded technical assistance in climate change and/or biodiversity conservation provided to counterparts or stakeholders. | C77: Days, men 25 and older | D77: Days, women 25 and older | E77: Days, men 15-24 | F77: Days, women 15-24 | G77: Days, boys 14 and under | H77: Days, girls 14 and under
B78: # of laws, policies, strategies, plans, agreements or regulations addressing climate change (mitigation or adapatation) and/or biodiversity conservation officially proposed, adopted, or implemented as a result of USG assistance | C78: Laws | D78: Polices | E78: Strategies | F78: Agreements | G78: Regulations
B79: # of stakeholders receiving trainings on climate change impacts, adaptation techniques, innovative agricultural practices and other related topics | C79: Men, 25 and over | D79: Women, 25 and over | E79: Men, 15-24 | F79: Women, 15-24 | G79: Boys, 14 and under | H79: Girls, 14 and under
B80: # of homes that been converted to and indoor clean air environmental setting as a result of USG assistance | C80: Homes
B81: # of family members that have benefited from an indoor clean air environment as a result of USG assistance | C81: Men, 25 and over | D81: Women, 25 and over | E81: Men, 15-24 | F81: Women, 15-24 | G81: Boys, 14 and under | H81: Girls, 14 and under
B82: # of families that have benefited from an indoor clean air environment as a result of USG assistance | C82: Famlies
B83: # of women that have received the direct benefit from an indoor clean air environment as a result of USG assistance | C83: Women, 25 and over | D83: Women, 15-24 | E83: Girls, 14 and under
B84: # of communities that are now less exposed to green house gasses as a result of USG assistance | C84: Communities
B85: # of people receiving USG-supported training in environmental law, enforcement, public participation and cleaner production policies, stragegies, skills and techniques | C85: Men, 25 and over | D85: Women, 25 and over | E85: Men, 15-24 | F85: Women, 15-24 | G85: Boys, 14 and under | H85: Girls, 14 and under
A86: 5.2.1 | B86: # of schools/ communities with a disaster risk reduction plan | C86: Risk reduction plans | D86: Schools | E86: Communities
A87: 6.1.1 | B87: # of women benefitting/using | C87: Women, 25 and over | D87: Women, 15-24
B88: # of men benefitting/ using | C88: Men, 25 and over | D88: Men, 15-24
B89: # of children benefitting/ using | C89: Boys, 14 and under | D89: Girls, 14 and under
B90: # of projects implemented | C90: Projects
B91: # of grants and size of grants to community organizations | C91: Grants | D91: Under $500 | E91: $500-$1000 | F91: $1,000-$5,000 | G91: $5,000-$7,000 | H91: $7,000-$10,000

Sheet SPAEnviro
B4: Peace Corps Small Grants Application
B5: SPA ENVIRONMENTAL REVIEW & ASSESSMENT CHECKLIST (ER Checklist)
C7: For grant projects involving 1) water/sanitation; 2) agriculture such as agroforestry and community gardens, and 3) environment such as natural resource management, Volunteers must complete and submit an environmental screening form to the grant review committee. The grant review committee must ensure that information on the form is taken into consideration and given significant weight. The Volunteer and committee will determine what, if any, measures must be taken to mitigate and monitor the environmental impact of the project.
C14: The purpose of this Environmental Review and Assessment Checklist (ER Checklist) is to determine whether the proposed action (scope of work) encompasses the potential for environmental pollution or concern and, if so, to determine the scope and extent of additional environmental evaluation, mitigation, and monitoring necessary to fulfill federal U.S. environmental requirements. The ER Checklist is intended to be used by both the Peace Corps personnel who submit project proposals and the grant selection committee to ensure that environmental consequences are taken into account before making an award for a proposed activity. The environmental consequences checklist will assist in determining the potential environmental impact of the proposal.
C23: Include cost information on any environmental mitigation and monitoring in the overall budget proposal. Appropriate environmental mitigation and monitoring is considered an integral aspect of the overall project activity.
C27: Please provide the following information. This information will assist the grant award committee in making an environmental impact determination on the proposed activity.
C31: Date:
C33: Volunteer Name: | D33: =IF(ISBLANK('1. Classification & Budget'!I23),"",'1. Classification & Budget'!I23) -> Emelie | H33: =IF(ISBLANK('1. Classification & Budget'!F23),"",'1. Classification & Budget'!F23) -> Taylor
C35: Location: | D35: =IF(ISBLANK('1. Classification & Budget'!H11),"",'1. Classification & Budget'!H11) -> Pampa Elera Alta | H35: =IF(ISBLANK('1. Classification & Budget'!H12),"",'1. Classification & Budget'!H12) -> Piura
C36: Attach a location map as well as site photos in color if possible
C38: Project/Activity Description:
C46: Provide sufficient description and details for environmental impact analysis
C48: Name of Project/ Activity: | D48: =IF(ISBLANK('1. Classification & Budget'!H9),"",'1. Classification & Budget'!H9) -> Healthy Homes with Improved Cook Stoves
C51: Type of Project/Activity:
C54: Baseline Environmental Conditions:
C59: Provide site specific environmental conditions. Plant and animal resources, water resource and condition, human population characteristics, land use, soil, ecosystem condition, air quality. Describe existing environment at the proposed project site relevant to the scope and potential impact. Include maps and photos as necessary. Use additional pages as necessary.
C64: A. CHECKLIST FOR ENVIRONMENTAL CONSEQUENCES: Check appropriate column as Yes (Y), Maybe (M), No (N) or Beneficial (B). Briefly explain Y, M and B checks in next Section, "Explanations". A "Y" response does not necessarily indicate a significant effect, but rather an issue that requires focused consideration.
J69: Enter Y. M. N. or B in the column below
C72: 1. Earth Resources
C73: a. grading trenching, or excavation in cubic meters or hectare
C74: b. geologic hazards (faults, landslides, liquefaction, un-engineered fill, etc.)
C75: c. contaminated soils or ground water on the site
C76: d. offsite overburden/waste disposal or borrow pits required in cubic meters or tons
C77: e. loss of high-quality farmlands in hectares
C79: 2. Agricultural and Agrochemical
C80: a. impacts of inputs such as seeds and fertilizers
C81: b. impact of production process on human health and environment
C82: c. other adverse impacts
C84: 3. Industries
C85: a. impacts of run-off and run-on water
C86: b. impact of farming such as intensification or extensification
C87: c. impact of other factors
C89: 4. Air Quality
C90: a. substantial increase in onsite air pollutant emissions (construction/operation)
C91: b. violation of applicable air pollutant emissions or ambient concentration standards
C92: c. substantial increase in vehicle traffic during construction or operation
C93: d. demolition or blasting for construction
C94: e. substantial increase in odor during construction or operation
C95: f. substantial alteration of microclimate
C97: 5. Water Resources and Quality
C98: a. river, stream or lake onsite or within 30 meters of construction
C99: b. withdrawals from or discharges to surface or ground water
C100: c. excavation or placing of fill, removing gravel from, a river, stream or lake
C101: d. onsite storage of liquid fuels or hazardous materials in bulk quantities
C103: 6. Cultural Resources
C104: a. prehistoric, historic, or paleontological resources within 30 meters of construction
C105: b. site/facility with unique cultural or ethnic values
C107: 7. Biological Resources
C108: a. vegetation removal or construction in wetlands or riparian areas in hectare
C109: b. use of pesticides/rodenticides, insecticides, or herbicides in hectare
C110: c. Construction in or adjacent to a designated wildlife refuge
C112: 8. Planning and Land Use
C113: a. potential conflict with adjacent land uses
C114: b. non-compliance with existing codes, plans, permits or design factors
C115: c. construction in national park or designated recreational area
C116: d. create substantially annoying source of light or glare
C117: e. relocation of >10 individuals for +6 months
C118: f. interrupt necessary utility or municipal service > 10 individuals for +6 months
C119: g. substantial loss of inefficient use of mineral or non-renewable resources
C120: h. increase existing noise levels >5 decibels for +3 months
C122: 9. Traffic, Transportation and Circulation
C123: a. increase vehicle trips >20% or cause substantial congestion
C124: b. design features cause or contribute to safety hazards
C125: c. inadequate access or emergency access for anticipated volume of people or traffic
C127: 10. Hazards
C128: a. substantially increase risk of fire, explosion, or hazardous chemical release
C129: b. bulk quantities of hazardous materials or fuels stored on site +3 months
C130: c. create or substantially contribute to human health hazard
C132: 11. Other Issues (to be used for categories not captured under1 through 10 above)
C133: a. substantial adverse impact
C134: b. adverse impact
C135: c. minimal impact
C137: B. EXPLANATION OF ENVIRONMENTAL CONSEQUENCES: explain Y, M and B responses
C149: C. IDENTIFIED SIGNIFICANT ENVIRONMENTAL IMPACTS (including physical, biological and social), if any: (Use ER to identify significant environmental impacts)
C161: D. PROPOSED MITIGATION MEASURES (if any):
C172: E. PROPOSED MONITORING MEASURES (if any):

Sheet 7. VAST Projects
C2: Peace Corps Small Grant Application
D5: VAST Indicators
D7: HIV Prevention- AB/OP
E8: Male | J8: Female
D9: Ages (in years) | E9: <10 | F9: 10-14 | G9: 15-17 | H9: 18-24 | I9: 25+ | J9: <10 | K9: 10-14 | L9: 15-17 | M9: 18-24 | N9: 25+
D10: # of people reached with individual and/or small group level HIV prevention interventions (P8.1.D)
D12: # of people who received HIV prevention interventions primarily focused on abstinence and/or being faithful (P8.2.D)
D15: Other Prevention - Most At Risk Populations
D16: # of Most at Risk Populations (MARPs) reached with individual and/or small group level HIV preventive interventions that are based on evidence and/or meet the minimum standards required (P8.3.D) | E16: Commercial Sex Workers (CSW) | I16: Injecting Drug Users (IDU) | M16: Men Who Have Sex With Men (MSM) | O16: Other Vulnerable Populations
E17: Males | G17: Females | I17: Males | K17: Females | M17: Males | O17: Males | Q17: Females
E18: <18 | F18: 18+ | G18: <18 | H18: 18+ | I18: <18 | J18: 18+ | K18: <18 | L18: 18+ | M18: <18 | N18: 18+ | O18: <18 | P18: 18+ | Q18: <18 | R18: 18+
D21: Care - One Care Service (HBHC & HKID)
D22: # of eligible adults and children who received a minimum of one care service (C1.1.D) | E22: Males | G22: Females
E23: <18 | F23: 18+ | G23: <18 | H23: 18+
D26: Care - Food and/or Other Nutritional Service (HBHC & HKID)
D27: # of eligible adults and children who received food and/or nutritional services (C5.1.D) | E27: Males | G27: Females NOT pregnant or lactating | I27: Females Pregnant and Lactating
E28: <18 | F28: 18+ | G28: <18 | H28: 18+ | I28: <18 | J28: 18+
D31: Human Resources for Health (HRH)
D32: # of community health care and para-social workers who successfully completed a pre-service training (PST) program (H2.2.D) | E32: Male | G32: Female
D34: # of health care workers who successfully completed an in-service training (IST) program (H2.3.D)

Sheet 11. ECPA Indicators
C2: Peace Corps Small Grant Application
C3: ECPA TARGET OUTPUTS AND OUTCOMES FOR ECPA PROJECT
F6: Please estimate output and outcome targets in the Blue cells
F7: Pink cells need not be estimated prior to project implementation but will be monitored after project completion in the Final Report.
D10: Micro-financing and ongoing support to small businesses and consumers
D12: Outputs
E13: Small business entrepreneurs trained in developing business plans and financing strategies for renewable energy businesses
E16: Small businesses received assistance to access bank loans or private equity
D18: Outcomes
E19: Entrepreneurs with improved business operations as a result of assistance [including starting or expanding their renewable energy small businesses]
E21: Entrepreneurs and consumers successfully accessed bank loans or private equity as a result of assistance
D23: Awareness and knowledge
D24: Municipal, school, and communities’ awareness and knowledge of climate change, natural resources management, energy efficiency and renewable energy technologies, as well as mitigation and adaptation to climate change.
D26: Outputs
E27: Community members trained in renewable energy technologies, energy efficiency principles and businesses practices
E29: Community members trained in climate change mitigation and adaptation, including natural resources reforestation
E31: Teachers, outreach workers, and technicians trained in environmental education, nursery management and/or reforestation
D33: Outcomes
E34: Community members demonstrate an increased knowledge of renewable energy technologies and/or energy efficiency principles.
E36: Community members demonstrate an increased knowledge of climate change, disaster preparedness, natural resources management and/or biodiversity conservation, including reforestation
E38: Teachers, municipal workers, local NGOs, or other outreach workers use new or revised environmental instructional materials and/or lesson plans.resources management and/or biodiversity conservation, including reforestation
E40: Homes, businesses, or public locations adopt new energy efficiency practices as a result of assistance.
D42: Planning and implementation of projects
D43: .
D44: Outputs
E45: Entrepreneurs and community members supported with project planning, design, management and financing.
D48: Outcomes
D49: Renewable Electrical Energy (new or rehabilitated):
D50: number of installations complete | E50: community members who use | F50: kWhr/yr
G51: at homes
G52: in businesses
G53: in public locations
D55: Improved Cook Stoves or Ovens
D56: Number of cookstoves (new or rehabilitated) purchased or constructed for households or institutions (e.g. health clinics, schools) with assistance of Volunteers or partners | H56: Number of households or institutions with individuals correctly using and maintaining improved stoves or ovens, as defined by a checklist, for at least 50 percent of cooking needs
L57: at homes
L58: in businesses
L59: in public locations
E61: Number of individuals living in households benefitting from new or rehabilitated cookstoves or ovens
D64: Estimated average monthly savings in: | I64: kg of fuel wood (household)
D65: (note: these cells may be left blank | H65: adult F | I65: adult M | J65: child F | K65: child M
D66: in project abstract) | L66: hours gathering fuel
D68: Natural Resources Management / Climate Change Adaptation
D69: Hectares
D70: Forest production area | F70: Number of hectares under improved natural resource management as a result of assistance
D71: Watershed area
D72: Agroforestry and tree crop system area

Sheet 12. WAFSP
C2: Peace Corps Small Grant Application
C3: Feed the Future Indicators and Environmental Review Forms
D5: Directions | E5: All Feed the Future projects must complete an environmental review and provide anticipated indicator data. The sections below explain what is required for each section.

Sheet FTF Indicators
C3: Peace Corps Small Grant Application
C4: Feed the Future Indicators and Environmental Review Forms
C6: Project Title | D6: Food Security Reporting Workaround (FSRW)
C7: Dates | D7: 1 October 2012 to 30 September 2013
C8: Project Description | D8: This Food Security framework is designed to allow Volunteers to report at the level of disaggregation necessary for the Food Security initiative during FY 2013. (Beginning in FY 2014, VRT 3.0 will support reporting on these indicators in a more natural manner.) All Volunteers who conduct food security activities should report against one or more objectives from this framework (in addition to any applicable objectives from their project frameworks) to allow both posts and Peace Corps as a whole to understand and report on our food security efforts.
C9: Sector
C11: Goal 1 | D11: Improved Agriculture Productivity
D12: Increase agriculture sector productivity, food security training, and application of new technologies or management practices
D13: Obj. 1.1 | E13: Productivity - New Tech or Mgmt Prac
E14: Number of farmers and others who have applied new technologies or management practices as a result of PC assistance
E15: 1.1.a | F15: Number of MALE farmers and others for the FIRST TIME applying new technologies or management practices as a result of PC assistance (NEW) (4.5.2-5)
E16: 1.1.b | F16: Number of FEMALE farmers and others for the FIRST TIME applying new technologies or management practices as a result of PC assistance (NEW) (4.5.2-5)
E17: 1.1.c | F17: Number of MALE farmers and others CONTINUING to apply new technologies or management practices as a result of PC assistance (CONTINUING) (4.5.2-5)
E18: 1.1.d | F18: Number of FEMALE farmers and others CONTINUING to apply new technologies or management practices as a result of PC assistance (CONTINUING) (4.5.2-5)
D19: Obj. 1.2 | E19: Productivity - Ag prod or food sec trng
E20: Number of individuals who have received PC supported short-term agricultural sector productivity or food security training
E21: 1.2.a | F21: Number of MALE PRODUCERS who have received PC supported short-term agricultural sector productivity or food security training (4.5.2-7) (PRODUCERS = Farmers, fishers, pastoralists, ranchers, and other primary sector producers)
E22: 1.2.b | F22: Number of FEMALE PRODUCERS who have received PC supported short-term agricultural sector productivity or food security training (4.5.2-7) (PRODUCERS = Farmers, fishers, pastoralists, ranchers, and other primary sector producers)
E23: 1.2.c | F23: Number of MALE PEOPLE IN GOVERNMENT who have received PC supported short-term agricultural sector productivity or food security training (4.5.2-7) (PEOPLE IN GOVERNMENT = policy makers, extension workers)
E24: 1.2.d | F24: Number of FEMALE PEOPLE IN GOVERNMENT who have received PC supported short-term agricultural sector productivity or food security training (4.5.2-7) (PEOPLE IN GOVERNMENT = policy makers, extension workers)
E25: 1.2.e | F25: Number of MALE PRIVATE SECTOR who have received PC supported short-term agricultural sector productivity or food security training (4.5.2-7) (PRIVATE SECTOR = processors, service providers, manufacturers)
E26: 1.2.f | F26: Number of FEMALE PRIVATE SECTOR who have received PC supported short-term agricultural sector productivity or food security training (4.5.2-7) (PRIVATE SECTOR = processors, service providers, manufacturers)
C27: Goal 2 | D27: Increased income and employmnt opportnty
D28: Increase income and employment opportunities through access to bank loans and other assistance to food security organizations
D29: Obj. 2.1 | E29: Income/Employ - MICRO Enterp Bank Loans
E30: Number of MICRO (1 to 5 FTEs) Enterprises receiving PC assistance to access bank loans
E31: 2.1.a | F31: Number of MICRO (1 to 5 FTEs) Enterprises (MALE owned) receiving PC assistance to access bank loans (4.5.2-30)
E32: 2.1.b | F32: Number of MICRO (1 to 5 FTEs) Enterprises (FEMALE owned) receiving PC assistance to access bank loans (4.5.2-30)
E33: 2.1.c | F33: Number of MICRO (1 to 5 FTEs) Enterprises (JOINT owned) receiving PC assistance to access bank loans (4.5.2-30)
D34: Obj. 2.2 | E34: Income/Employ - SMALL Enterp Bank Loans
E35: Number of SMALL (6 to 50 FTEs) Enterprises receiving PC assistance to access bank loans
E36: 2.2.a | F36: Number of SMALL (6 to 50 FTEs) Enterprises (MALE owned) receiving PC assistance to access bank loans (4.5.2-30) | G36: 1
E37: 2.2.b | F37: Number of SMALL (6 to 50 FTEs) Enterprises (FEMALE owned) receiving PC assistance to access bank loans (4.5.2-30)
E38: 2.2.c | F38: Number of SMALL (6 to 50 FTEs) Enterprises (JOINT owned) receiving PC assistance to access bank loans (4.5.2-30)
D39: Obj. 2.3 | E39: Income/Employ - MEDIUM Enterp Bank Loans
E40: Number of MEDIUM (51 to 100 FTEs) Enterprises receiving PC assistance to access bank loans
E41: 2.3.a | F41: Number of MEDIUM (51 to 100 FTEs) (1 to 5 FTEs) Enterprises (MALE owned) receiving PC assistance to access bank loans (4.5.2-30)
E42: 2.3.b | F42: Number of MEDIUM (51 to 100 FTEs) (1 to 5 FTEs) Enterprises (FEMALE owned) receiving PC assistance to access bank loans (4.5.2-30)
E43: 2.3.c | F43: Number of MEDIUM (51 to 100 FTEs) (1 to 5 FTEs) Enterprises (JOINT owned) receiving PC assistance to access bank loans (4.5.2-30)
D44: Obj. 2.4 | E44: Income/Employ - PRIVATE ENTERPRIS Assist
E45: Number of food security PRIVATE ENTERPRISES (FOR PROFIT) receiving PC assistance
E46: 2.4.a | F46: Number of food security PRIVATE ENTERPRISES (FOR PROFIT) receiving FIRST TIME PC assistance this year (NEW) (4.5.2-11)
E47: 2.4.b | F47: Number of food security PRIVATE ENTERPRISES (FOR PROFIT) receiving PC assistance AGAIN this year (CONTINUING) (4.5.2-11)
D48: Obj. 2.5 | E48: Income/Employ - PRODUCER ORGS Assist
E49: Number of food security PRODUCERS ORGANIZATIONS receiving PC assistance
E50: 2.5.a | F50: Number of food security PRODUCER ORGANIZATIONS receiving FIRST TIME PC assistance this year (NEW) (4.5.2-11)
E51: 2.5.b | F51: Number of food security PRODUCER ORGANIZATIONS receiving PC assistance AGAIN this year (CONTINUING) (4.5.2-11)
D52: Obj. 2.6 | E52: Income/Employ - WATER USERS ASSOC Assist
E53: Number of food security WATER USERS ASSOCIATIONS receiving PC assistance
E54: 2.6.a | F54: Number of food security WATER USERS ASSOCIATIONS receiving FIRST TIME PC assistance this year (NEW) (4.5.2-11)
E55: 2.6.b | F55: Number of food security WATER USERS ASSOCIATIONS receiving PC assistance AGAIN this year (CONTINUING) (4.5.2-11)
D56: Obj. 2.7 | E56: Income/Employ - WOMEN'S GROUPS Assist
E57: Number of food security WOMEN'S GROUPS receiving PC assistance
E58: 2.7.a | F58: Number of food security WOMEN'S GROUPS receiving FIRST TIME PC assistance this year (NEW) (4.5.2-11)
E59: 2.7.b | F59: Number of food security WOMEN'S GROUPS receiving PC assistance AGAIN this year (CONTINUING) (4.5.2-11)
D60: Obj. 2.8 | E60: Income/Employ - TRADE & BUS ASSOC Assist
E61: Number of food security TRADE AND BUSINESS ASSOCIATIONS receiving PC assistance
E62: 2.8.a | F62: Number of food security TRADE & BUSINESS ASSOCIATIONS receiving FIRST TIME PC assistance this year (NEW) (4.5.2-11)
E63: 2.8.b | F63: Number of food security TRADE & BUSINESS ASSOCIATIONS receiving PC assistance AGAIN this year (CONTINUING) (4.5.2-11)
D64: Obj. 2.9 | E64: Income/Employ - COMM BASED ORGS Assist
E65: Number of food security COMMUNITY-BASED ORGANIZATIONS (CBOs) receiving PC assistance
E66: 2.9.a | F66: Number of food security COMMUNITY-BASED ORGANIZATIONS (CBOs) receiving FIRST TIME PC assistance this year (NEW) (4.5.2-11)
E67: 2.9.b | F67: Number of food security COMMUNITY-BASED ORGANIZATIONS (CBOs) receiving PC assistance AGAIN this year (CONTINUING) (4.5.2-11)
C68: Goal 3 | D68: Improved Nutrition Behavior
D69: Improve nutrition behavior of children through training adults in child health and nutrition and through children's nutrition programs
D70: Obj. 3.1 | E70: Nutrition - TRNG in Child HE and Nutrit.
E71: Number of people trained in child health and nutrition through PC-supported health area programs
E72: 3.1.a | F72: Number of MALES trained in child health and nutrition through PC-supported health area programs (3.1.9-1)
E73: 3.1.b | F73: Number of FEMALES trained in child health and nutrition through PC-supported health area programs (3.1.9-1)
D74: Obj. 3.2 | E74: Nutrition - Child < 5 Nutrition Programs
E75: Number of children under 5 reached by PC-supported nutrition programs
E76: 3.2.a | F76: Number of MALES under 5 reached by PC-supported nutrition programs (3.1.9-11)
E77: 3.2.b | F77: Number of FEMALES under 5 reached by PC-supported nutrition programs (3.1.9-11)
C78: Goal 4 | D78: YRLY- Increased Investment in ag & nutr.
D79: Year over year, Increase business development services provided to and profitability of agricultural and food-security-related firms and CSOs
D80: Obj. 4.1 | E80: YRLY-Invstmnt - Profitable ag / food sec
E81: Number of firms (excluding farms) or Civil Society Organizations engaged in agricultural and food-security-related manufacturing and services now operating more profitably (at or above cost) because of PC assistance
E82: 4.1.a | F82: Number of more profitable FIRMS engaged in agricultural and food-security-related manufacturing and services now operating more profitably (at or above cost) because of PC assistance (4.5.2-43)
E83: 4.1.b | F83: Number of more profitable CSOs engaged in agricultural and food-security-related manufacturing and services now operating more profitably (at or above cost) because of PC assistance (4.5.2-43)
D84: Obj. 4.2 | E84: YRLY-Invstmnt - MICRO Bus. Dev. Services
E85: Number of Micro (1 to 5 FTEs) Enterprises receiving business development services from PC assisted sources
E86: 4.2.a | F86: Number of MICRO (1 to 5 FTEs) Enterprises (AGRICULTURAL PRODUCER - MALE) receiving business development services from PC assisted sources (4.5.2-37)
E87: 4.2.b | F87: Number of MICRO (1 to 5 FTEs) Enterprises (AGRICULTURAL PRODUCER - FEMALE) receiving business development services from PC assisted sources (4.5.2-37)
E88: 4.2.c | F88: Number of MICRO (1 to 5 FTEs) Enterprises (AGRICULTURAL PRODUCER - JOINT) receiving business development services from PC assisted sources (4.5.2-37)
E89: 4.2.d | F89: Number of MICRO (1 to 5 FTEs) Enterprises (INPUT SUPPLIER - MALE) receiving business development services from PC assisted sources (4.5.2-37)
E90: 4.2.e | F90: Number of MICRO (1 to 5 FTEs) Enterprises (INPUT SUPPLIER - FEMALE) receiving business development services from PC assisted sources (4.5.2-37)
E91: 4.2.f | F91: Number of MICRO (1 to 5 FTEs) Enterprises (INPUT SUPPLIER - JOINT) receiving business development services from PC assisted sources (4.5.2-37)
E92: 4.2.g | F92: Number of MICRO (1 to 5 FTEs) Enterprises (TRADER - MALE) receiving business development services from PC assisted sources (4.5.2-37)
E93: 4.2.h | F93: Number of MICRO (1 to 5 FTEs) Enterprises (TRADER - FEMALE) receiving business development services from PC assisted sources (4.5.2-37)
E94: 4.2.i | F94: Number of MICRO (1 to 5 FTEs) Enterprises (TRADER - JOINT) receiving business development services from PC assisted sources (4.5.2-37)
E95: 4.2.j | F95: Number of MICRO (1 to 5 FTEs) Enterprises (OUTPUT PROCESSORS - MALE) receiving business development services from PC assisted sources (4.5.2-37)
E96: 4.2.k | F96: Number of MICRO (1 to 5 FTEs) Enterprises (OUTPUT PROCESSORS - FEMALE) receiving business development services from PC assisted sources (4.5.2-37)
E97: 4.2.l | F97: Number of MICRO (1 to 5 FTEs) Enterprises (OUTPUT PROCESSORS - JOINT) receiving business development services from PC assisted sources (4.5.2-37)
E98: 4.2.m | F98: Number of MICRO (1 to 5 FTEs) Enterprises (NON-AGRICULTURE - MALE) receiving business development services from PC assisted sources (4.5.2-37)
E99: 4.2.n | F99: Number of MICRO (1 to 5 FTEs) Enterprises (NON-AGRICULTURE - FEMALE) receiving business development services from PC assisted sources (4.5.2-37)
E100: 4.2.o | F100: Number of MICRO (1 to 5 FTEs) Enterprises (NON-AGRICULTURE - JOINT) receiving business development services from PC assisted sources (4.5.2-37)
E101: 4.2.p | F101: Number of MICRO (1 to 5 FTEs) Enterprises (OTHER - MALE) receiving business development services from PC assisted sources (4.5.2-37)
E102: 4.2.q | F102: Number of MICRO (1 to 5 FTEs) Enterprises (OTHER - FEMALE) receiving business development services from PC assisted sources (4.5.2-37)
E103: 4.2.r | F103: Number of MICRO (1 to 5 FTEs) Enterprises (OTHER - JOINT) receiving business development services from PC assisted sources (4.5.2-37)
D104: Obj. 4.3 | E104: YRLY-Invstmnt - SMALL Bus. Dev. Services
E105: Number of Small (6 to 50 FTEs) Enterprises receiving business development services from PC assisted sources
E106: 4.3.a | F106: Number of SMALL (6 to 50 FTEs) Enterprises (AGRICULTURAL PRODUCER - MALE) receiving business development services from PC assisted sources (4.5.2-37)
E107: 4.3.b | F107: Number of SMALL (6 to 50 FTEs) Enterprises (AGRICULTURAL PRODUCER - FEMALE) receiving business development services from PC assisted sources (4.5.2-37)
E108: 4.3.c | F108: Number of SMALL (6 to 50 FTEs) Enterprises (AGRICULTURAL PRODUCER - JOINT) receiving business development services from PC assisted sources (4.5.2-37)
E109: 4.3.d | F109: Number of SMALL (6 to 50 FTEs) Enterprises (INPUT SUPPLIER - MALE) receiving business development services from PC assisted sources (4.5.2-37)
E110: 4.3.e | F110: Number of SMALL (6 to 50 FTEs) Enterprises (INPUT SUPPLIER - FEMALE) receiving business development services from PC assisted sources (4.5.2-37)
E111: 4.3.f | F111: Number of SMALL (6 to 50 FTEs) Enterprises (INPUT SUPPLIER - JOINT) receiving business development services from PC assisted sources (4.5.2-37)
E112: 4.3.g | F112: Number of SMALL (6 to 50 FTEs) Enterprises (TRADER - MALE) receiving business development services from PC assisted sources (4.5.2-37)
E113: 4.3.h | F113: Number of SMALL (6 to 50 FTEs) Enterprises (TRADER - FEMALE) receiving business development services from PC assisted sources (4.5.2-37)
E114: 4.3.i | F114: Number of SMALL (6 to 50 FTEs) Enterprises (TRADER - JOINT) receiving business development services from PC assisted sources (4.5.2-37)
E115: 4.3.j | F115: Number of SMALL (6 to 50 FTEs) Enterprises (OUTPUT PROCESSORS - MALE) receiving business development services from PC assisted sources (4.5.2-37)
E116: 4.3.k | F116: Number of SMALL (6 to 50 FTEs) Enterprises (OUTPUT PROCESSORS - FEMALE) receiving business development services from PC assisted sources (4.5.2-37)
E117: 4.3.l | F117: Number of SMALL (6 to 50 FTEs) Enterprises (OUTPUT PROCESSORS - JOINT) receiving business development services from PC assisted sources (4.5.2-37)
E118: 4.3.m | F118: Number of SMALL (6 to 50 FTEs) Enterprises (NON-AGRICULTURE - MALE) receiving business development services from PC assisted sources (4.5.2-37)
E119: 4.3.n | F119: Number of SMALL (6 to 50 FTEs) Enterprises (NON-AGRICULTURE - FEMALE) receiving business development services from PC assisted sources (4.5.2-37)
E120: 4.3.o | F120: Number of SMALL (6 to 50 FTEs) Enterprises (NON-AGRICULTURE - JOINT) receiving business development services from PC assisted sources (4.5.2-37)
E121: 4.3.p | F121: Number of SMALL (6 to 50 FTEs) Enterprises (OTHER - MALE) receiving business development services from PC assisted sources (4.5.2-37)
E122: 4.3.q | F122: Number of SMALL (6 to 50 FTEs) Enterprises (OTHER - FEMALE) receiving business development services from PC assisted sources (4.5.2-37)
E123: 4.3.r | F123: Number of SMALL (6 to 50 FTEs) Enterprises (OTHER - JOINT) receiving business development services from PC assisted sources (4.5.2-37)
D124: Obj. 4.4 | E124: YRLY-Invstmnt - MEDIUM Bus. Dev. Service
E125: Number of Medium (51 to 100 FTEs) Enterprises receiving business development services from PC assisted sources
E126: 4.4.a | F126: Number of MEDIUM (51 to 100 FTEs) Enterprises (AGRICULTURAL PRODUCER - MALE) receiving business development services from PC assisted sources (4.5.2-37)
E127: 4.4.b | F127: Number of MEDIUM (51 to 100 FTEs) Enterprises (AGRICULTURAL PRODUCER - FEMALE) receiving business development services from PC assisted sources (4.5.2-37)
E128: 4.4.c | F128: Number of MEDIUM (51 to 100 FTEs) Enterprises (AGRICULTURAL PRODUCER - JOINT) receiving business development services from PC assisted sources (4.5.2-37)
E129: 4.4.d | F129: Number of MEDIUM (51 to 100 FTEs) Enterprises (INPUT SUPPLIER - MALE) receiving business development services from PC assisted sources (4.5.2-37)
E130: 4.4.e | F130: Number of MEDIUM (51 to 100 FTEs) Enterprises (INPUT SUPPLIER - FEMALE) receiving business development services from PC assisted sources (4.5.2-37)
E131: 4.4.f | F131: Number of MEDIUM (51 to 100 FTEs) Enterprises (INPUT SUPPLIER - JOINT) receiving business development services from PC assisted sources (4.5.2-37)
E132: 4.4.g | F132: Number of MEDIUM (51 to 100 FTEs) Enterprises (TRADER - MALE) receiving business development services from PC assisted sources (4.5.2-37)
E133: 4.4.h | F133: Number of MEDIUM (51 to 100 FTEs) Enterprises (TRADER - FEMALE) receiving business development services from PC assisted sources (4.5.2-37)
E134: 4.4.i | F134: Number of MEDIUM (51 to 100 FTEs) Enterprises (TRADER - JOINT) receiving business development services from PC assisted sources (4.5.2-37)
E135: 4.4.j | F135: Number of MEDIUM (51 to 100 FTEs) Enterprises (OUTPUT PROCESSORS - MALE) receiving business development services from PC assisted sources (4.5.2-37)
E136: 4.4.k | F136: Number of MEDIUM (51 to 100 FTEs) Enterprises (OUTPUT PROCESSORS - FEMALE) receiving business development services from PC assisted sources (4.5.2-37)
E137: 4.4.l | F137: Number of MEDIUM (51 to 100 FTEs) Enterprises (OUTPUT PROCESSORS - JOINT) receiving business development services from PC assisted sources (4.5.2-37)
E138: 4.4.m | F138: Number of MEDIUM (51 to 100 FTEs) Enterprises (NON-AGRICULTURE - MALE) receiving business development services from PC assisted sources (4.5.2-37)
E139: 4.4.n | F139: Number of MEDIUM (51 to 100 FTEs) Enterprises (NON-AGRICULTURE - FEMALE) receiving business development services from PC assisted sources (4.5.2-37)
E140: 4.4.o | F140: Number of MEDIUM (51 to 100 FTEs) Enterprises (NON-AGRICULTURE - JOINT) receiving business development services from PC assisted sources (4.5.2-37)
E141: 4.4.p | F141: Number of MEDIUM (51 to 100 FTEs) Enterprises (OTHER - MALE) receiving business development services from PC assisted sources (4.5.2-37)
E142: 4.4.q | F142: Number of MEDIUM (51 to 100 FTEs) Enterprises (OTHER - FEMALE) receiving business development services from PC assisted sources (4.5.2-37)
E143: 4.4.r | F143: Number of MEDIUM (51 to 100 FTEs) Enterprises (OTHER - JOINT) receiving business development services from PC assisted sources (4.5.2-37)

Sheet WAFSPIndicators
C5: Peace Corps Small Grant Application
C6: WAFSP Indicator Targets
D8: Directions | E8: Please estimate the indicator results you will be accomplishing and fill in these targets for the indicators relevant to the project in the blue columns on the right
D10: Goal of the WAFSP | E10: Key Objectives of the WAFSP | F10: Ind. codes | G10: Indicator Title | H10: Disaggregation of the indicator | J10: Value of the indicator (number) | K10: Indicator narrative (write one paragraph on the story/activities behind the figures by responding to the questions in brackets)
D11: INCREASE FOOD SECURITY IN THE COMMUNITIES WHERE PCVs WORK IN WEST AFRICA | E11: 1. Increase availability of healthy foods, especially for women and children | F11: 4.5.2-5 | G11: Number of farmers and others who have applied new technologies or management practices as a result of USG assistance | H11: New or Continuing | I11: New | K11: (What types of technologies/management practices were applied? How many people applied what?)
I12: Continuing
H13: Sex | I13: Male
I14: Female
F15: 4.5.2-7 | G15: Number of individuals who have received USG supported short-term agricultural sector productivity or food security training | H15: Type of individual | I15: Producers | K15: (What were the topics of the trainings? How many individuals were trained per topic?)
I16: People in Government
I17: People in Private Sector Firms
I18: People in Civil Society
H19: Sex | I19: Male
I20: Female
E21: 2. Increase accessibility of healthy foods by decreasing poverty and increasing incomes | F21: 4.5.2-11 | G21: Number of food security private enterprises (for profit), producers organizations, water users associations, women's groups, trade and business associations, and community-based organizations (CBOs) receiving USG assistance | H21: Type of organization | I21: Private Enterprises | K21: (What types of assistance were received per type of organization? Provide names and location of organizations assisted)
I22: Producer Organizations
I23: Water Users Associations
I24: Women's Groups
I25: Trade & Business Assoc.
I26: CBOS
H27: New or Continuing | I27: New
I28: Continuing
F29: 4.5.2-30 | G29: Number of MSMEs, including farmers, receiving USG assistance to access loans | H29: Size of MSME | I29: Micro Enterprise | K29: (What types of assistance were received? What types of loans were accessed (cash/in-kind, formal/informal)?)
I30: Small Enterprise
I31: Medium Enterprise
H32: Sex of owner | I32: Male owner
I33: Female owner
I34: Joint ownership
F35: 4.5.2-37 | G35: Number of MSMEs, including farmers, receiving business development services from USG assisted sources | H35: Size of MSME | I35: Micro Enterprise | K35: (What types of business development services were received per type of MSME? Provide names of MSMEs assisted)
I36: Small Enterprise
I37: Medium Enterprise
H38: Type of MSME | I38: Agricultural Producer
I39: Input Supplier
I40: Trader
I41: Output Processors
I42: Non-Agriculture
I43: Other
H44: Sex of owner | I44: Male owner
I45: Female owner
I46: Joint ownership
F47: 4.5.2-43 | G47: Number of firms (excluding farms) or CSOs engaged in agricultural and food-security-related manufacturing and services now operating more profitably (at or above cost) because of USG assistance | H47: # of Firms | K47: (Describe assistance provided, and how profitability was calculated)
H48: # of Civil Society Organizations
E49: 3. Improve utilization of available food stuffs to improve nutritional status of women and children | F49: 3.1.9-1 | G49: Number of people trained in child health and nutrition through USG-supported health area programs | H49: M | K49: (What were the topics of the trainings? How many individuals were trained per topic?)
H50: F
F51: Custom indicat. | G51: Number of people trained in maternal health and nutrition through USG-supported health area programs | H51: M | K51: (What were the topics of the trainings? How many individuals were trained per topic?)
H52: F
F53: 3.1.9-15 | G53: Number of children under 5 reached by USG-supported nutrition programs | H53: M | K53: (Briefly describe the nutrition program)
H54: F

Sheet FTFEnvironment Form
B2: Peace Corps Small Grants Application
B3: FTF ENVIRONMENTAL REVIEW & ASSESSMENT CHECKLIST (ER Checklist)
C5: For grant projects involving 1) water/sanitation; 2) agriculture such as agroforestry and community gardens, and 3) environment such as natural resource management, Volunteers must complete and submit an environmental screening form to the grant review committee. The grant review committee must ensure that information on the form is taken into consideration and given significant weight. The Volunteer and committee will determine what, if any, measures must be taken to mitigate and monitor the environmental impact of the project.
C12: The purpose of this Environmental Review and Assessment Checklist (ER Checklist) is to determine whether the proposed action (scope of work) encompasses the potential for environmental pollution or concern and, if so, to determine the scope and extent of additional environmental evaluation, mitigation, and monitoring necessary to fulfill federal U.S. environmental requirements. The ER Checklist is intended to be used by both the Peace Corps personnel who submit project proposals and the grant selection committee to ensure that environmental consequences are taken into account before making an award for a proposed activity. The environmental consequences checklist will assist in determining the potential environmental impact of the proposal.
C21: Include cost information on any environmental mitigation and monitoring in the overall budget proposal. Appropriate environmental mitigation and monitoring is considered an integral aspect of the overall project activity.
C25: Please provide the following information. This information will assist the grant award committee in making an environmental impact determination on the proposed activity.
C29: Date:
C31: Volunteer Name:
C33: Location:
C34: Attach a location map as well as site photos in color if possible
C36: Project/Activity Description:
C44: Provide sufficient description and details for environmental impact analysis
C46: Name of Project/ Activity:
C49: Type of Project/Activity:
C52: Baseline Environmental Conditions:
C57: Provide site specific environmental conditions. Plant and animal resources, water resource and condition, human population characteristics, land use, soil, ecosystem condition, air quality. Describe existing environment at the proposed project site relevant to the scope and potential impact. Include maps and photos as necessary. Use additional pages as necessary.
C62: A. CHECKLIST FOR ENVIRONMENTAL CONSEQUENCES: Check appropriate column as Yes (Y), Maybe (M), No (N) or Beneficial (B). Briefly explain Y, M and B checks in next Section, "Explanations". A "Y" response does not necessarily indicate a significant effect, but rather an issue that requires focused consideration.
J67: Enter Y. M. N. or B in the column below
C70: 1. Earth Resources
C71: a. grading trenching, or excavation in cubic meters or hectare
C72: b. geologic hazards (faults, landslides, liquefaction, un-engineered fill, etc.)
C73: c. contaminated soils or ground water on the site
C74: d. offsite overburden/waste disposal or borrow pits required in cubic meters or tons
C75: e. loss of high-quality farmlands in hectares
C77: 2. Agricultural and Agrochemical
C78: a. impacts of inputs such as seeds and fertilizers
C79: b. impact of production process on human health and environment
C80: c. other adverse impacts
C82: 3. Industries
C83: a. impacts of run-off and run-on water
C84: b. impact of farming such as intensification or extensification
C85: c. impact of other factors
C87: 4. Air Quality
C88: a. substantial increase in onsite air pollutant emissions (construction/operation)
C89: b. violation of applicable air pollutant emissions or ambient concentration standards
C90: c. substantial increase in vehicle traffic during construction or operation
C91: d. demolition or blasting for construction
C92: e. substantial increase in odor during construction or operation
C93: f. substantial alteration of microclimate
C95: 5. Water Resources and Quality
C96: a. river, stream or lake onsite or within 30 meters of construction
C97: b. withdrawals from or discharges to surface or ground water
C98: c. excavation or placing of fill, removing gravel from, a river, stream or lake
C99: d. onsite storage of liquid fuels or hazardous materials in bulk quantities
C101: 6. Cultural Resources
C102: a. prehistoric, historic, or paleontological resources within 30 meters of construction
C103: b. site/facility with unique cultural or ethnic values
C105: 7. Biological Resources
C106: a. vegetation removal or construction in wetlands or riparian areas in hectare
C107: b. use of pesticides/rodenticides, insecticides, or herbicides in hectare
C108: c. Construction in or adjacent to a designated wildlife refuge
C110: 8. Planning and Land Use
C111: a. potential conflict with adjacent land uses
C112: b. non-compliance with existing codes, plans, permits or design factors
C113: c. construction in national park or designated recreational area
C114: d. create substantially annoying source of light or glare
C115: e. relocation of >10 individuals for +6 months
C116: f. interrupt necessary utility or municipal service > 10 individuals for +6 months
C117: g. substantial loss of inefficient use of mineral or non-renewable resources
C118: h. increase existing noise levels >5 decibels for +3 months
C120: 9. Traffic, Transportation and Circulation
C121: a. increase vehicle trips >20% or cause substantial congestion
C122: b. design features cause or contribute to safety hazards
C123: c. inadequate access or emergency access for anticipated volume of people or traffic
C125: 10. Hazards
C126: a. substantially increase risk of fire, explosion, or hazardous chemical release
C127: b. bulk quantities of hazardous materials or fuels stored on site +3 months
C128: c. create or substantially contribute to human health hazard
C130: 11. Other Issues (to be used for categories not captured under1 through 10 above)
C131: a. substantial adverse impact
C132: b. adverse impact
C133: c. minimal impact
C135: B. EXPLANATION OF ENVIRONMENTAL CONSEQUENCES: explain Y, M and B responses
C147: C. IDENTIFIED SIGNIFICANT ENVIRONMENTAL IMPACTS (including physical, biological and social), if any: (Use ER to identify significant environmental impacts)
C159: D. PROPOSED MITIGATION MEASURES (if any):
C170: E. PROPOSED MONITORING MEASURES (if any):

Sheet Print
C2: Peace Corps Small Grant Application
C3: Signature Forms
C5: Directions | E5: Once you have completed all other sections of this application, please print out the following pages, obtain the required signatures, and return hard copies to post.

Sheet PCV Liability
D2: Peace Corps Small Grant Application
D3: Peace Corps Volunteer Consent and Liability Signature Form
D5: Directions | E5: If you will be accepting the project funds, print out this form, obtain the necessary signatures, and return a hard copy to post. If the project funds will be transferred to the community organization, please ensure the community member accepting the funds signs this document.
D7: Project Title: | F7: =IF(ISBLANK('1. Classification & Budget'!H9),"",'1. Classification & Budget'!H9) -> Healthy Homes with Improved Cook Stoves | I7: Project Number: | L7: =IF(ISBLANK(GrantChoice),"",GrantChoice) -> PP | M7: =IF(ISBLANK('1. Classification & Budget'!R7),"",'1. Classification & Budget'!R7) ->  | N7: =IF(ISBLANK('1. Classification & Budget'!S7),"",'1. Classification & Budget'!S7) -> 527 | O7: =IF(ISBLANK('1. Classification & Budget'!T7),"",'1. Classification & Budget'!T7) -> 
D8: Volunteer Name: | F8: =IF(ISBLANK('1. Classification & Budget'!I23),"",'1. Classification & Budget'!I23) -> Emelie | G8: =IF(ISBLANK('1. Classification & Budget'!F23),"",'1. Classification & Budget'!F23) -> Taylor | I8: Peace Corps Country: | L8: =IF(ISBLANK('1. Classification & Budget'!H5),"",'1. Classification & Budget'!H5) -> Peru
D9: Community Partner: | F9: =IF(ISBLANK('1. Classification & Budget'!H14),"YOU MUST ENTER A COMMUNITY GROUP NAME ON THE PROJECT CLASSIFICATION SCREEN",'1. Classification & Budget'!H14) -> Healthy Homes Committee | I9: Authorized Representative of the Community Partner: | L9: =IF(ISBLANK('1. Classification & Budget'!H15),"",'1. Classification & Budget'!H15) -> Project President: Rosa Carmen Mondragon
D10: Funding Source: | F10: =IF(ISBLANK(GrantChoice),"",IF(GrantChoice="PP","Peace Corps Parntership",IF(GrantChoice="SP","SPA",IF(GrantChoice="VA","VAST",IF(GrantChoice="EC","ECPA",IF(GrantChoice="GEF","Global Education Framework","")))))) -> Peace Corps Parntership
D11: Grant Amount (USD): | F11: =SUM('1. Classification & Budget'!H50:I56) -> 3554.888889
D13: By signing below, the Authorized Representative on behalf of the Community Partner and the Peace Corps Volunteer agree to the following:
D16: TERMS AND CONDITIONS FOR THE COMMUNITY PARTNER AND PEACE CORPS VOLUNTEER
D18: 1. Project funds may to be used only for reasonable costs of the Project.
D20: 2. The Community Partner and Peace Corps Volunteer are responsible for managing these funds in accordance with the guidelines applicable to the above referenced funding source and accounting for the use of Project funds.
D23: 3. The Community Partner and Peace Corps Volunteer are responsible for obtaining, keeping, recording in the Small Grant Project Log and submitting to the Peace Corps all original invoices, receipts, or other documentation for all purchases or other expenditures of Project funds. For all purchases made without the Volunteer present, the Community Partner must notify the Volunteer, obtain a signed, dated, and witnessed receipt, and record the expenditure in the Small Grant Project Log.
D28: 4. The Community Partner and Peace Corps Volunteer are responsible for returning any unused funds that remain within 30 days of the completion of the Project.
D31: 5. Except as agreed to otherwise by the Peace Corps, the Community Partner and Peace Corps Volunteer are liable for any Project funds disbursed to them that cannot be accounted for or were spent on non-approved costs, lost, or stolen.
D35: 6. The Community Partner and Peace Corps Volunteer acknowledge that (a) there will be no additional funding beyond the Funding Amount above and (b) if this is a Peace Corps Partnership Program (PCPP) project, that funding is not guaranteed.
D38: 7. The Community Partner is responsible for obtaining the 25 percent community contribution to the project.
D40: 8. The Volunteer and the Peace Corps are not responsible for any activities, expenditures, or liabilities incurred after the project is closed.
D44: Authorized Representative Name (Print) | H44: Signature | M44: Date
J45: NOTE: Signatures continue on Page 2
D46: ADDITIONAL TERMS AND CONDITIONS FOR THE PEACE CORPS VOLUNTEER
D48: 1. I will work closely with my Community Partner to establish a funds-management system.
D50: 2. If funds are transferred to the same bank account through which I receive my Volunteer living allowance, I will take all necessary measures to ensure that grant funds are not commingled with my living allowance.
D53: 3. I will strictly account for all grant funds and will not use any grant funds for personal use.
D55: 4. Any Project funds disbursed to the Peace Corps Volunteer that cannot be accounted for or were spent on non-approved costs, lost, or stolen may be deducted from my readjustment allowance as a debt owed to the Peace Corps (Pursuant to MS 223).
D58: 5. The Peace Corps may contact the referrals I provided.
D59: =IF(ISBLANK('1. Classification & Budget'!I23),"",'1. Classification & Budget'!I23) -> Emelie | E59: =IF(ISBLANK('1. Classification & Budget'!F23),"",'1. Classification & Budget'!F23) -> Taylor
D60: Peace Corps Volunteer Name (Print) | H60: Peace Corps Volunteer Signature | M60: Date
D62: PEACE CORPS APPROVAL
D63: I have reviewed this Application and certify that it meets the requirements of the applicable funding source, and that it is well-planned, accurately budgeted, and the Peace Corps Volunteer and Community Partner possess the technical skills to successfully complete the project within the timeframe of the Volunteer’s term of service.
D64: I have reviewed this Application and certify that it meets the requirements of the applicable funding source, and that it is well-planned, accurately budgeted, and the Peace Corps Volunteer and Community Partner possess the technical skills to successfully complete the project within the timeframe of the Volunteer’s term of service.
D70: Country Director (Print) | H70: Country Director Signature | M70: Date

Sheet Project Agreement
C2: Peace Corps Small Grant Application | N2: NOTE: This page must be printed, signed, scanned and sent to Peace Corps/headquarters
B3: =IF(ISBLANK('1. Classification & Budget'!H5),"",'1. Classification & Budget'!H5) -> Peru | C3: Project Agreement
D5: PEACE CORPS/ | E5: =IF(ISBLANK('1. Classification & Budget'!H5),"",'1. Classification & Budget'!H5) -> Peru
D6: =IF(ISBLANK(GrantChoice),"",IF(GrantChoice="PP","Peace Corps Partnership",IF(GrantChoice="SP","SPA",IF(GrantChoice="VA","VAST",IF(GrantChoice="EC","ECPA",IF(GrantChoice="FF","FTF","")))))) -> Peace Corps Partnership | F6: PROJECT AGREEMENT
D8: Community Organization: | G8: =IF(ISBLANK('1. Classification & Budget'!H14),"",'1. Classification & Budget'!H14) -> Healthy Homes Committee
D9: Project Number: | G9: =IF(ISBLANK(GrantChoice),"",GrantChoice) -> PP | H9: =IF(ISBLANK('1. Classification & Budget'!R7),"",'1. Classification & Budget'!R7) ->  | I9: =IF(ISBLANK('1. Classification & Budget'!S7),"",'1. Classification & Budget'!S7) -> 527 | J9: =IF(ISBLANK('1. Classification & Budget'!T7),"",'1. Classification & Budget'!T7) -> 
D10: Volunteer Name: | G10: =IF(ISBLANK('1. Classification & Budget'!I23),"",'1. Classification & Budget'!I23) -> Emelie | I10: =IF(ISBLANK('1. Classification & Budget'!F23),"",'1. Classification & Budget'!F23) -> Taylor
D11: COS Date: | G11: =IF(ISBLANK('1. Classification & Budget'!P23),"",'1. Classification & Budget'!P23) -> 2014-11-23
D13: Implementation Dates:
D14: Start Date: | G14: =IF(ISBLANK('1. Classification & Budget'!H18),"",'1. Classification & Budget'!H18) -> 2013-06-01
D15: Projected Completion Date: | G15: =IF(ISBLANK('1. Classification & Budget'!N18),"",'1. Classification & Budget'!N18) -> 2014-02-03
D17: Budget:
D18: Local Contribution | G18: =SUM('1. Classification & Budget'!J50:M56) -> 1265 | H18: = Local Currency @ | I18: ='6. Detailed Budget'!G$21 -> 2.7 | J18: =I18*G18 -> 3415.5 | K18: =IF(ISERROR(G18/G21),"",G18/G21) -> 0.2624541829
D19: Grant Amount | G19: =SUM('1. Classification & Budget'!H50:I56) -> 3554.888889 | H19: = Local Currency @ | I19: ='6. Detailed Budget'!G$21 -> 2.7 | J19: =I19*G19 -> 9598.2 | K19: =IF(ISERROR(G19/G21),"",G19/G21) -> 0.7375458171
D20: Third Party Contribution | G20: =SUM('1. Classification & Budget'!N50:Q56) -> 0 | H20: = Local Currency @ | I20: ='6. Detailed Budget'!G$21 -> 2.7 | J20: =I20*G20 -> 0 | K20: =IF(ISERROR(G20/G21),"",G20/G21) -> 0
D21: Total Project Cost | G21: =SUM(G18:G20) -> 4819.888889 | H21: = Local Currency @ | I21: ='6. Detailed Budget'!G$21 -> 2.7 | J21: =SUM(J18:J20) -> 13013.7 | K21: =SUM(K18:K20) -> 1
D22: Obligation Number
D23: =IF('1. Classification & Budget'!H6="Small Project Assistance (SPA)","SPA Program Element","") -> 
D25: =IF('1. Classification & Budget'!H6="Small Project Assistance (SPA)",Lookup!S2,IF('1. Classification & Budget'!H6="Peace Corps Partnership Program (PCPP)",Lookup!S8,IF('1. Classification & Budget'!H6="Energy Climate Partnership of the Americas (ECPA)",Lookup!S1,IF('1. Classification & Budget'!H6="Feed the Future (FTF)",Lookup!S6,IF('1. Classification & Budget'!H6="Volunteer Activities Support and Training (VAST)",Lookup!S3,""))))) -> Authority: This PCPP Project Agreement is executed purusant to the Peace Corps Manual Section 720 which states that, "Donations to the Partnership Program shall be applied exclusively for overseas projects. Donations for projects may be accepted only if they meet the criteria set forth in Manual Section 721, Gifts and Contributions to the Peace Corps."
D27: IN WITNESS WHEREOF, the community organization named above, the Peace Corps Volunteer, and Peace Corps, pursuant to the terms and conditions of
D28: =IF('1. Classification & Budget'!H6="Small Project Assistance (SPA)",Lookup!S21,IF('1. Classification & Budget'!H6="Peace Corps Partnership Program (PCPP)",Lookup!S30,IF('1. Classification & Budget'!H6="Energy Climate Partnership of the Americas (ECPA)",Lookup!S27,IF('1. Classification & Budget'!H6="Feed the Future (FTF)",Lookup!S33,IF('1. Classification & Budget'!H6="Volunteer Activities Support and Training (VAST)",Lookup!S24,""))))) -> the Manual Section 720 and Manual Section 721, have caused this PCPP Project Agreement to be signed under their respective names and delivered as of this date and year.
D29: By signing this Project Agreement, the community organization and Volunteer agrees to use project funds to support only the activities and goals described in this project application, and in accordance with the proposed budget. Equipment and goods purchased using funds awarded will be used to support the objectives of the project and in accordance with the project Application.
D32: Organization Official Signature | I32: Peace Corps Country Director Signature
G33: (Date) | K33: (Date)
D36: Peace Corps Volunteer Signature | I36: APCD (If required by post)
G37: (Date) | K37: (Date)

Sheet 10. PCPP - Press Auth Form
C2: Peace Corps Small Grant Application
C3: Press Authorization Form
D4: Please fill out the Press Authorization form, so PC/headquarters staff may publicize your project. For PCPP, this will also allow staff to upload any of your submitted photographs to your project page on the Peace Corps Website (www.peacecorps.gov/donate). PC/headquarters staff may also contact you to be featured in articles about your project and PC experiences.
D6: Project Photo Details: For those submitting a PCPP project, PC/headquarters staff can upload Volunteer/Community photos with each project summary on the donation website. Each project may have one to three photographs associated with the summary. Pictures of community members, the site of the project, and “before” pictures are generally the most compelling for donors. Please use at least the standard quality of picture–no less than 72 pixels/inch. (PC/headquarters staff may need to crop images.) You must fill out this form for your pictures to be shown on the Peace Corps Website.
D8: I, the undersigned, hereby grant to the Peace Corps a perpetual, worldwide, royalty-free, non-exclusive license to use, reproduce, or publish for purposes authorized by the Peace Corps Act: my name; the negatives and prints of photographs, videotapes, and/or other audio or visual recordings of myself; my articles and stories; and any other documents, writings, statements, recordings, representations, or information I may provide pursuant to and in accordance with the terms of this Authorization. In particular, I hereby authorize the Peace Corps to use, reproduce, or publish any or all of the above-listed items and to make reference to me in connection with these items to promote the Peace Corps using various media and publicity means, including, but not limited to: websites; books; public service advertising on television and radio stations; television and radio broadcasts; direct-mail pieces; print advertisements; brochures; flyers; posters; articles; editorials; speeches; roundtable discussions; radio interviews; and television programs. I acknowledge that I will receive no compensation from the Peace Corps in consideration of this Authorization or the use of the above-listed items pursuant to this Authorization.
D11: =IF(ISBLANK('1. Classification & Budget'!I23),"",'1. Classification & Budget'!I23) -> Emelie | E11: =IF(ISBLANK('1. Classification & Budget'!F23),"",'1. Classification & Budget'!F23) -> Taylor
D12: Volunteer Name
D15: Volunteer Signature
D18: Date

Sheet End
C6: Thank you for completing your small grants application. Please submit this application to the appropriate staff member at post for project approval.
C23: Return to Grant Selection Menu | H23: Return to Main Menu

Sheet Lookup
A1: Labor | B1: 1.3.7, Law Enforcement Restructuring, Reform and Operations | C1: 1 | D1: Albania | E1: 304 | F1: EMA | G1: =IF(COUNTIF('1. Classification & Budget'!E31:Q37,"XX")>=1,"","XX") ->  | H1: Yes | I1: Agriculture | L1: Small Project Assistance (SPA) | M1: SP | N1: Albania | O1: E/E | S1: Authority: This ECPA Project Agreement is executed pursuant to the Interagency Acquisition Agreement (IAA) between the United States Department of State and the Peace Corps (PC) signed on August 6, 2010.
A2: Equipment | B2: 2.2.3, Local Government and Decentralization | C2: 3 | D2: Armenia | E2: 305 | F2: EMA | G2: X | H2: No | I2: Small Enterprise Development | L2: Peace Corps Partnership Program (PCPP) | M2: PP | N2: Armenia | O2: E/E | S2: Authority: This SPA Project Agreement is executed pursuant to the current Small Project Assistance (SPA) IV Participating Agency Program Agreement between the U.S. Agency for International Development (USAID) and the Peace Corps governing Small Project Assistance Funds, signed on September 28, 2012.
A3: Materials/Supplies | B3: 2.2.4, Anti-Corruption Reforms | C3: 4 | D3: Azerbaijan | E3: 314 | F3: EMA | H3: N/A | I3: Education | L3: Volunteer Activities Support and Training (VAST) | M3: VA | N3: Azerbaijan | O3: E/E | S3: Authority: This VAST Project Agreement is executed pursuant to the Memorandum of Understanding established between Peace Corps and the PEPFAR initiatitve.
A4: Land/Venue Rental | B4: 2.3.2, Elections and Political Processes | C4: 5 | D4: Belize | E4: 535 | F4: IAP | I4: Environment | L4: Energy Climate Partnership of the Americas (ECPA) | M4: EC | N4: Benin | O4: AF
A5: Travel/Per Diem/Food/Lodging | B5: 2.4.1, Civic Participation | C5: 6 | D5: Benin | E5: 680 | F5: AF | I5: Health | L5: Feed the Future (FTF) | M5: FF | N5: Burkina Faso | O5: AF
A6: Materials transport | B6: 3.1.1, HIV/AIDS | C6: 7 | D6: Bolivia | E6: 511 | F6: IAP | I6: Youth | L6: Global Education Framework (GEF) | M6: GEF | N6: Cambodia | O6: Asia | S6: Authority: This FTF Project Agreement is executed pursuant to the current Global Food Security Participating Agency Program Agreement between the U.S. Agency for International Development (USAID) and the Peace Corps (PC) governing Feed the Future Food Security Project Funds, signed on July 28, 2011.
A7: Other | B7: 3.1.3, Malaria | C7: 9 | D7: Botswana | E7: 637 | F7: AF | N7: Cameroon | O7: AF
A8: 2010 | B8: 3.1.6, Maternal and Child Health | C8: 10 | D8: Bulgaria | E8: 313 | F8: EMA | N8: Cape Verde | O8: AF | S8: Authority: This PCPP Project Agreement is executed purusant to the Peace Corps Manual Section 720 which states that, "Donations to the Partnership Program shall be applied exclusively for overseas projects. Donations for projects may be accepted only if they meet the criteria set forth in Manual Section 721, Gifts and Contributions to the Peace Corps."
A9: 2011 | B9: 3.1.7, Family Planning and Reproductive Health | C9: 11 | D9: Burkina Faso | E9: 686 | F9: AF | N9: Colombia | O9: LAC
A10: 2012 | B10: 3.1.8, Water Supply and Sanitation | C10: 12 | D10: Cambodia | E10: 303 | F10: EMA | N10: Costa Rica | O10: LAC
A11: 2013 | B11: 3.1.9, Nutrition | C11: 13 | D11: Cameroon | E11: 694 | F11: AF | N11: Dominican Republic | O11: LAC
A12: 2014 | B12: 3.2.1, Basic Education | C12: 14 | D12: Cape Verde | E12: 655 | F12: AF | N12: Eastern Caribbean | O12: LAC
A13: 2015 | B13: 3.2.2, Higher Education | C13: 15 | D13: China | E13: 366 | F13: EMA | N13: Ecuador | O13: LAC
A14: 2016 | B14: 3.3.2, Social Services | C14: 16 | D14: Colombia | E14: 514 | F14: IAP | N14: El Salvador | O14: LAC
B15: 3.3.3, Social Assistance | C15: 17 | D15: Costa Rica | E15: 515 | F15: IAP | N15: Ethiopia | O15: AF
B16: 4.2.1, Trade and Investment Enabling Environment | C16: 18 | D16: Dominican Republic | E16: 517 | F16: IAP | N16: Fiji | O16: ANE
B17: 4.2.2, Trade and Investment Capacity | C17: 19 | D17: Eastern Caribbean | E17: 538 | F17: IAP | N17: Georgia | O17: E/E
B18: 4.3.1, Financial Sector Enabling Environment | C18: 20 | D18: Ecuador | E18: 518 | F18: IAP | N18: Ghana | O18: AF
B19: 4.3.2, Financial Sector Capacity | C19: 21 | D19: El Salvador | E19: 519 | F19: IAP | N19: Guatemala | O19: IAP
B20: 4.5.1, Agriculture Enabling Environment | C20: 22 | D20: Ethiopia | E20: 663 | F20: AF | N20: Guinea | O20: AF | S20: For SPA
B21: 4.5.2, Agricultural Sector Productivity | C21: 23 | D21: Fiji | E21: 411 | F21: IAP | N21: Jamaica | O21: LAC | S21: the PAPA referenced above, each acting through its respective duly authorized representative, have caused this SPA Project Agreement to be signed under their respective names and delivered as of this date and year.
B22: 4.6.1, Business Enabling Environment | C22: 24 | D22: The Gambia | E22: 635 | F22: AF | N22: Jordan | O22: ME
A23: Days | B23: 4.6.2, Private Sector Capacity | C23: 25 | D23: Georgia | E23: 242 | F23: EMA | N23: Kyrgyz Republic | O23: Asia | S23: For VAST
A24: Weeks | B24: 4.6.3, Workforce Development | C24: 26 | D24: Ghana | E24: 641 | F24: AF | N24: Liberia | O24: AF | S24: the Memorandum of Understanding referenced above, each acting through its respective duly authorized representative, have caused this VAST Project Agreement to be signed under their respective names and delivered as of this date and year.
A25: Months | B25: 4.7.3, Strengthen Microenterprise Productivity | C25: 27 | D25: Guatemala | E25: 520 | F25: IAP | N25: Macedonia | O25: E/E
B26: 4.8.1, Natural Resources and Biodiversity | C26: 28 | D26: Guinea | E26: 675 | F26: AF | N26: Madagascar | O26: AF | S26: For ECPA
B27: 4.8.2, Clean Productive Environment | C27: 29 | D27: Guyana | E27: 504 | F27: IAP | N27: Malawi | O27: AF | S27: the IAA referenced above, each acting through its respective duly authorized representative, have caused this ECPA Project Agreement to be signed under their respective names and delivered as of this date and year.
B28: 5.2.1, Capacity Building, Preparedness and Planning | C28: 30 | D28: Honduras | E28: 522 | F28: IAP | N28: Mali | O28: AF
B29: 5.2.2, Disaster Readiness and Mitigation | C29: 31 | D29: Indonesia | E29: 497 | F29: EMA | N29: Mexico | O29: LAC | S29: For PCPP
B30: 6.1.1, Cross Cutting | C30: 32 | D30: Jamaica | E30: 532 | F30: IAP | N30: Micronesia | O30: LAC | S30: the Manual Section 720 and Manual Section 721, have caused this PCPP Project Agreement to be signed under their respective names and delivered as of this date and year.
B31: 6.6.6, Mozambique USAID Education Funds | C31: 33 | D31: Jordan | E31: 440 | F31: EMA | N31: Moldova | O31: E/E
B32: 9.9.9, PLACE HOLDER TO END THE LIST | D32: Kazakhstan | E32: 306 | F32: EMA | N32: Mongolia | O32: Asia | S32: For FTF
D33: Kenya | E33: 615 | F33: AF | N33: Morocco | O33: ME | S33: the PAPA referenced above, each acting through its respective duly authorized representative, have caused this FTF Project Agreement to be signed under their respective names and delivered as of this date and year.
D34: Kyrgyz Republic | E34: 307 | F34: EMA | N34: Mozambique | O34: AF
D35: Lesotho | E35: 632 | F35: AF | N35: Nicaragua | O35: LAC
D36: Liberia | E36: 669 | F36: AF | N36: Panama | O36: LAC
D37: Macedonia | E37: 249 | F37: EMA | N37: Paraguay | O37: LAC
D38: Madagascar | E38: 684 | F38: AF | N38: Peru | O38: LAC
D39: Malawi | E39: 614 | F39: AF | N39: Philippines | O39: Asia
D40: Mali | E40: 688 | F40: AF | N40: Romania | O40: E/E
D41: Mexico | E41: 510 | F41: IAP | N41: Rwanda | O41: AF
D42: Micronesia and Palau | E42: 401 | F42: IAP | N42: Senegal | O42: AF
D43: Moldova | E43: 261 | F43: EMA | N43: Sierra Leone | O43: AF
D44: Mongolia | E44: 309 | F44: EMA | N44: Tanzania | O44: AF
D45: Morocco | E45: 378 | F45: EMA | N45: The Gambia | O45: AF
D46: Mozambique | E46: 640 | F46: AF | N46: Togo | O46: AF
D47: Namibia | E47: 697 | F47: AF | N47: Turkmenistan | O47: Asia
D48: Nepal | E48: 367 | F48: EMA | N48: Uganda | O48: AF
D49: Nicaragua | E49: 524 | F49: IAP | N49: Ukraine | O49: E/E
D50: Niger | E50: 683 | F50: AF | N50: Vanuatu | O50: ANE
D51: Panama | E51: 525 | F51: IAP | N51: Zambia | O51: AF
D52: Paraguay | E52: 526 | F52: IAP
D53: Peru | E53: 527 | F53: IAP
D54: Philippines | E54: 492 | F54: EMA
D55: Romania | E55: 403 | F55: EMA
D56: Rwanda | E56: 696 | F56: AF
D57: Samoa | E57: 491 | F57: IAP
D58: Senegal | E58: 685 | F58: AF
D59: Sierra Leone | E59: 636 | F59: AF
D60: South Africa | E60: 674 | F60: AF
D61: Suriname | E61: 568 | F61: IAP
D62: Swaziland | E62: 645 | F62: AF
D63: Tanzania | E63: 621 | F63: AF
D64: Thailand | E64: 493 | F64: IAP
D65: Togo | E65: 693 | F65: AF
D66: Tonga | E66: 421 | F66: IAP
D67: Turkmenistan | E67: 315 | F67: EMA
D68: Uganda | E68: 617 | F68: AF
D69: Ukraine | E69: 343 | F69: EMA
D70: Vanuatu | E70: 461 | F70: IAP
D71: Zambia | E71: 611 | F71: AF

Sheet Data (hidden)
A1: Project Information | B1: ThisIsANewReport
A2: Country | B2: FundingSourceLong | C2: FundingSource | D2: FY | E2: ProjCode | F2: CountryCode | G2: ProjNo | H2: Title | I2: ProjLocation | J2: ProjRegion | K2: CommGroup | L2: CommGrPerson | M2: CommGrContact | N2: StartDate | O2: EndDate | P2: NoPCVs | Q2: VolLast1 | R2: VolFirst1 | S2: COS1 | T2: VolSec1 | U2: VolLast2 | V2: VolFirst2 | W2: COS2 | X2: VolSec2 | Y2: VolLast3 | Z2: VolFirst3 | AA2: COS3 | AB2: VolSec3 | AC2: OtherVols | AD2: ProgMan | AE2: PCRegion
A3: =IF(ISBLANK('1. Classification & Budget'!H5),"",'1. Classification & Budget'!H5) -> Peru | B3: =IF(ISBLANK('1. Classification & Budget'!H6),"",'1. Classification & Budget'!H6) -> Peace Corps Partnership Program (PCPP) | C3: =IF(ISBLANK(GrantChoice),"",GrantChoice) -> PP | D3: =IF(ISBLANK('1. Classification & Budget'!Q6),"",'1. Classification & Budget'!Q6) ->  | E3: =IF(ISBLANK('1. Classification & Budget'!R7),"",'1. Classification & Budget'!R7) ->  | F3: =IF(ISBLANK('1. Classification & Budget'!S7),"",'1. Classification & Budget'!S7) -> 527 | G3: =IF(ISBLANK('1. Classification & Budget'!T7),"",'1. Classification & Budget'!T7) ->  | H3: =IF(ISBLANK('1. Classification & Budget'!H9),"",'1. Classification & Budget'!H9) -> Healthy Homes with Improved Cook Stoves | I3: =IF(ISBLANK('1. Classification & Budget'!H11),"",'1. Classification & Budget'!H11) -> Pampa Elera Alta | J3: =IF(ISBLANK('1. Classification & Budget'!H12),"",'1. Classification & Budget'!H12) -> Piura | K3: =IF(ISBLANK('1. Classification & Budget'!H14),"",'1. Classification & Budget'!H14) -> Healthy Homes Committee | L3: =IF(ISBLANK('1. Classification & Budget'!H15),"",'1. Classification & Budget'!H15) -> Project President: Rosa Carmen Mondragon | M3: =IF(ISBLANK('1. Classification & Budget'!H16),"",'1. Classification & Budget'!H16) -> 51989438055 | N3: =IF(ISBLANK('1. Classification & Budget'!H18),"",'1. Classification & Budget'!H18) -> 41426 | O3: =IF(ISBLANK('1. Classification & Budget'!N18),"",'1. Classification & Budget'!N18) -> 41673 | P3: 1 | Q3: =IF(ISBLANK('1. Classification & Budget'!F23),"",'1. Classification & Budget'!F23) -> Taylor | R3: =IF(ISBLANK('1. Classification & Budget'!I23),"",'1. Classification & Budget'!I23) -> Emelie | S3: =IF(ISBLANK('1. Classification & Budget'!P23),"",'1. Classification & Budget'!P23) -> 41966 | T3: =IF(ISBLANK('1. Classification & Budget'!L23),"",'1. Classification & Budget'!L23) ->  | U3: =IF(ISBLANK('1. Classification & Budget'!F24),"",'1. Classification & Budget'!F24) ->  | V3: =IF(ISBLANK('1. Classification & Budget'!I24),"",'1. Classification & Budget'!I24) ->  | W3: =IF(ISBLANK('1. Classification & Budget'!P24),"",'1. Classification & Budget'!P24) ->  | X3: =IF(ISBLANK('1. Classification & Budget'!L24),"",'1. Classification & Budget'!L24) ->  | Y3: =IF(ISBLANK('1. Classification & Budget'!F25),"",'1. Classification & Budget'!F25) ->  | Z3: =IF(ISBLANK('1. Classification & Budget'!I25),"",'1. Classification & Budget'!I25) ->  | AA3: =IF(ISBLANK('1. Classification & Budget'!P25),"",'1. Classification & Budget'!P25) ->  | AB3: =IF(ISBLANK('1. Classification & Budget'!L25),"",'1. Classification & Budget'!L25) ->  | AC3: =IF(ISBLANK('1. Classification & Budget'!R23),"",'1. Classification & Budget'!R23) ->  | AD3: =IF(ISBLANK('1. Classification & Budget'!I27),"",'1. Classification & Budget'!I27) -> Emilia Villanueva | AE3: =IF(ISBLANK('1. Classification & Budget'!H5),"",INDEX(Lookup!D1:F71,MATCH('1. Classification & Budget'!H5,Lookup!D1:D71,0),3)) -> IAP
A5: Project Classification
A6: Ag | B6: Ed | C6: Env | D6: Health | E6: MunDevl | F6: SED | G6: YD | H6: WatSan | I6: HIVAIDS | J6: ICT | K6: NGO | L6: Volunteerism | M6: FoodSec | N6: Gender | O6: DirMale25+ | P6: DirFemale25+ | Q6: DirMale15 | R6: DirFemale15 | S6: DirBoys | T6: DirGirls | U6: IndirMale25+ | V6: IndirFemale25+ | W6: IndirMale15 | X6: IndirFemale15 | Y6: IndirBoys | Z6: indirGirls
A7: =IF(ISBLANK('1. Classification & Budget'!E31),"",'1. Classification & Budget'!E31) ->  | B7: =IF(ISBLANK('1. Classification & Budget'!E33),"",'1. Classification & Budget'!E33) ->  | C7: =IF(ISBLANK('1. Classification & Budget'!E35),"",'1. Classification & Budget'!E35) ->  | D7: =IF(ISBLANK('1. Classification & Budget'!E37),"",'1. Classification & Budget'!E37) -> xx | E7: =IF(ISBLANK('1. Classification & Budget'!H31),"",'1. Classification & Budget'!H31) ->  | F7: =IF(ISBLANK('1. Classification & Budget'!H33),"",'1. Classification & Budget'!H33) ->  | G7: =IF(ISBLANK('1. Classification & Budget'!H35),"",'1. Classification & Budget'!H35) ->  | H7: =IF(ISBLANK('1. Classification & Budget'!H37),"",'1. Classification & Budget'!H37) -> x | I7: =IF(ISBLANK('1. Classification & Budget'!M31),"",'1. Classification & Budget'!M31) ->  | J7: =IF(ISBLANK('1. Classification & Budget'!M33),"",'1. Classification & Budget'!M33) ->  | K7: =IF(ISBLANK('1. Classification & Budget'!M35),"",'1. Classification & Budget'!M35) ->  | L7: =IF(ISBLANK('1. Classification & Budget'!M37),"",'1. Classification & Budget'!M37) ->  | M7: =IF(ISBLANK('1. Classification & Budget'!Q31),"",'1. Classification & Budget'!Q31) ->  | N7: =IF(ISBLANK('1. Classification & Budget'!Q33),"",'1. Classification & Budget'!Q33) ->  | O7: =IF(ISBLANK('1. Classification & Budget'!I42),"",'1. Classification & Budget'!I42) -> 1 | P7: =IF(ISBLANK('1. Classification & Budget'!O42),"",'1. Classification & Budget'!O42) -> 57 | Q7: =IF(ISBLANK('1. Classification & Budget'!K42),"",'1. Classification & Budget'!K42) -> 0 | R7: =IF(ISBLANK('1. Classification & Budget'!Q42),"",'1. Classification & Budget'!Q42) -> 11 | S7: =IF(ISBLANK('1. Classification & Budget'!M42),"",'1. Classification & Budget'!M42) -> 0 | T7: =IF(ISBLANK('1. Classification & Budget'!S42),"",'1. Classification & Budget'!S42) -> 0 | U7: =IF(ISBLANK('1. Classification & Budget'!I43),"",'1. Classification & Budget'!I43) ->  | V7: =IF(ISBLANK('1. Classification & Budget'!O43),"",'1. Classification & Budget'!O43) ->  | W7: =IF(ISBLANK('1. Classification & Budget'!K43),"",'1. Classification & Budget'!K43) ->  | X7: =IF(ISBLANK('1. Classification & Budget'!Q43),"",'1. Classification & Budget'!Q43) ->  | Y7: =IF(ISBLANK('1. Classification & Budget'!M43),"",'1. Classification & Budget'!M43) -> 63 | Z7: =IF(ISBLANK('1. Classification & Budget'!S43),"",'1. Classification & Budget'!S43) -> 57
A9: Project Cost Breakdown
A10: Lab | B10: Equip | C10: Mat | D10: Land | E10: Trav | F10: Trans | G10: Other | H10: CommLab | I10: CommEquip | J10: CommMat | K10: CommLand | L10: CommTrav | M10: CommTrans | N10: CommOther | O10: CommLabInkind | P10: CommEquipInkind | Q10: CommMatInkind | R10: CommLandInkind | S10: CommTravInkind | T10: CommTransInkind | U10: CommOtherInkind | V10: ThirdLab | W10: ThirdEquip | X10: ThirdMat | Y10: ThirdLand | Z10: ThirdTrav | AA10: ThirdTrans | AB10: ThirdOther | AC10: ThirdLabInkind | AD10: ThirdEquipInkind | AE10: ThirdMatInkind | AF10: ThirdLandInkind | AG10: ThirdTravInkind | AH10: ThirdTransInkind | AI10: ThirdOtherInkind
A11: =IF('1. Classification & Budget'!H50=0,"",'1. Classification & Budget'!H50) -> 842.5925926 | B11: =IF('1. Classification & Budget'!H51=0,"",'1. Classification & Budget'!H51) ->  | C11: =IF('1. Classification & Budget'!H52=0,"",'1. Classification & Budget'!H52) -> 2630 | D11: =IF('1. Classification & Budget'!H53=0,"",'1. Classification & Budget'!H53) ->  | E11: =IF('1. Classification & Budget'!H54=0,"",'1. Classification & Budget'!H54) ->  | F11: =IF('1. Classification & Budget'!H55=0,"",'1. Classification & Budget'!H55) -> 82.2962963 | G11: =IF('1. Classification & Budget'!H56=0,"",'1. Classification & Budget'!H56) ->  | H11: =IF('1. Classification & Budget'!J50=0,"",'1. Classification & Budget'!J50) ->  | I11: =IF('1. Classification & Budget'!J51=0,"",'1. Classification & Budget'!J51) ->  | J11: =IF('1. Classification & Budget'!J52=0,"",'1. Classification & Budget'!J52) ->  | K11: =IF('1. Classification & Budget'!J53=0,"",'1. Classification & Budget'!J53) ->  | L11: =IF('1. Classification & Budget'!J54=0,"",'1. Classification & Budget'!J54) ->  | M11: =IF('1. Classification & Budget'!J55=0,"",'1. Classification & Budget'!J55) ->  | N11: =IF('1. Classification & Budget'!J56=0,"",'1. Classification & Budget'!J56) ->  | O11: =IF('1. Classification & Budget'!L50=0,"",'1. Classification & Budget'!L50) -> 152.1111111 | P11: =IF('1. Classification & Budget'!L51=0,"",'1. Classification & Budget'!L51) ->  | Q11: =IF('1. Classification & Budget'!L52=0,"",'1. Classification & Budget'!L52) -> 927.7037037 | R11: =IF(ISBLANK('1. Classification & Budget'!L53),"",'1. Classification & Budget'!L53) -> 185.1851852 | S11: =IF('1. Classification & Budget'!L54=0,"",'1. Classification & Budget'!L54) ->  | T11: =IF('1. Classification & Budget'!L55=0,"",'1. Classification & Budget'!L55) ->  | U11: =IF('1. Classification & Budget'!L56=0,"",'1. Classification & Budget'!L56) ->  | V11: =IF('1. Classification & Budget'!N50=0,"",'1. Classification & Budget'!N50) ->  | W11: =IF('1. Classification & Budget'!N51=0,"",'1. Classification & Budget'!N51) ->  | X11: =IF('1. Classification & Budget'!N52=0,"",'1. Classification & Budget'!N52) ->  | Y11: =IF('1. Classification & Budget'!N53=0,"",'1. Classification & Budget'!N53) ->  | Z11: =IF('1. Classification & Budget'!N54=0,"",'1. Classification & Budget'!N54) ->  | AA11: =IF('1. Classification & Budget'!N55=0,"",'1. Classification & Budget'!N55) ->  | AB11: =IF('1. Classification & Budget'!N56=0,"",'1. Classification & Budget'!N56) ->  | AC11: =IF('1. Classification & Budget'!P50=0,"",'1. Classification & Budget'!P50) ->  | AD11: =IF('1. Classification & Budget'!P51=0,"",'1. Classification & Budget'!P51) ->  | AE11: =IF('1. Classification & Budget'!P52=0,"",'1. Classification & Budget'!P52) ->  | AF11: =IF('1. Classification & Budget'!P53=0,"",'1. Classification & Budget'!P53) ->  | AG11: =IF('1. Classification & Budget'!P54=0,"",'1. Classification & Budget'!P54) ->  | AH11: =IF('1. Classification & Budget'!P55=0,"",'1. Classification & Budget'!P55) ->  | AI11: =IF('1. Classification & Budget'!P56=0,"",'1. Classification & Budget'!P56) -> 
A13: What will Grant Funds Purchase
A14: LabDescrip | B14: EquipDescrip | C14: MatDescrip | D14: LandDescrip | E14: TravDescrip | F14: TransDescrip | G14: OtherDescrip | H14: CommLabDescrip | I14: CommEquipDescrip | J14: CommMatDescrip | K14: CommLandDescrip | L14: CommTravDescrip | M14: CommTransDescrip | N14: CommOtherDescrip | O14: ThirdLabDescrip | P14: ThirdEquipDescrip | Q14: ThirdMatDescrip | R14: ThirdLandDescrip | S14: ThirdTravDescrip | T14: ThirdTransDescrip | U14: ThirdOtherDescrip
A15: =IF(ISBLANK('1. Classification & Budget'!H63),"",'1. Classification & Budget'!H63) -> Skilled labor: masons | B15: =IF(ISBLANK('1. Classification & Budget'!H64),"",'1. Classification & Budget'!H64) ->  | C15: =IF(ISBLANK('1. Classification & Budget'!H65),"",'1. Classification & Budget'!H65) -> Supplies to build the cook stoves, uniforms, teaching supplies for trainings and for health promoters | D15: =IF(ISBLANK('1. Classification & Budget'!H66),"",'1. Classification & Budget'!H66) ->  | E15: =IF(ISBLANK('1. Classification & Budget'!H67),"",'1. Classification & Budget'!H67) ->  | F15: =IF(ISBLANK('1. Classification & Budget'!H68),"",'1. Classification & Budget'!H68) -> Transportation to and from capital city | G15: =IF(ISBLANK('1. Classification & Budget'!H69),"",'1. Classification & Budget'!H69) ->  | H15: =IF(ISBLANK('1. Classification & Budget'!M63),"",'1. Classification & Budget'!M63) -> Unskilled labor: mason assistants; Health promoters assisting with trainings and house visits; Staff from Health Post assisting with trainings | I15: =IF(ISBLANK('1. Classification & Budget'!M64),"",'1. Classification & Budget'!M64) ->  | J15: =IF(ISBLANK('1. Classification & Budget'!M65),"",'1. Classification & Budget'!M65) -> Adobes and other small materials such as tin sheets, glass bottles, sugar, salt, water, and mud; food for demonstrations | K15: =IF(ISBLANK('1. Classification & Budget'!M66),"",'1. Classification & Budget'!M66) -> Location for trainings | L15: =IF(ISBLANK('1. Classification & Budget'!M67),"",'1. Classification & Budget'!M67) ->  | M15: =IF(ISBLANK('1. Classification & Budget'!M68),"",'1. Classification & Budget'!M68) ->  | N15: =IF(ISBLANK('1. Classification & Budget'!M69),"",'1. Classification & Budget'!M69) ->  | O15: =IF(ISBLANK('1. Classification & Budget'!R63),"",'1. Classification & Budget'!R63) ->  | P15: =IF(ISBLANK('1. Classification & Budget'!R64),"",'1. Classification & Budget'!R64) ->  | Q15: =IF(ISBLANK('1. Classification & Budget'!R65),"",'1. Classification & Budget'!R65) ->  | R15: =IF(ISBLANK('1. Classification & Budget'!R66),"",'1. Classification & Budget'!R66) ->  | S15: =IF(ISBLANK('1. Classification & Budget'!R67),"",'1. Classification & Budget'!R67) ->  | T15: =IF(ISBLANK('1. Classification & Budget'!R68),"",'1. Classification & Budget'!R68) ->  | U15: =IF(ISBLANK('1. Classification & Budget'!R69),"",'1. Classification & Budget'!R69) -> 
A17: Questionnaire
A18: summary | B18: background | C18: comminvolve | D18: outcome | E18: implement | F18: capacity | G18: sustainbenefits
